Body Name,Body,Date,Department,Beneficiary,Summary of Purpose (SeRCOP),Amount,Merchant Code,Transaction Number,Supplier ID
Sandwell Metropolitan Borough Council,http://www.sandwell.gov.uk/info/200202/performance_and_spending/1079/payments_over_500,15-Mar-2021,Adults Social Care Capital,JOHN GILLESPIE CONTRACTORS LTD,Adults Social Care Capital,700.00,Deferred Charges/Grant Payments,2021P12_CR00001,82566
Sandwell Metropolitan Borough Council,http://www.sandwell.gov.uk/info/200202/performance_and_spending/1079/payments_over_500,01-Mar-2021,Adults Social Care Capital,TERRY GROUP LIMITED,Adults Social Care Capital,750.00,Deferred Charges/Grant Payments,2021P12_CR00002,77002029
Sandwell Metropolitan Borough Council,http://www.sandwell.gov.uk/info/200202/performance_and_spending/1079/payments_over_500,15-Mar-2021,Adults Social Care Capital,JOHN GILLESPIE CONTRACTORS LTD,Adults Social Care Capital,820.00,Deferred Charges/Grant Payments,2021P12_CR00003,82566
Sandwell Metropolitan Borough Council,http://www.sandwell.gov.uk/info/200202/performance_and_spending/1079/payments_over_500,01-Mar-2021,Adults Social Care Capital,RIDGE & PARTNERS LLP,Adults Social Care Capital,1000.00,"CIP - New Construction,Conversion, Enhancement & Reno",2021P12_CR00004,134994
Sandwell Metropolitan Borough Council,http://www.sandwell.gov.uk/info/200202/performance_and_spending/1079/payments_over_500,17-Mar-2021,Adults Social Care Capital,PR PROPERTY MAINTENANCE,Adults Social Care Capital,1019.00,Deferred Charges/Grant Payments,2021P12_CR00005,33836
Sandwell Metropolitan Borough Council,http://www.sandwell.gov.uk/info/200202/performance_and_spending/1079/payments_over_500,01-Mar-2021,Adults Social Care Capital,LIFT & ENGINEERING SERVICES LTD,Adults Social Care Capital,1152.06,"CIP - New Construction,Conversion, Enhancement & Reno",2021P12_CR00006,77003962
Sandwell Metropolitan Borough Council,http://www.sandwell.gov.uk/info/200202/performance_and_spending/1079/payments_over_500,01-Mar-2021,Adults Social Care Capital,LIFT & ENGINEERING SERVICES LTD,Adults Social Care Capital,1157.75,"CIP - New Construction,Conversion, Enhancement & Reno",2021P12_CR00007,77003962
Sandwell Metropolitan Borough Council,http://www.sandwell.gov.uk/info/200202/performance_and_spending/1079/payments_over_500,01-Mar-2021,Adults Social Care Capital,LIFT & ENGINEERING SERVICES LTD,Adults Social Care Capital,1157.75,"CIP - New Construction,Conversion, Enhancement & Reno",2021P12_CR00008,77003962
Sandwell Metropolitan Borough Council,http://www.sandwell.gov.uk/info/200202/performance_and_spending/1079/payments_over_500,01-Mar-2021,Adults Social Care Capital,JOHN GILLESPIE CONTRACTORS LTD,Adults Social Care Capital,2009.52,Deferred Charges/Grant Payments,2021P12_CR00009,82566
Sandwell Metropolitan Borough Council,http://www.sandwell.gov.uk/info/200202/performance_and_spending/1079/payments_over_500,01-Mar-2021,Adults Social Care Capital,VINCI CONSTRUCTION LTD,Adults Social Care Capital,2228.18,Deferred Charges/Grant Payments,2021P12_CR00010,36361
Sandwell Metropolitan Borough Council,http://www.sandwell.gov.uk/info/200202/performance_and_spending/1079/payments_over_500,01-Mar-2021,Adults Social Care Capital,RIDGE & PARTNERS LLP,Adults Social Care Capital,2500.00,"CIP - New Construction,Conversion, Enhancement & Reno",2021P12_CR00011,134994
Sandwell Metropolitan Borough Council,http://www.sandwell.gov.uk/info/200202/performance_and_spending/1079/payments_over_500,01-Mar-2021,Adults Social Care Capital,RIDGE & PARTNERS LLP,Adults Social Care Capital,3000.00,"CIP - New Construction,Conversion, Enhancement & Reno",2021P12_CR00012,134994
Sandwell Metropolitan Borough Council,http://www.sandwell.gov.uk/info/200202/performance_and_spending/1079/payments_over_500,01-Mar-2021,Adults Social Care Capital,DLM BUILDING & MAINTENANCE LTD,Adults Social Care Capital,3150.98,CIP - Infrastructure,2021P12_CR00013,137596
Sandwell Metropolitan Borough Council,http://www.sandwell.gov.uk/info/200202/performance_and_spending/1079/payments_over_500,03-Mar-2021,Adults Social Care Capital,LIFT & ENGINEERING SERVICES LTD,Adults Social Care Capital,4061.97,"CIP - New Construction,Conversion, Enhancement & Reno",2021P12_CR00014,77003962
Sandwell Metropolitan Borough Council,http://www.sandwell.gov.uk/info/200202/performance_and_spending/1079/payments_over_500,16-Mar-2021,Adults Social Care Capital,AXIS EUROPE PLC                                                           02,Adults Social Care Capital,5001.78,Deferred Charges/Grant Payments,2021P12_CR00015,64946
Sandwell Metropolitan Borough Council,http://www.sandwell.gov.uk/info/200202/performance_and_spending/1079/payments_over_500,16-Mar-2021,Adults Social Care Capital,AXIS EUROPE PLC                                                           02,Adults Social Care Capital,5406.68,Deferred Charges/Grant Payments,2021P12_CR00016,64946
Sandwell Metropolitan Borough Council,http://www.sandwell.gov.uk/info/200202/performance_and_spending/1079/payments_over_500,16-Mar-2021,Adults Social Care Capital,PR PROPERTY MAINTENANCE,Adults Social Care Capital,5625.82,Deferred Charges/Grant Payments,2021P12_CR00017,33836
Sandwell Metropolitan Borough Council,http://www.sandwell.gov.uk/info/200202/performance_and_spending/1079/payments_over_500,01-Mar-2021,Adults Social Care Capital,LIFT & ENGINEERING SERVICES LTD,Adults Social Care Capital,5763.90,"CIP - New Construction,Conversion, Enhancement & Reno",2021P12_CR00018,77003962
Sandwell Metropolitan Borough Council,http://www.sandwell.gov.uk/info/200202/performance_and_spending/1079/payments_over_500,15-Mar-2021,Adults Social Care Capital,PR PROPERTY MAINTENANCE,Adults Social Care Capital,6431.45,Deferred Charges/Grant Payments,2021P12_CR00019,33836
Sandwell Metropolitan Borough Council,http://www.sandwell.gov.uk/info/200202/performance_and_spending/1079/payments_over_500,16-Mar-2021,Adults Social Care Capital,PR PROPERTY MAINTENANCE,Adults Social Care Capital,7348.95,Deferred Charges/Grant Payments,2021P12_CR00020,33836
Sandwell Metropolitan Borough Council,http://www.sandwell.gov.uk/info/200202/performance_and_spending/1079/payments_over_500,01-Mar-2021,Adults Social Care Capital,PR PROPERTY MAINTENANCE,Adults Social Care Capital,16101.93,Deferred Charges/Grant Payments,2021P12_CR00021,33836
Sandwell Metropolitan Borough Council,http://www.sandwell.gov.uk/info/200202/performance_and_spending/1079/payments_over_500,09-Mar-2021,Adults Social Care Capital,PR PROPERTY MAINTENANCE,Adults Social Care Capital,19640.89,Deferred Charges/Grant Payments,2021P12_CR00022,33836
Sandwell Metropolitan Borough Council,http://www.sandwell.gov.uk/info/200202/performance_and_spending/1079/payments_over_500,01-Mar-2021,Adults Social Care Capital,WILLMOTT DIXON CONSTRUCTION LIMITED,Adults Social Care Capital,461523.90,"CIP - New Construction,Conversion, Enhancement & Reno",2021P12_CR00023,34081
Sandwell Metropolitan Borough Council,http://www.sandwell.gov.uk/info/200202/performance_and_spending/1079/payments_over_500,04-Mar-2021,Adults Social Care Capital,REDACTED PERSONAL DATA,Adults Social Care Capital,3596.29,Deferred Charges/Grant Payments,2021P12_CR00024,REDACTED PERSONAL DATA
Sandwell Metropolitan Borough Council,http://www.sandwell.gov.uk/info/200202/performance_and_spending/1079/payments_over_500,09-Mar-2021,Adults Social Care Capital,MARY HACKETT & ASSOCIATES LTD,Adults Social Care Capital,6000.00,Deferred Charges/Grant Payments,2021P12_CR00025,149837
Sandwell Metropolitan Borough Council,http://www.sandwell.gov.uk/info/200202/performance_and_spending/1079/payments_over_500,05-Mar-2021,Adults Social Care Capital,R SHARPLES & ASSOCIATES,Adults Social Care Capital,9600.00,Deferred Charges/Grant Payments,2021P12_CR00026,148340
Sandwell Metropolitan Borough Council,http://www.sandwell.gov.uk/info/200202/performance_and_spending/1079/payments_over_500,03-Mar-2021,Adults Social Care Capital,TDF DESIGN LIMITED,Adults Social Care Capital,15000.00,Deferred Charges/Grant Payments,2021P12_CR00027,10320
Sandwell Metropolitan Borough Council,http://www.sandwell.gov.uk/info/200202/performance_and_spending/1079/payments_over_500,01-Mar-2021,Adults Social Care Capital,ARGO UK LTD,Adults Social Care Capital,40000.00,Deferred Charges/Grant Payments,2021P12_CR00028,150962
Sandwell Metropolitan Borough Council,http://www.sandwell.gov.uk/info/200202/performance_and_spending/1079/payments_over_500,03-Mar-2021,Childrens Services,PROFESSIONAL DEVELOPMENT GROUP TA GOVERNMENT EVENTS,Childrens Services,500.00,Conference Expenses,2021P12_CR00029,141766
Sandwell Metropolitan Borough Council,http://www.sandwell.gov.uk/info/200202/performance_and_spending/1079/payments_over_500,02-Mar-2021,Childrens Services,DIRECTION TRAINING & MANAGEMENT,Childrens Services,500.00,Externally Purchased Professional Services ,2021P12_CR00030,01727395
Sandwell Metropolitan Borough Council,http://www.sandwell.gov.uk/info/200202/performance_and_spending/1079/payments_over_500,09-Mar-2021,Childrens Services,DIRECTION TRAINING & MANAGEMENT,Childrens Services,500.00,Externally Purchased Professional Services ,2021P12_CR00031,01727395
Sandwell Metropolitan Borough Council,http://www.sandwell.gov.uk/info/200202/performance_and_spending/1079/payments_over_500,11-Mar-2021,Childrens Services,BLACKHEATH PRIMARY SCHOOL                                 01,Childrens Services,500.00,Grants,2021P12_CR00032,04024198
Sandwell Metropolitan Borough Council,http://www.sandwell.gov.uk/info/200202/performance_and_spending/1079/payments_over_500,11-Mar-2021,Childrens Services,THE MEADOWS SCHOOL,Childrens Services,500.00,Grants,2021P12_CR00033,68653
Sandwell Metropolitan Borough Council,http://www.sandwell.gov.uk/info/200202/performance_and_spending/1079/payments_over_500,01-Mar-2021,Childrens Services,WESTMINSTER SCHOOL,Childrens Services,500.00,Grants,2021P12_CR00034,38481
Sandwell Metropolitan Borough Council,http://www.sandwell.gov.uk/info/200202/performance_and_spending/1079/payments_over_500,15-Mar-2021,Childrens Services,YOUTH FOCUS WEST MIDLANDS,Childrens Services,500.00,Subscriptions,2021P12_CR00035,112224
Sandwell Metropolitan Borough Council,http://www.sandwell.gov.uk/info/200202/performance_and_spending/1079/payments_over_500,01-Mar-2021,Childrens Services,TOTAL GAS AND POWER LIMITED,Childrens Services,500.89,Electricity,2021P12_CR00036,107605
Sandwell Metropolitan Borough Council,http://www.sandwell.gov.uk/info/200202/performance_and_spending/1079/payments_over_500,01-Mar-2021,Childrens Services,MURRAY HALL COMMUNITY TRUST,Childrens Services,502.90,Externally Purchased Professional Services ,2021P12_CR00037,01627284
Sandwell Metropolitan Borough Council,http://www.sandwell.gov.uk/info/200202/performance_and_spending/1079/payments_over_500,01-Mar-2021,Childrens Services,MURRAY HALL COMMUNITY TRUST,Childrens Services,502.90,Externally Purchased Professional Services ,2021P12_CR00038,01627284
Sandwell Metropolitan Borough Council,http://www.sandwell.gov.uk/info/200202/performance_and_spending/1079/payments_over_500,13-Mar-2021,Childrens Services,TOTAL GAS AND POWER LIMITED,Childrens Services,518.59,Electricity,2021P12_CR00039,107605
Sandwell Metropolitan Borough Council,http://www.sandwell.gov.uk/info/200202/performance_and_spending/1079/payments_over_500,04-Mar-2021,Childrens Services,LOCAL EDUCATION AND DEVELOPMENT,Childrens Services,523.25,Grant Payments,2021P12_CR00040,148259
Sandwell Metropolitan Borough Council,http://www.sandwell.gov.uk/info/200202/performance_and_spending/1079/payments_over_500,10-Mar-2021,Childrens Services,WATER PLUS SELECT LIMITED,Childrens Services,560.58,Water Services,2021P12_CR00041,129644
Sandwell Metropolitan Borough Council,http://www.sandwell.gov.uk/info/200202/performance_and_spending/1079/payments_over_500,23-Mar-2021,Childrens Services,A E CHAPMAN & CO (OLD HILL) LTD,Childrens Services,569.04,Equipment & Furniture ,2021P12_CR00042,77001665
Sandwell Metropolitan Borough Council,http://www.sandwell.gov.uk/info/200202/performance_and_spending/1079/payments_over_500,13-Mar-2021,Childrens Services,TOTAL GAS AND POWER LIMITED,Childrens Services,585.76,Electricity,2021P12_CR00043,107605
Sandwell Metropolitan Borough Council,http://www.sandwell.gov.uk/info/200202/performance_and_spending/1079/payments_over_500,01-Mar-2021,Childrens Services,PPG ARCHITECTURAL COATINGS UK LTD,Childrens Services,595.23,Building Maintenance & Improvements,2021P12_CR00044,01056402
Sandwell Metropolitan Borough Council,http://www.sandwell.gov.uk/info/200202/performance_and_spending/1079/payments_over_500,01-Mar-2021,Childrens Services,E.ON UK PLC,Childrens Services,596.38,Electricity,2021P12_CR00045,28639
Sandwell Metropolitan Borough Council,http://www.sandwell.gov.uk/info/200202/performance_and_spending/1079/payments_over_500,01-Mar-2021,Childrens Services,TOTAL GAS AND POWER LIMITED,Childrens Services,642.36,Electricity,2021P12_CR00046,107605
Sandwell Metropolitan Borough Council,http://www.sandwell.gov.uk/info/200202/performance_and_spending/1079/payments_over_500,01-Mar-2021,Childrens Services,EURO SHAF TRAINING SERVICES LIMITED,Childrens Services,695.00,Externally Purchased Professional Services ,2021P12_CR00047,76260
Sandwell Metropolitan Borough Council,http://www.sandwell.gov.uk/info/200202/performance_and_spending/1079/payments_over_500,01-Mar-2021,Childrens Services,EURO SHAF TRAINING SERVICES LIMITED,Childrens Services,695.00,Externally Purchased Professional Services ,2021P12_CR00048,76260
Sandwell Metropolitan Borough Council,http://www.sandwell.gov.uk/info/200202/performance_and_spending/1079/payments_over_500,01-Mar-2021,Childrens Services,THE ASSOCIATION OF EMPLOYMENT AND LEARNING PROVIDERS LIMITED,Childrens Services,700.00,Licences,2021P12_CR00049,110693
Sandwell Metropolitan Borough Council,http://www.sandwell.gov.uk/info/200202/performance_and_spending/1079/payments_over_500,01-Mar-2021,Childrens Services,REDACTED PERSONAL DATA,Childrens Services,700.00,Public Transport,2021P12_CR00050,REDACTED PERSONAL DATA
Sandwell Metropolitan Borough Council,http://www.sandwell.gov.uk/info/200202/performance_and_spending/1079/payments_over_500,15-Mar-2021,Childrens Services,APD PRINT & DESIGN,Childrens Services,750.00,Advertising & Publicity,2021P12_CR00051,49454
Sandwell Metropolitan Borough Council,http://www.sandwell.gov.uk/info/200202/performance_and_spending/1079/payments_over_500,17-Mar-2021,Childrens Services,LINUS SERVICES LIMITED,Childrens Services,750.00,Externally Purchased Professional Services ,2021P12_CR00052,127502
Sandwell Metropolitan Borough Council,http://www.sandwell.gov.uk/info/200202/performance_and_spending/1079/payments_over_500,01-Mar-2021,Childrens Services,THE PRIORY PRIMARY,Childrens Services,750.00,Grants,2021P12_CR00053,01746051
Sandwell Metropolitan Borough Council,http://www.sandwell.gov.uk/info/200202/performance_and_spending/1079/payments_over_500,25-Mar-2021,Childrens Services,FERNDALE PRIMARY SCHOOL                                    01,Childrens Services,750.00,Grants,2021P12_CR00054,11562
Sandwell Metropolitan Borough Council,http://www.sandwell.gov.uk/info/200202/performance_and_spending/1079/payments_over_500,04-Mar-2021,Childrens Services,DEBORAH UDAKIS CONSULTANCY LTD,Childrens Services,800.00,Externally Purchased Professional Services ,2021P12_CR00055,139858
Sandwell Metropolitan Borough Council,http://www.sandwell.gov.uk/info/200202/performance_and_spending/1079/payments_over_500,01-Mar-2021,Childrens Services,FUTURE FIRST INDEPENDENT SCHOOL,Childrens Services,840.00,Other Establishments,2021P12_CR00056,106165
Sandwell Metropolitan Borough Council,http://www.sandwell.gov.uk/info/200202/performance_and_spending/1079/payments_over_500,06-Mar-2021,Childrens Services,FUTURE FIRST INDEPENDENT SCHOOL,Childrens Services,840.00,Other Establishments,2021P12_CR00057,106165
Sandwell Metropolitan Borough Council,http://www.sandwell.gov.uk/info/200202/performance_and_spending/1079/payments_over_500,01-Mar-2021,Childrens Services,SITEWATCH FIRE AND SURVEILLANCE LIMITED,Childrens Services,874.15,Security,2021P12_CR00058,55288
Sandwell Metropolitan Borough Council,http://www.sandwell.gov.uk/info/200202/performance_and_spending/1079/payments_over_500,08-Mar-2021,Childrens Services,FIRST RESPONSE (FIRST AID) LTD,Childrens Services,875.00,Externally Purchased Professional Services ,2021P12_CR00059,57372
Sandwell Metropolitan Borough Council,http://www.sandwell.gov.uk/info/200202/performance_and_spending/1079/payments_over_500,04-Mar-2021,Childrens Services,LOCAL EDUCATION AND DEVELOPMENT,Childrens Services,897.00,Grant Payments,2021P12_CR00060,148259
Sandwell Metropolitan Borough Council,http://www.sandwell.gov.uk/info/200202/performance_and_spending/1079/payments_over_500,16-Mar-2021,Childrens Services,TOTAL GAS AND POWER LIMITED,Childrens Services,911.20,Electricity,2021P12_CR00061,107605
Sandwell Metropolitan Borough Council,http://www.sandwell.gov.uk/info/200202/performance_and_spending/1079/payments_over_500,15-Mar-2021,Childrens Services,APD PRINT & DESIGN,Childrens Services,955.00,Advertising & Publicity,2021P12_CR00062,49454
Sandwell Metropolitan Borough Council,http://www.sandwell.gov.uk/info/200202/performance_and_spending/1079/payments_over_500,02-Mar-2021,Childrens Services,BLACKHEATH PRIMARY SCHOOL                                 01,Childrens Services,1000.00,Grants,2021P12_CR00063,04024198
Sandwell Metropolitan Borough Council,http://www.sandwell.gov.uk/info/200202/performance_and_spending/1079/payments_over_500,01-Mar-2021,Childrens Services,TOH TAXIS,Childrens Services,1036.01,Public Transport,2021P12_CR00064,12250
Sandwell Metropolitan Borough Council,http://www.sandwell.gov.uk/info/200202/performance_and_spending/1079/payments_over_500,01-Mar-2021,Childrens Services,TECHNICAL OUTDOOR SOLUTIONS,Childrens Services,1079.60,Externally Purchased Professional Services ,2021P12_CR00065,122844
Sandwell Metropolitan Borough Council,http://www.sandwell.gov.uk/info/200202/performance_and_spending/1079/payments_over_500,13-Mar-2021,Childrens Services,TOTAL GAS AND POWER LIMITED,Childrens Services,1088.04,Electricity,2021P12_CR00066,107605
Sandwell Metropolitan Borough Council,http://www.sandwell.gov.uk/info/200202/performance_and_spending/1079/payments_over_500,01-Mar-2021,Childrens Services,ONE 4 YOU SERVICES LTD,Childrens Services,1120.00,Public Transport,2021P12_CR00067,81204
Sandwell Metropolitan Borough Council,http://www.sandwell.gov.uk/info/200202/performance_and_spending/1079/payments_over_500,02-Mar-2021,Childrens Services,REDACTED PERSONAL DATA,Childrens Services,1200.00,Advertising & Publicity,2021P12_CR00068,REDACTED PERSONAL DATA
Sandwell Metropolitan Borough Council,http://www.sandwell.gov.uk/info/200202/performance_and_spending/1079/payments_over_500,01-Mar-2021,Childrens Services,121 CARZ,Childrens Services,1243.63,Public Transport,2021P12_CR00069,116848
Sandwell Metropolitan Borough Council,http://www.sandwell.gov.uk/info/200202/performance_and_spending/1079/payments_over_500,01-Mar-2021,Childrens Services,TOTAL GAS AND POWER LIMITED,Childrens Services,1265.52,Gas,2021P12_CR00070,107605
Sandwell Metropolitan Borough Council,http://www.sandwell.gov.uk/info/200202/performance_and_spending/1079/payments_over_500,02-Mar-2021,Childrens Services,CERTAS ENERGY LIMITED,Childrens Services,1287.00,Oil,2021P12_CR00071,80421
Sandwell Metropolitan Borough Council,http://www.sandwell.gov.uk/info/200202/performance_and_spending/1079/payments_over_500,01-Mar-2021,Childrens Services,ENTERPRISE TRANSPORT TRAINING,Childrens Services,1293.91,Externally Purchased Professional Services ,2021P12_CR00072,150757
Sandwell Metropolitan Borough Council,http://www.sandwell.gov.uk/info/200202/performance_and_spending/1079/payments_over_500,01-Mar-2021,Childrens Services,TOTAL GAS AND POWER LIMITED,Childrens Services,1327.42,Electricity,2021P12_CR00073,107605
Sandwell Metropolitan Borough Council,http://www.sandwell.gov.uk/info/200202/performance_and_spending/1079/payments_over_500,23-Mar-2021,Childrens Services,CHILD SEAT SAFETY LTD,Childrens Services,1380.00,Externally Purchased Professional Services ,2021P12_CR00074,129364
Sandwell Metropolitan Borough Council,http://www.sandwell.gov.uk/info/200202/performance_and_spending/1079/payments_over_500,23-Mar-2021,Childrens Services,OLD PARK PRIMARY SCHOOL,Childrens Services,1400.00,Building Maintenance & Improvements,2021P12_CR00075,04024287
Sandwell Metropolitan Borough Council,http://www.sandwell.gov.uk/info/200202/performance_and_spending/1079/payments_over_500,01-Mar-2021,Childrens Services,BEDAZZLE,Childrens Services,1400.00,Externally Purchased Professional Services ,2021P12_CR00076,150963
Sandwell Metropolitan Borough Council,http://www.sandwell.gov.uk/info/200202/performance_and_spending/1079/payments_over_500,10-Mar-2021,Childrens Services,AVANTI GAS LIMITED,Childrens Services,1447.69,Gas,2021P12_CR00077,60069
Sandwell Metropolitan Borough Council,http://www.sandwell.gov.uk/info/200202/performance_and_spending/1079/payments_over_500,15-Mar-2021,Childrens Services,CERTAS ENERGY LIMITED,Childrens Services,1514.83,Oil,2021P12_CR00078,80421
Sandwell Metropolitan Borough Council,http://www.sandwell.gov.uk/info/200202/performance_and_spending/1079/payments_over_500,01-Mar-2021,Childrens Services,TOH TAXIS,Childrens Services,1523.10,Public Transport,2021P12_CR00079,12250
Sandwell Metropolitan Borough Council,http://www.sandwell.gov.uk/info/200202/performance_and_spending/1079/payments_over_500,01-Mar-2021,Childrens Services,TOH TAXIS,Childrens Services,1554.20,Public Transport,2021P12_CR00080,12250
Sandwell Metropolitan Borough Council,http://www.sandwell.gov.uk/info/200202/performance_and_spending/1079/payments_over_500,01-Mar-2021,Childrens Services,LOCAL EDUCATION AND DEVELOPMENT,Childrens Services,1569.75,Grant Payments,2021P12_CR00081,148259
Sandwell Metropolitan Borough Council,http://www.sandwell.gov.uk/info/200202/performance_and_spending/1079/payments_over_500,01-Mar-2021,Childrens Services,WEST MIDLANDS ACCESSIBLE TRANSPORT LTD,Childrens Services,1780.20,Public Transport,2021P12_CR00082,01694764
Sandwell Metropolitan Borough Council,http://www.sandwell.gov.uk/info/200202/performance_and_spending/1079/payments_over_500,01-Mar-2021,Childrens Services,WEST MIDLANDS ACCESSIBLE TRANSPORT LTD,Childrens Services,1780.20,Public Transport,2021P12_CR00083,01694764
Sandwell Metropolitan Borough Council,http://www.sandwell.gov.uk/info/200202/performance_and_spending/1079/payments_over_500,01-Mar-2021,Childrens Services,LEARNING INTO EMPLOYMENT ACADEMY LTD,Childrens Services,1800.00,Grant Payments,2021P12_CR00084,147427
Sandwell Metropolitan Borough Council,http://www.sandwell.gov.uk/info/200202/performance_and_spending/1079/payments_over_500,16-Mar-2021,Childrens Services,AMP BIOMASS FUEL LTD T/A AMP CLEAN ENERGY,Childrens Services,1993.62,Ingestre Hall Arts Centre.Energy Costs,2021P12_CR00085,128761
Sandwell Metropolitan Borough Council,http://www.sandwell.gov.uk/info/200202/performance_and_spending/1079/payments_over_500,15-Mar-2021,Childrens Services,PENNYHILL PRIMARY SCHOOL,Childrens Services,2040.86,Electricity,2021P12_CR00086,73032
Sandwell Metropolitan Borough Council,http://www.sandwell.gov.uk/info/200202/performance_and_spending/1079/payments_over_500,01-Mar-2021,Childrens Services,WEST MIDLANDS ACCESSIBLE TRANSPORT LTD,Childrens Services,2044.15,Public Transport,2021P12_CR00087,01694764
Sandwell Metropolitan Borough Council,http://www.sandwell.gov.uk/info/200202/performance_and_spending/1079/payments_over_500,01-Mar-2021,Childrens Services,WEST MIDLANDS ACCESSIBLE TRANSPORT LTD,Childrens Services,2044.15,Public Transport,2021P12_CR00088,01694764
Sandwell Metropolitan Borough Council,http://www.sandwell.gov.uk/info/200202/performance_and_spending/1079/payments_over_500,16-Mar-2021,Childrens Services,AMP BIOMASS FUEL LTD T/A AMP CLEAN ENERGY,Childrens Services,2052.00,Ingestre Hall Arts Centre.Energy Costs,2021P12_CR00089,128761
Sandwell Metropolitan Borough Council,http://www.sandwell.gov.uk/info/200202/performance_and_spending/1079/payments_over_500,15-Mar-2021,Childrens Services,THE PRIORY PRIMARY,Childrens Services,2091.83,Rents,2021P12_CR00090,01746051
Sandwell Metropolitan Borough Council,http://www.sandwell.gov.uk/info/200202/performance_and_spending/1079/payments_over_500,01-Mar-2021,Childrens Services,I CAN CHARITY,Childrens Services,2100.00,Materials & Consumables,2021P12_CR00091,84207
Sandwell Metropolitan Borough Council,http://www.sandwell.gov.uk/info/200202/performance_and_spending/1079/payments_over_500,11-Mar-2021,Childrens Services,THE GROWTH COMPANY,Childrens Services,2130.00,Externally Purchased Professional Services ,2021P12_CR00092,151084
Sandwell Metropolitan Borough Council,http://www.sandwell.gov.uk/info/200202/performance_and_spending/1079/payments_over_500,03-Mar-2021,Childrens Services,BLACK COUNTRY TRAINING GROUP,Childrens Services,2235.00,Externally Purchased Professional Services ,2021P12_CR00093,01606393
Sandwell Metropolitan Borough Council,http://www.sandwell.gov.uk/info/200202/performance_and_spending/1079/payments_over_500,15-Mar-2021,Childrens Services,LEARNING INTO EMPLOYMENT ACADEMY LTD,Childrens Services,2475.00,Grant Payments,2021P12_CR00094,147427
Sandwell Metropolitan Borough Council,http://www.sandwell.gov.uk/info/200202/performance_and_spending/1079/payments_over_500,11-Mar-2021,Childrens Services,THE PRIORY PRIMARY,Childrens Services,2715.26,Rents,2021P12_CR00095,01746051
Sandwell Metropolitan Borough Council,http://www.sandwell.gov.uk/info/200202/performance_and_spending/1079/payments_over_500,11-Mar-2021,Childrens Services,THE PRIORY PRIMARY,Childrens Services,2794.48,Rents,2021P12_CR00096,01746051
Sandwell Metropolitan Borough Council,http://www.sandwell.gov.uk/info/200202/performance_and_spending/1079/payments_over_500,01-Mar-2021,Childrens Services,D J TRAVEL,Childrens Services,2869.38,Public Transport,2021P12_CR00097,96415
Sandwell Metropolitan Borough Council,http://www.sandwell.gov.uk/info/200202/performance_and_spending/1079/payments_over_500,01-Mar-2021,Childrens Services,UNITY TRAVEL,Childrens Services,2899.00,Public Transport,2021P12_CR00098,64986
Sandwell Metropolitan Borough Council,http://www.sandwell.gov.uk/info/200202/performance_and_spending/1079/payments_over_500,01-Mar-2021,Childrens Services,PHEW DESIGN LIMITED,Childrens Services,3369.60,ICT ,2021P12_CR00099,125418
Sandwell Metropolitan Borough Council,http://www.sandwell.gov.uk/info/200202/performance_and_spending/1079/payments_over_500,10-Mar-2021,Childrens Services,JUNIPER TRAINING LTD,Childrens Services,3500.00,Externally Purchased Professional Services ,2021P12_CR00100,84880
Sandwell Metropolitan Borough Council,http://www.sandwell.gov.uk/info/200202/performance_and_spending/1079/payments_over_500,01-Mar-2021,Childrens Services,DUDLEY MBC,Childrens Services,3608.40,External Contract Hire,2021P12_CR00101,01349846
Sandwell Metropolitan Borough Council,http://www.sandwell.gov.uk/info/200202/performance_and_spending/1079/payments_over_500,16-Mar-2021,Childrens Services,REDACTED PERSONAL DATA,Childrens Services,3640.00,SH Payments,2021P12_CR00102,REDACTED PERSONAL DATA
Sandwell Metropolitan Borough Council,http://www.sandwell.gov.uk/info/200202/performance_and_spending/1079/payments_over_500,03-Mar-2021,Childrens Services,PROSPECTS SERVICES LIMITED,Childrens Services,4089.92,Grant Payments,2021P12_CR00103,01721288
Sandwell Metropolitan Borough Council,http://www.sandwell.gov.uk/info/200202/performance_and_spending/1079/payments_over_500,01-Mar-2021,Childrens Services,BUTT TAXI,Childrens Services,4119.37,Public Transport,2021P12_CR00104,109306
Sandwell Metropolitan Borough Council,http://www.sandwell.gov.uk/info/200202/performance_and_spending/1079/payments_over_500,01-Mar-2021,Childrens Services,JUNIPER TRAINING LTD,Childrens Services,4410.00,Externally Purchased Professional Services ,2021P12_CR00105,84880
Sandwell Metropolitan Borough Council,http://www.sandwell.gov.uk/info/200202/performance_and_spending/1079/payments_over_500,01-Mar-2021,Childrens Services,HER MAJESTYS PRISON AND PROBATION SERVICE,Childrens Services,4530.00,Other Establishments,2021P12_CR00106,134815
Sandwell Metropolitan Borough Council,http://www.sandwell.gov.uk/info/200202/performance_and_spending/1079/payments_over_500,01-Mar-2021,Childrens Services,SHROPSHIRE COUNCIL,Childrens Services,4543.00,External Contract Hire,2021P12_CR00107,01030303
Sandwell Metropolitan Borough Council,http://www.sandwell.gov.uk/info/200202/performance_and_spending/1079/payments_over_500,16-Mar-2021,Childrens Services,SIPS EDUCATION LTD,Childrens Services,4860.50,Catering Provisions,2021P12_CR00108,110784
Sandwell Metropolitan Borough Council,http://www.sandwell.gov.uk/info/200202/performance_and_spending/1079/payments_over_500,03-Mar-2021,Childrens Services,CAREER DEVELOPMENT INSTITUTE,Childrens Services,4908.00,Externally Purchased Professional Services ,2021P12_CR00109,114501
Sandwell Metropolitan Borough Council,http://www.sandwell.gov.uk/info/200202/performance_and_spending/1079/payments_over_500,24-Mar-2021,Childrens Services,IDOX SOFTWARE LTD,Childrens Services,5000.00,Externally Purchased Professional Services ,2021P12_CR00110,17007
Sandwell Metropolitan Borough Council,http://www.sandwell.gov.uk/info/200202/performance_and_spending/1079/payments_over_500,09-Mar-2021,Childrens Services,WEIGHTMANS LLP,Childrens Services,5500.00,Compensation Payments,2021P12_CR00111,120965
Sandwell Metropolitan Borough Council,http://www.sandwell.gov.uk/info/200202/performance_and_spending/1079/payments_over_500,01-Mar-2021,Childrens Services,EDUFOCUS LIMITED,Childrens Services,5599.00,Subscriptions,2021P12_CR00112,102238
Sandwell Metropolitan Borough Council,http://www.sandwell.gov.uk/info/200202/performance_and_spending/1079/payments_over_500,01-Mar-2021,Childrens Services,HER MAJESTYS PRISON AND PROBATION SERVICE,Childrens Services,6099.00,Other Establishments,2021P12_CR00113,134815
Sandwell Metropolitan Borough Council,http://www.sandwell.gov.uk/info/200202/performance_and_spending/1079/payments_over_500,01-Mar-2021,Childrens Services,HER MAJESTYS PRISON AND PROBATION SERVICE,Childrens Services,6741.00,Other Establishments,2021P12_CR00114,134815
Sandwell Metropolitan Borough Council,http://www.sandwell.gov.uk/info/200202/performance_and_spending/1079/payments_over_500,01-Mar-2021,Childrens Services,SANDWELL CHILDREN'S TRUST,Childrens Services,7650.00,SH Payments,2021P12_CR00115,133302
Sandwell Metropolitan Borough Council,http://www.sandwell.gov.uk/info/200202/performance_and_spending/1079/payments_over_500,01-Mar-2021,Childrens Services,HER MAJESTYS PRISON AND PROBATION SERVICE,Childrens Services,7701.00,Other Establishments,2021P12_CR00116,134815
Sandwell Metropolitan Borough Council,http://www.sandwell.gov.uk/info/200202/performance_and_spending/1079/payments_over_500,18-Mar-2021,Childrens Services,UPSHOT SYSTEMS CIC,Childrens Services,8165.00,Licences,2021P12_CR00117,150986
Sandwell Metropolitan Borough Council,http://www.sandwell.gov.uk/info/200202/performance_and_spending/1079/payments_over_500,01-Mar-2021,Childrens Services,HER MAJESTYS PRISON AND PROBATION SERVICE,Childrens Services,9630.00,Other Establishments,2021P12_CR00118,134815
Sandwell Metropolitan Borough Council,http://www.sandwell.gov.uk/info/200202/performance_and_spending/1079/payments_over_500,01-Mar-2021,Childrens Services,HER MAJESTYS PRISON AND PROBATION SERVICE,Childrens Services,9951.00,Other Establishments,2021P12_CR00119,134815
Sandwell Metropolitan Borough Council,http://www.sandwell.gov.uk/info/200202/performance_and_spending/1079/payments_over_500,01-Mar-2021,Childrens Services,HER MAJESTYS PRISON AND PROBATION SERVICE,Childrens Services,9951.00,Other Establishments,2021P12_CR00120,134815
Sandwell Metropolitan Borough Council,http://www.sandwell.gov.uk/info/200202/performance_and_spending/1079/payments_over_500,01-Mar-2021,Childrens Services,HER MAJESTYS PRISON AND PROBATION SERVICE,Childrens Services,9951.00,Other Establishments,2021P12_CR00121,134815
Sandwell Metropolitan Borough Council,http://www.sandwell.gov.uk/info/200202/performance_and_spending/1079/payments_over_500,15-Mar-2021,Childrens Services,LR'S TAXIS LIMITED,Childrens Services,13251.52,Public Transport,2021P12_CR00122,59047
Sandwell Metropolitan Borough Council,http://www.sandwell.gov.uk/info/200202/performance_and_spending/1079/payments_over_500,01-Mar-2021,Childrens Services,HER MAJESTYS PRISON AND PROBATION SERVICE,Childrens Services,13590.00,Other Establishments,2021P12_CR00123,134815
Sandwell Metropolitan Borough Council,http://www.sandwell.gov.uk/info/200202/performance_and_spending/1079/payments_over_500,01-Mar-2021,Childrens Services,HER MAJESTYS PRISON AND PROBATION SERVICE,Childrens Services,14043.00,Other Establishments,2021P12_CR00124,134815
Sandwell Metropolitan Borough Council,http://www.sandwell.gov.uk/info/200202/performance_and_spending/1079/payments_over_500,01-Mar-2021,Childrens Services,HER MAJESTYS PRISON AND PROBATION SERVICE,Childrens Services,14043.00,Other Establishments,2021P12_CR00125,134815
Sandwell Metropolitan Borough Council,http://www.sandwell.gov.uk/info/200202/performance_and_spending/1079/payments_over_500,01-Mar-2021,Childrens Services,HER MAJESTYS PRISON AND PROBATION SERVICE,Childrens Services,14043.00,Other Establishments,2021P12_CR00126,134815
Sandwell Metropolitan Borough Council,http://www.sandwell.gov.uk/info/200202/performance_and_spending/1079/payments_over_500,01-Mar-2021,Childrens Services,YELLOW CARS,Childrens Services,18813.25,Public Transport,2021P12_CR00127,116819
Sandwell Metropolitan Borough Council,http://www.sandwell.gov.uk/info/200202/performance_and_spending/1079/payments_over_500,15-Mar-2021,Childrens Services,DROACH TRAVEL LTD,Childrens Services,20159.51,Public Transport,2021P12_CR00128,06002707
Sandwell Metropolitan Borough Council,http://www.sandwell.gov.uk/info/200202/performance_and_spending/1079/payments_over_500,16-Mar-2021,Childrens Services,REDACTED PERSONAL DATA,Childrens Services,30950.96,Public Transport,2021P12_CR00129,REDACTED PERSONAL DATA
Sandwell Metropolitan Borough Council,http://www.sandwell.gov.uk/info/200202/performance_and_spending/1079/payments_over_500,01-Mar-2021,Childrens Services,COUNTY CARS (2003) LIMITED,Childrens Services,34027.27,Public Transport,2021P12_CR00130,06002387
Sandwell Metropolitan Borough Council,http://www.sandwell.gov.uk/info/200202/performance_and_spending/1079/payments_over_500,01-Mar-2021,Childrens Services,JPC TRAVEL SOLUTION,Childrens Services,43617.93,Public Transport,2021P12_CR00131,138533
Sandwell Metropolitan Borough Council,http://www.sandwell.gov.uk/info/200202/performance_and_spending/1079/payments_over_500,01-Mar-2021,Childrens Services,ONE 4 YOU SERVICES LTD,Childrens Services,52365.70,Public Transport,2021P12_CR00132,81204
Sandwell Metropolitan Borough Council,http://www.sandwell.gov.uk/info/200202/performance_and_spending/1079/payments_over_500,01-Mar-2021,Childrens Services,CLASSIC CARS 1997,Childrens Services,52475.22,Public Transport,2021P12_CR00133,06005093
Sandwell Metropolitan Borough Council,http://www.sandwell.gov.uk/info/200202/performance_and_spending/1079/payments_over_500,04-Mar-2021,Childrens Services,SANDWELL CHILDREN'S TRUST,Childrens Services,65516.00,Other Establishments,2021P12_CR00134,133302
Sandwell Metropolitan Borough Council,http://www.sandwell.gov.uk/info/200202/performance_and_spending/1079/payments_over_500,01-Mar-2021,Childrens Services,FIVE STAR TAXIS (DUDLEY) LTD,Childrens Services,78994.29,Public Transport,2021P12_CR00135,133542
Sandwell Metropolitan Borough Council,http://www.sandwell.gov.uk/info/200202/performance_and_spending/1079/payments_over_500,01-Mar-2021,Childrens Services,COUNTY CARS (2003) LIMITED,Childrens Services,81262.30,Public Transport,2021P12_CR00136,06002387
Sandwell Metropolitan Borough Council,http://www.sandwell.gov.uk/info/200202/performance_and_spending/1079/payments_over_500,01-Mar-2021,Childrens Services,GREEN DESTINATIONS LTD,Childrens Services,87705.39,Public Transport,2021P12_CR00137,109275
Sandwell Metropolitan Borough Council,http://www.sandwell.gov.uk/info/200202/performance_and_spending/1079/payments_over_500,11-Mar-2021,Childrens Services,SANDWELL CHILDREN'S TRUST,Childrens Services,500000.00,Other Establishments,2021P12_CR00138,133302
Sandwell Metropolitan Borough Council,http://www.sandwell.gov.uk/info/200202/performance_and_spending/1079/payments_over_500,16-Mar-2021,Childrens Services,SANDWELL CHILDREN'S TRUST,Childrens Services,632000.00,SH Payments,2021P12_CR00139,133302
Sandwell Metropolitan Borough Council,http://www.sandwell.gov.uk/info/200202/performance_and_spending/1079/payments_over_500,01-Mar-2021,Childrens Services,CITY OF WOLVERHAMPTON COUNCIL,Childrens Services,916512.00,SH Payments,2021P12_CR00140,126961
Sandwell Metropolitan Borough Council,http://www.sandwell.gov.uk/info/200202/performance_and_spending/1079/payments_over_500,01-Mar-2021,Childrens Services,SANDWELL CHILDREN'S TRUST,Childrens Services,10465878.76,Other Establishments,2021P12_CR00141,133302
Sandwell Metropolitan Borough Council,http://www.sandwell.gov.uk/info/200202/performance_and_spending/1079/payments_over_500,15-Mar-2021,Childrens Services,ST MARGARETS C OF E PRIMARY SCHOOL,Childrens Services,585.00,Schools Support Services,2021P12_CR00142,61057
Sandwell Metropolitan Borough Council,http://www.sandwell.gov.uk/info/200202/performance_and_spending/1079/payments_over_500,15-Mar-2021,Childrens Services,WHITECREST PRIMARY SCHOOL                                   02,Childrens Services,660.00,Schools Support Services,2021P12_CR00143,61075
Sandwell Metropolitan Borough Council,http://www.sandwell.gov.uk/info/200202/performance_and_spending/1079/payments_over_500,15-Mar-2021,Childrens Services,HOLY NAME CATHOLIC PRIMARY,Childrens Services,885.00,Schools Support Services,2021P12_CR00144,92683
Sandwell Metropolitan Borough Council,http://www.sandwell.gov.uk/info/200202/performance_and_spending/1079/payments_over_500,15-Mar-2021,Childrens Services,ST MARTINS CE PRIMARY SCHOOL,Childrens Services,960.00,Schools Support Services,2021P12_CR00145,61058
Sandwell Metropolitan Borough Council,http://www.sandwell.gov.uk/info/200202/performance_and_spending/1079/payments_over_500,15-Mar-2021,Childrens Services,ST FRANCIS XAVIER CATHOLIC PRIMARY,Childrens Services,1020.00,Grant Payments,2021P12_CR00146,61051
Sandwell Metropolitan Borough Council,http://www.sandwell.gov.uk/info/200202/performance_and_spending/1079/payments_over_500,15-Mar-2021,Childrens Services,LIGHTWOODS PRIMARY SCHOOL                              02,Childrens Services,1020.00,Schools Support Services,2021P12_CR00147,61012
Sandwell Metropolitan Borough Council,http://www.sandwell.gov.uk/info/200202/performance_and_spending/1079/payments_over_500,15-Mar-2021,Childrens Services,ST MARY MAGDALENE CE PRIMARY SCHOOL                                    01,Childrens Services,1050.00,Schools Support Services,2021P12_CR00148,61059
Sandwell Metropolitan Borough Council,http://www.sandwell.gov.uk/info/200202/performance_and_spending/1079/payments_over_500,15-Mar-2021,Childrens Services,SHIRELAND TECHNOLOGY PRIMARY SCHOOL,Childrens Services,1065.00,Grant Payments,2021P12_CR00149,148598
Sandwell Metropolitan Borough Council,http://www.sandwell.gov.uk/info/200202/performance_and_spending/1079/payments_over_500,15-Mar-2021,Childrens Services,ST CATHERINE OF SIENA MULTI ACADEMY COMPANY                       02,Childrens Services,1080.00,Grant Payments,2021P12_CR00150,61052
Sandwell Metropolitan Borough Council,http://www.sandwell.gov.uk/info/200202/performance_and_spending/1079/payments_over_500,15-Mar-2021,Childrens Services,ST MARYS RC PRIMARY SCHOOL                                    02,Childrens Services,1110.00,Grant Payments,2021P12_CR00151,61060
Sandwell Metropolitan Borough Council,http://www.sandwell.gov.uk/info/200202/performance_and_spending/1079/payments_over_500,15-Mar-2021,Childrens Services,ST JOHN BOSCO RC PRIMARY SCHOOL                             02,Childrens Services,1140.00,Schools Support Services,2021P12_CR00152,61055
Sandwell Metropolitan Borough Council,http://www.sandwell.gov.uk/info/200202/performance_and_spending/1079/payments_over_500,15-Mar-2021,Childrens Services,GROVE VALE PRIMARY SCHOOL,Childrens Services,1200.00,Schools Support Services,2021P12_CR00153,60993
Sandwell Metropolitan Borough Council,http://www.sandwell.gov.uk/info/200202/performance_and_spending/1079/payments_over_500,15-Mar-2021,Childrens Services,HAMSTEAD INFANT SCHOOL                                  02,Childrens Services,1230.00,Schools Support Services,2021P12_CR00154,60997
Sandwell Metropolitan Borough Council,http://www.sandwell.gov.uk/info/200202/performance_and_spending/1079/payments_over_500,15-Mar-2021,Childrens Services,OCKER HILL INFANT SCHOOL                                    02,Childrens Services,1350.00,Schools Support Services,2021P12_CR00155,61036
Sandwell Metropolitan Borough Council,http://www.sandwell.gov.uk/info/200202/performance_and_spending/1079/payments_over_500,15-Mar-2021,Childrens Services,ST PAULS C OF E ACADEMY,Childrens Services,1380.00,Grant Payments,2021P12_CR00156,118126
Sandwell Metropolitan Borough Council,http://www.sandwell.gov.uk/info/200202/performance_and_spending/1079/payments_over_500,15-Mar-2021,Childrens Services,DEVONSHIRE INFANTS ACADEMY,Childrens Services,1410.00,Grant Payments,2021P12_CR00157,118366
Sandwell Metropolitan Borough Council,http://www.sandwell.gov.uk/info/200202/performance_and_spending/1079/payments_over_500,15-Mar-2021,Childrens Services,ANNIE LENNARD INFANT SCHOOL,Childrens Services,1455.00,Schools Support Services,2021P12_CR00158,60966
Sandwell Metropolitan Borough Council,http://www.sandwell.gov.uk/info/200202/performance_and_spending/1079/payments_over_500,15-Mar-2021,Childrens Services,PARK HILL PRIMARY SCHOOL                                             02,Childrens Services,1470.00,Schools Support Services,2021P12_CR00159,61040
Sandwell Metropolitan Borough Council,http://www.sandwell.gov.uk/info/200202/performance_and_spending/1079/payments_over_500,15-Mar-2021,Childrens Services,HEALTH FUTURES UTC LIMITED,Childrens Services,1530.00,Grant Payments,2021P12_CR00160,128174
Sandwell Metropolitan Borough Council,http://www.sandwell.gov.uk/info/200202/performance_and_spending/1079/payments_over_500,15-Mar-2021,Childrens Services,ABBEY INFANT SCHOOL                                             02,Childrens Services,1590.00,Schools Support Services,2021P12_CR00161,60959
Sandwell Metropolitan Borough Council,http://www.sandwell.gov.uk/info/200202/performance_and_spending/1079/payments_over_500,15-Mar-2021,Childrens Services,CORNGREAVES ACADEMY,Childrens Services,1620.00,Grant Payments,2021P12_CR00162,112862
Sandwell Metropolitan Borough Council,http://www.sandwell.gov.uk/info/200202/performance_and_spending/1079/payments_over_500,15-Mar-2021,Childrens Services,SHENSTONE LODGE SCHOOL                                             01,Childrens Services,1650.00,Grant Payments,2021P12_CR00163,22995
Sandwell Metropolitan Borough Council,http://www.sandwell.gov.uk/info/200202/performance_and_spending/1079/payments_over_500,15-Mar-2021,Childrens Services,ORCHARD SCHOOL                                                          02,Childrens Services,1665.00,Schools Support Services,2021P12_CR00164,60956
Sandwell Metropolitan Borough Council,http://www.sandwell.gov.uk/info/200202/performance_and_spending/1079/payments_over_500,15-Mar-2021,Childrens Services,OUR LADY AND ST HUBERTS CATHOLIC PRIMARY SCHOOL                                      02,Childrens Services,1830.00,Grant Payments,2021P12_CR00165,61053
Sandwell Metropolitan Borough Council,http://www.sandwell.gov.uk/info/200202/performance_and_spending/1079/payments_over_500,15-Mar-2021,Childrens Services,TIVIDALE COMMUNITY PRIMARY                              02,Childrens Services,1920.00,Schools Support Services,2021P12_CR00166,61069
Sandwell Metropolitan Borough Council,http://www.sandwell.gov.uk/info/200202/performance_and_spending/1079/payments_over_500,15-Mar-2021,Childrens Services,OCKER HILL ACADEMY,Childrens Services,1950.00,Grant Payments,2021P12_CR00167,113691
Sandwell Metropolitan Borough Council,http://www.sandwell.gov.uk/info/200202/performance_and_spending/1079/payments_over_500,15-Mar-2021,Childrens Services,TIMBERTREE (ACADEMY) PRIMARY SCHOOL,Childrens Services,1965.00,Grant Payments,2021P12_CR00168,112804
Sandwell Metropolitan Borough Council,http://www.sandwell.gov.uk/info/200202/performance_and_spending/1079/payments_over_500,15-Mar-2021,Childrens Services,MOORLANDS PRIMARY SCHOOL                                 01,Childrens Services,1980.00,Schools Support Services,2021P12_CR00169,04036544
Sandwell Metropolitan Borough Council,http://www.sandwell.gov.uk/info/200202/performance_and_spending/1079/payments_over_500,15-Mar-2021,Childrens Services,OAKHAM PRIMARY SCHOOL                                         02,Childrens Services,2040.00,Schools Support Services,2021P12_CR00170,61035
Sandwell Metropolitan Borough Council,http://www.sandwell.gov.uk/info/200202/performance_and_spending/1079/payments_over_500,15-Mar-2021,Childrens Services,DEVONSHIRE JUNIOR ACADEMY,Childrens Services,2055.00,Grant Payments,2021P12_CR00171,118367
Sandwell Metropolitan Borough Council,http://www.sandwell.gov.uk/info/200202/performance_and_spending/1079/payments_over_500,15-Mar-2021,Childrens Services,ALBERT PRITCHARD INFANT SCHOOL                                02,Childrens Services,2055.00,Schools Support Services,2021P12_CR00172,60962
Sandwell Metropolitan Borough Council,http://www.sandwell.gov.uk/info/200202/performance_and_spending/1079/payments_over_500,15-Mar-2021,Childrens Services,PERRYFIELDS PRIMARY SCHOOL                                       02,Childrens Services,2055.00,Schools Support Services,2021P12_CR00173,61042
Sandwell Metropolitan Borough Council,http://www.sandwell.gov.uk/info/200202/performance_and_spending/1079/payments_over_500,15-Mar-2021,Childrens Services,ST PHILIPS CATHOLIC PRIMARY                           02,Childrens Services,2085.00,Grant Payments,2021P12_CR00174,61063
Sandwell Metropolitan Borough Council,http://www.sandwell.gov.uk/info/200202/performance_and_spending/1079/payments_over_500,15-Mar-2021,Childrens Services,HAMSTEAD JUNIOR SCHOOL                                   02,Childrens Services,2145.00,Schools Support Services,2021P12_CR00175,60998
Sandwell Metropolitan Borough Council,http://www.sandwell.gov.uk/info/200202/performance_and_spending/1079/payments_over_500,15-Mar-2021,Childrens Services,OLD HILL PRIMARY SCHOOL                                  02,Childrens Services,2145.00,Schools Support Services,2021P12_CR00176,61038
Sandwell Metropolitan Borough Council,http://www.sandwell.gov.uk/info/200202/performance_and_spending/1079/payments_over_500,15-Mar-2021,Childrens Services,ABBEY JUNIOR SCHOOL                                  02,Childrens Services,2190.00,Schools Support Services,2021P12_CR00177,60961
Sandwell Metropolitan Borough Council,http://www.sandwell.gov.uk/info/200202/performance_and_spending/1079/payments_over_500,15-Mar-2021,Childrens Services,ST JOHNS C OF E PRIMARY ACADEMY,Childrens Services,2220.00,Grant Payments,2021P12_CR00178,61056
Sandwell Metropolitan Borough Council,http://www.sandwell.gov.uk/info/200202/performance_and_spending/1079/payments_over_500,15-Mar-2021,Childrens Services,BRICKHOUSE PRIMARY SCHOOL                                             02,Childrens Services,2220.00,Schools Support Services,2021P12_CR00179,60973
Sandwell Metropolitan Borough Council,http://www.sandwell.gov.uk/info/200202/performance_and_spending/1079/payments_over_500,15-Mar-2021,Childrens Services,HOLYHEAD PRIMARY ACADEMY           02,Childrens Services,2310.00,Grant Payments,2021P12_CR00180,61005
Sandwell Metropolitan Borough Council,http://www.sandwell.gov.uk/info/200202/performance_and_spending/1079/payments_over_500,15-Mar-2021,Childrens Services,ALL SAINTS CE PRIMARY SCHOOL                                         02,Childrens Services,2325.00,Schools Support Services,2021P12_CR00181,60964
Sandwell Metropolitan Borough Council,http://www.sandwell.gov.uk/info/200202/performance_and_spending/1079/payments_over_500,15-Mar-2021,Childrens Services,GRACE MARY PRIMARY SCHOOL                                         02,Childrens Services,2325.00,Schools Support Services,2021P12_CR00182,60991
Sandwell Metropolitan Borough Council,http://www.sandwell.gov.uk/info/200202/performance_and_spending/1079/payments_over_500,15-Mar-2021,Childrens Services,KING GEORGE V PRIMARY SCHOOL                                             02,Childrens Services,2340.00,Schools Support Services,2021P12_CR00183,61009
Sandwell Metropolitan Borough Council,http://www.sandwell.gov.uk/info/200202/performance_and_spending/1079/payments_over_500,15-Mar-2021,Childrens Services,SILVERTREES ACADEMY TRUST,Childrens Services,2460.00,Grant Payments,2021P12_CR00184,113719
Sandwell Metropolitan Borough Council,http://www.sandwell.gov.uk/info/200202/performance_and_spending/1079/payments_over_500,15-Mar-2021,Childrens Services,NEWTOWN PRIMARY SCHOOL                                             02,Childrens Services,2505.00,Grant Payments,2021P12_CR00185,61034
Sandwell Metropolitan Borough Council,http://www.sandwell.gov.uk/info/200202/performance_and_spending/1079/payments_over_500,15-Mar-2021,Childrens Services,JUBILEE PARK ACADEMY TRUST,Childrens Services,2580.00,Grant Payments,2021P12_CR00186,113377
Sandwell Metropolitan Borough Council,http://www.sandwell.gov.uk/info/200202/performance_and_spending/1079/payments_over_500,15-Mar-2021,Childrens Services,TIVIDALE HALL PRIMARY SCHOOL                                     02,Childrens Services,2685.00,Schools Support Services,2021P12_CR00187,61070
Sandwell Metropolitan Borough Council,http://www.sandwell.gov.uk/info/200202/performance_and_spending/1079/payments_over_500,15-Mar-2021,Childrens Services,HIGHFIELDS PRIMARY SCHOOL                                01,Childrens Services,2790.00,Schools Support Services,2021P12_CR00188,01782118
Sandwell Metropolitan Borough Council,http://www.sandwell.gov.uk/info/200202/performance_and_spending/1079/payments_over_500,15-Mar-2021,Childrens Services,OLD PARK PRIMARY SCHOOL                                           02,Childrens Services,2820.00,Schools Support Services,2021P12_CR00189,61039
Sandwell Metropolitan Borough Council,http://www.sandwell.gov.uk/info/200202/performance_and_spending/1079/payments_over_500,15-Mar-2021,Childrens Services,WESTMINSTER SCHOOL                              02,Childrens Services,2835.00,Schools Support Services,2021P12_CR00190,60957
Sandwell Metropolitan Borough Council,http://www.sandwell.gov.uk/info/200202/performance_and_spending/1079/payments_over_500,15-Mar-2021,Childrens Services,MOAT FARM INFANTS SCHOOL                                     02,Childrens Services,2925.00,Schools Support Services,2021P12_CR00191,61031
Sandwell Metropolitan Borough Council,http://www.sandwell.gov.uk/info/200202/performance_and_spending/1079/payments_over_500,15-Mar-2021,Childrens Services,MEADOWS SCHOOL,Childrens Services,2970.00,Schools Support Services,2021P12_CR00192,60955
Sandwell Metropolitan Borough Council,http://www.sandwell.gov.uk/info/200202/performance_and_spending/1079/payments_over_500,15-Mar-2021,Childrens Services,MESTY CROFT ACADEMY,Childrens Services,3000.00,Grant Payments,2021P12_CR00193,106208
Sandwell Metropolitan Borough Council,http://www.sandwell.gov.uk/info/200202/performance_and_spending/1079/payments_over_500,15-Mar-2021,Childrens Services,WOOD GREEN JUNIOR SCHOOL                                       02,Childrens Services,3030.00,Schools Support Services,2021P12_CR00194,61076
Sandwell Metropolitan Borough Council,http://www.sandwell.gov.uk/info/200202/performance_and_spending/1079/payments_over_500,15-Mar-2021,Childrens Services,CHRIST CHURCH CE PRIMARY                                    02,Childrens Services,3045.00,Schools Support Services,2021P12_CR00195,60978
Sandwell Metropolitan Borough Council,http://www.sandwell.gov.uk/info/200202/performance_and_spending/1079/payments_over_500,15-Mar-2021,Childrens Services,CROCKETTS LANE COMMUNITY PRIMARY SCHOOL                           02,Childrens Services,3045.00,Schools Support Services,2021P12_CR00196,60980
Sandwell Metropolitan Borough Council,http://www.sandwell.gov.uk/info/200202/performance_and_spending/1079/payments_over_500,15-Mar-2021,Childrens Services,BLEAKHOUSE JUNIOR SCHOOL                                02,Childrens Services,3150.00,Schools Support Services,2021P12_CR00197,60969
Sandwell Metropolitan Borough Council,http://www.sandwell.gov.uk/info/200202/performance_and_spending/1079/payments_over_500,15-Mar-2021,Childrens Services,EATON VALLEY PRIMARY SCHOOL,Childrens Services,3150.00,Schools Support Services,2021P12_CR00198,60981
Sandwell Metropolitan Borough Council,http://www.sandwell.gov.uk/info/200202/performance_and_spending/1079/payments_over_500,15-Mar-2021,Childrens Services,RYDERS GREEN PRIMARY SCHOOL                                           02,Childrens Services,3210.00,Schools Support Services,2021P12_CR00199,61047
Sandwell Metropolitan Borough Council,http://www.sandwell.gov.uk/info/200202/performance_and_spending/1079/payments_over_500,15-Mar-2021,Childrens Services,WEST BROMWICH COLLEGIATE ACADEMY,Childrens Services,3225.00,Grant Payments,2021P12_CR00200,137780
Sandwell Metropolitan Borough Council,http://www.sandwell.gov.uk/info/200202/performance_and_spending/1079/payments_over_500,15-Mar-2021,Childrens Services,BEARWOOD PRIMARY SCHOOL                                   02,Childrens Services,3315.00,Schools Support Services,2021P12_CR00201,60967
Sandwell Metropolitan Borough Council,http://www.sandwell.gov.uk/info/200202/performance_and_spending/1079/payments_over_500,15-Mar-2021,Childrens Services,GEORGE BETTS PRIMARY ACADEMY,Childrens Services,3405.00,Grant Payments,2021P12_CR00202,113420
Sandwell Metropolitan Borough Council,http://www.sandwell.gov.uk/info/200202/performance_and_spending/1079/payments_over_500,15-Mar-2021,Childrens Services,HANBURY PRIMARY SCHOOL                                                             01,Childrens Services,3510.00,Schools Support Services,2021P12_CR00203,60995
Sandwell Metropolitan Borough Council,http://www.sandwell.gov.uk/info/200202/performance_and_spending/1079/payments_over_500,15-Mar-2021,Childrens Services,HATELEY HEATH PRIMARY SCHOOL                                02,Childrens Services,3540.00,Schools Support Services,2021P12_CR00204,61000
Sandwell Metropolitan Borough Council,http://www.sandwell.gov.uk/info/200202/performance_and_spending/1079/payments_over_500,15-Mar-2021,Childrens Services,HARGATE PRIMARY SCHOOL                                   02,Childrens Services,3570.00,Schools Support Services,2021P12_CR00205,60999
Sandwell Metropolitan Borough Council,http://www.sandwell.gov.uk/info/200202/performance_and_spending/1079/payments_over_500,15-Mar-2021,Childrens Services,HOLY TRINITY CE PRIMARY                                    02,Childrens Services,3600.00,Schools Support Services,2021P12_CR00206,61004
Sandwell Metropolitan Borough Council,http://www.sandwell.gov.uk/info/200202/performance_and_spending/1079/payments_over_500,15-Mar-2021,Childrens Services,HARVILLS HAWTHORN PRIMARY SCHOOL                             01,Childrens Services,3675.00,Schools Support Services,2021P12_CR00207,01782074
Sandwell Metropolitan Borough Council,http://www.sandwell.gov.uk/info/200202/performance_and_spending/1079/payments_over_500,15-Mar-2021,Childrens Services,GREAT BRIDGE PRIMARY SCHOOL                          02,Childrens Services,3720.00,Schools Support Services,2021P12_CR00208,42484
Sandwell Metropolitan Borough Council,http://www.sandwell.gov.uk/info/200202/performance_and_spending/1079/payments_over_500,15-Mar-2021,Childrens Services,LYNG PRIMARY SCHOOL                                        02,Childrens Services,3720.00,Schools Support Services,2021P12_CR00209,61026
Sandwell Metropolitan Borough Council,http://www.sandwell.gov.uk/info/200202/performance_and_spending/1079/payments_over_500,15-Mar-2021,Childrens Services,CAUSEWAY GREEN PRIMARY SCHOOL                           02,Childrens Services,3750.00,Schools Support Services,2021P12_CR00210,60976
Sandwell Metropolitan Borough Council,http://www.sandwell.gov.uk/info/200202/performance_and_spending/1079/payments_over_500,15-Mar-2021,Childrens Services,FERNDALE PRIMARY SCHOOL                                02,Childrens Services,3750.00,Schools Support Services,2021P12_CR00211,60987
Sandwell Metropolitan Borough Council,http://www.sandwell.gov.uk/info/200202/performance_and_spending/1079/payments_over_500,15-Mar-2021,Childrens Services,ST MATTHEWS CE PRIMARY SCHOOL                                             02,Childrens Services,3750.00,Schools Support Services,2021P12_CR00212,61061
Sandwell Metropolitan Borough Council,http://www.sandwell.gov.uk/info/200202/performance_and_spending/1079/payments_over_500,15-Mar-2021,Childrens Services,GALTON VALLEY PRIMARY SCHOOL                                             02,Childrens Services,3855.00,Schools Support Services,2021P12_CR00213,73124
Sandwell Metropolitan Borough Council,http://www.sandwell.gov.uk/info/200202/performance_and_spending/1079/payments_over_500,15-Mar-2021,Childrens Services,LODGE PRIMARY SCHOOL                                     02,Childrens Services,3855.00,Schools Support Services,2021P12_CR00214,61015
Sandwell Metropolitan Borough Council,http://www.sandwell.gov.uk/info/200202/performance_and_spending/1079/payments_over_500,15-Mar-2021,Childrens Services,MOAT FARM JUNIOR SCHOOL                                    02,Childrens Services,3885.00,Schools Support Services,2021P12_CR00215,61032
Sandwell Metropolitan Borough Council,http://www.sandwell.gov.uk/info/200202/performance_and_spending/1079/payments_over_500,15-Mar-2021,Childrens Services,TIPTON GREEN JUNIOR SCHOOL,Childrens Services,3885.00,Schools Support Services,2021P12_CR00216,61068
Sandwell Metropolitan Borough Council,http://www.sandwell.gov.uk/info/200202/performance_and_spending/1079/payments_over_500,15-Mar-2021,Childrens Services,BURNT TREE PRIMARY SCHOOL                                             01,Childrens Services,3930.00,Schools Support Services,2021P12_CR00217,60974
Sandwell Metropolitan Borough Council,http://www.sandwell.gov.uk/info/200202/performance_and_spending/1079/payments_over_500,15-Mar-2021,Childrens Services,SPRINGFIELD PRIMARY SCHOOL                                       02,Childrens Services,4050.00,Schools Support Services,2021P12_CR00218,61050
Sandwell Metropolitan Borough Council,http://www.sandwell.gov.uk/info/200202/performance_and_spending/1079/payments_over_500,15-Mar-2021,Childrens Services,SACRED HEART PRIMARY SCHOOL                                             01,Childrens Services,4080.00,Schools Support Services,2021P12_CR00219,61048
Sandwell Metropolitan Borough Council,http://www.sandwell.gov.uk/info/200202/performance_and_spending/1079/payments_over_500,15-Mar-2021,Childrens Services,ROUNDS GREEN PRIMARY SCHOOL                                         02,Childrens Services,4155.00,Schools Support Services,2021P12_CR00220,61045
Sandwell Metropolitan Borough Council,http://www.sandwell.gov.uk/info/200202/performance_and_spending/1079/payments_over_500,15-Mar-2021,Childrens Services,TEMPLE MEADOW PRIMARY SCHOOL                                 02,Childrens Services,4155.00,Schools Support Services,2021P12_CR00221,61065
Sandwell Metropolitan Borough Council,http://www.sandwell.gov.uk/info/200202/performance_and_spending/1079/payments_over_500,15-Mar-2021,Childrens Services,WEDNESBURY OAK ACADEMY,Childrens Services,4335.00,Grant Payments,2021P12_CR00222,116882
Sandwell Metropolitan Borough Council,http://www.sandwell.gov.uk/info/200202/performance_and_spending/1079/payments_over_500,15-Mar-2021,Childrens Services,REDDAL HILL PRIMARY SCHOOL             02,Childrens Services,4500.00,Schools Support Services,2021P12_CR00223,61043
Sandwell Metropolitan Borough Council,http://www.sandwell.gov.uk/info/200202/performance_and_spending/1079/payments_over_500,15-Mar-2021,Childrens Services,LANGLEY PRIMARY SCHOOL                                 02,Childrens Services,4575.00,Schools Support Services,2021P12_CR00224,61011
Sandwell Metropolitan Borough Council,http://www.sandwell.gov.uk/info/200202/performance_and_spending/1079/payments_over_500,15-Mar-2021,Childrens Services,QUAERERE ACADEMY TRUST                                                                 02,Childrens Services,4650.00,Grant Payments,2021P12_CR00225,60939
Sandwell Metropolitan Borough Council,http://www.sandwell.gov.uk/info/200202/performance_and_spending/1079/payments_over_500,15-Mar-2021,Childrens Services,BRANDHALL PRIMARY SCHOOL                                          02,Childrens Services,4650.00,Schools Support Services,2021P12_CR00226,60971
Sandwell Metropolitan Borough Council,http://www.sandwell.gov.uk/info/200202/performance_and_spending/1079/payments_over_500,15-Mar-2021,Childrens Services,BLACKHEATH PRIMARY SCHOOL                            02,Childrens Services,4815.00,Schools Support Services,2021P12_CR00227,60968
Sandwell Metropolitan Borough Council,http://www.sandwell.gov.uk/info/200202/performance_and_spending/1079/payments_over_500,15-Mar-2021,Childrens Services,THE PRIORY PRIMARY                       02,Childrens Services,4875.00,Schools Support Services,2021P12_CR00228,61066
Sandwell Metropolitan Borough Council,http://www.sandwell.gov.uk/info/200202/performance_and_spending/1079/payments_over_500,15-Mar-2021,Childrens Services,HALL GREEN PRIMARY SCHOOL                                             02,Childrens Services,4920.00,Schools Support Services,2021P12_CR00229,60996
Sandwell Metropolitan Borough Council,http://www.sandwell.gov.uk/info/200202/performance_and_spending/1079/payments_over_500,15-Mar-2021,Childrens Services,JOSEPH TURNER PRIMARY SCHOOL                               02,Childrens Services,5025.00,Schools Support Services,2021P12_CR00230,61006
Sandwell Metropolitan Borough Council,http://www.sandwell.gov.uk/info/200202/performance_and_spending/1079/payments_over_500,15-Mar-2021,Childrens Services,ROOD END PRIMARY SCHOOL                                         02,Childrens Services,5100.00,Schools Support Services,2021P12_CR00231,61044
Sandwell Metropolitan Borough Council,http://www.sandwell.gov.uk/info/200202/performance_and_spending/1079/payments_over_500,15-Mar-2021,Childrens Services,SHIRELAND HALL PRIMARY ACADEMY,Childrens Services,5550.00,Grant Payments,2021P12_CR00232,15209
Sandwell Metropolitan Borough Council,http://www.sandwell.gov.uk/info/200202/performance_and_spending/1079/payments_over_500,15-Mar-2021,Childrens Services,CAPE PRIMARY SCHOOL,Childrens Services,5700.00,Schools Support Services,2021P12_CR00233,01672537
Sandwell Metropolitan Borough Council,http://www.sandwell.gov.uk/info/200202/performance_and_spending/1079/payments_over_500,15-Mar-2021,Childrens Services,ST JAMES C OF E PRIMARY SCHOOL,Childrens Services,5730.00,Schools Support Services,2021P12_CR00234,61054
Sandwell Metropolitan Borough Council,http://www.sandwell.gov.uk/info/200202/performance_and_spending/1079/payments_over_500,15-Mar-2021,Childrens Services,GLEBEFIELDS PRIMARY SCHOOL                             02,Childrens Services,5805.00,Schools Support Services,2021P12_CR00235,60989
Sandwell Metropolitan Borough Council,http://www.sandwell.gov.uk/info/200202/performance_and_spending/1079/payments_over_500,15-Mar-2021,Childrens Services,YEW TREE PRIMARY SCHOOL                         02,Childrens Services,6120.00,Schools Support Services,2021P12_CR00236,61078
Sandwell Metropolitan Borough Council,http://www.sandwell.gov.uk/info/200202/performance_and_spending/1079/payments_over_500,15-Mar-2021,Childrens Services,ROWLEY HALL PRIMARY SCHOOL                             02,Childrens Services,6210.00,Schools Support Services,2021P12_CR00237,61046
Sandwell Metropolitan Borough Council,http://www.sandwell.gov.uk/info/200202/performance_and_spending/1079/payments_over_500,15-Mar-2021,Childrens Services,VICTORIA PARK PRIMARY ACADEMY,Childrens Services,6405.00,Grant Payments,2021P12_CR00238,106209
Sandwell Metropolitan Borough Council,http://www.sandwell.gov.uk/info/200202/performance_and_spending/1079/payments_over_500,15-Mar-2021,Childrens Services,PENNYHILL PRIMARY,Childrens Services,6990.00,Schools Support Services,2021P12_CR00239,73125
Sandwell Metropolitan Borough Council,http://www.sandwell.gov.uk/info/200202/performance_and_spending/1079/payments_over_500,15-Mar-2021,Childrens Services,PERRYFIELDS HIGH SCHOOL                                             02,Childrens Services,7035.00,Schools Support Services,2021P12_CR00240,60946
Sandwell Metropolitan Borough Council,http://www.sandwell.gov.uk/info/200202/performance_and_spending/1079/payments_over_500,15-Mar-2021,Childrens Services,STUART BATHURST CATHOLIC HIGH SCHOOL                  02,Childrens Services,7200.00,Grant Payments,2021P12_CR00241,60949
Sandwell Metropolitan Borough Council,http://www.sandwell.gov.uk/info/200202/performance_and_spending/1079/payments_over_500,15-Mar-2021,Childrens Services,Q3 ACADEMY LANGLEY,Childrens Services,7230.00,Grant Payments,2021P12_CR00242,128009
Sandwell Metropolitan Borough Council,http://www.sandwell.gov.uk/info/200202/performance_and_spending/1079/payments_over_500,15-Mar-2021,Childrens Services,SANDWELL ACADEMY TRUST LTD.,Childrens Services,7380.00,Grant Payments,2021P12_CR00243,126137
Sandwell Metropolitan Borough Council,http://www.sandwell.gov.uk/info/200202/performance_and_spending/1079/payments_over_500,15-Mar-2021,Childrens Services,SHIRELAND COLLEGIATE ACADEMY TRUST T/A TAMESIDE,Childrens Services,7995.00,Grant Payments,2021P12_CR00244,61064
Sandwell Metropolitan Borough Council,http://www.sandwell.gov.uk/info/200202/performance_and_spending/1079/payments_over_500,15-Mar-2021,Childrens Services,ORMISTON SANDWELL COMMUNITY ACADEMY                                           01,Childrens Services,8580.00,Grant Payments,2021P12_CR00245,60950
Sandwell Metropolitan Borough Council,http://www.sandwell.gov.uk/info/200202/performance_and_spending/1079/payments_over_500,15-Mar-2021,Childrens Services,BRISTNALL HALL ACADEMY,Childrens Services,8640.00,Grant Payments,2021P12_CR00246,107471
Sandwell Metropolitan Borough Council,http://www.sandwell.gov.uk/info/200202/performance_and_spending/1079/payments_over_500,15-Mar-2021,Childrens Services,UPLANDS MANOR PRIMARY               02,Childrens Services,9360.00,Schools Support Services,2021P12_CR00247,61071
Sandwell Metropolitan Borough Council,http://www.sandwell.gov.uk/info/200202/performance_and_spending/1079/payments_over_500,15-Mar-2021,Childrens Services,THE RIVERS MULTI ACADEMY TRUST,Childrens Services,9585.00,Grant Payments,2021P12_CR00248,61014
Sandwell Metropolitan Borough Council,http://www.sandwell.gov.uk/info/200202/performance_and_spending/1079/payments_over_500,15-Mar-2021,Childrens Services,WOOD GREEN ACADEMY                                    01,Childrens Services,9735.00,Grant Payments,2021P12_CR00249,100125
Sandwell Metropolitan Borough Council,http://www.sandwell.gov.uk/info/200202/performance_and_spending/1079/payments_over_500,15-Mar-2021,Childrens Services,CENTRAL RSA ACADEMIES TRUST,Childrens Services,10140.00,Grant Payments,2021P12_CR00250,60952
Sandwell Metropolitan Borough Council,http://www.sandwell.gov.uk/info/200202/performance_and_spending/1079/payments_over_500,15-Mar-2021,Childrens Services,ST MICHAELS CE HIGH SCHOOL,Childrens Services,10170.00,Schools Support Services,2021P12_CR00251,60948
Sandwell Metropolitan Borough Council,http://www.sandwell.gov.uk/info/200202/performance_and_spending/1079/payments_over_500,15-Mar-2021,Childrens Services,GEORGE SALTER COLLEGIATE ACADEMY ORMISTON ACADEMIES TRUST,Childrens Services,10335.00,Grant Payments,2021P12_CR00252,01217798
Sandwell Metropolitan Borough Council,http://www.sandwell.gov.uk/info/200202/performance_and_spending/1079/payments_over_500,15-Mar-2021,Childrens Services,HOLLY LODGE FOUNDATION HIGH SCHOOL,Childrens Services,13620.00,Schools Support Services,2021P12_CR00253,60942
Sandwell Metropolitan Borough Council,http://www.sandwell.gov.uk/info/200202/performance_and_spending/1079/payments_over_500,15-Mar-2021,Childrens Services,Q3 ACADEMY TIPTON,Childrens Services,13785.00,Grant Payments,2021P12_CR00254,112047
Sandwell Metropolitan Borough Council,http://www.sandwell.gov.uk/info/200202/performance_and_spending/1079/payments_over_500,15-Mar-2021,Childrens Services,SHIRELAND COLLEGIATE ACADEMY                                           03,Childrens Services,13815.00,Grant Payments,2021P12_CR00255,60947
Sandwell Metropolitan Borough Council,http://www.sandwell.gov.uk/info/200202/performance_and_spending/1079/payments_over_500,15-Mar-2021,Childrens Services,ORMISTON FORGE ACADEMY,Childrens Services,13830.00,Grant Payments,2021P12_CR00256,60941
Sandwell Metropolitan Borough Council,http://www.sandwell.gov.uk/info/200202/performance_and_spending/1079/payments_over_500,15-Mar-2021,Childrens Services,WODENSBOROUGH ORMISTON ACADEMY,Childrens Services,14055.00,Grant Payments,2021P12_CR00257,115040
Sandwell Metropolitan Borough Council,http://www.sandwell.gov.uk/info/200202/performance_and_spending/1079/payments_over_500,15-Mar-2021,Childrens Services,OLDBURY ACADEMY,Childrens Services,15240.00,Grant Payments,2021P12_CR00258,69241
Sandwell Metropolitan Borough Council,http://www.sandwell.gov.uk/info/200202/performance_and_spending/1079/payments_over_500,15-Mar-2021,Childrens Services,PHOENIX COLLEGIATE COLLEGE,Childrens Services,18210.00,Schools Support Services,2021P12_CR00259,95444
Sandwell Metropolitan Borough Council,http://www.sandwell.gov.uk/info/200202/performance_and_spending/1079/payments_over_500,10-Mar-2021,Childrens Services,REDACTED PERSONAL DATA,Childrens Services,545.45,External Contract Hire,2021P12_CR00260,REDACTED PERSONAL DATA
Sandwell Metropolitan Borough Council,http://www.sandwell.gov.uk/info/200202/performance_and_spending/1079/payments_over_500,10-Mar-2021,Childrens Services,REDACTED PERSONAL DATA,Childrens Services,545.45,External Contract Hire,2021P12_CR00261,REDACTED PERSONAL DATA
Sandwell Metropolitan Borough Council,http://www.sandwell.gov.uk/info/200202/performance_and_spending/1079/payments_over_500,10-Mar-2021,Childrens Services,REDACTED PERSONAL DATA,Childrens Services,545.45,External Contract Hire,2021P12_CR00262,REDACTED PERSONAL DATA
Sandwell Metropolitan Borough Council,http://www.sandwell.gov.uk/info/200202/performance_and_spending/1079/payments_over_500,10-Mar-2021,Childrens Services,REDACTED PERSONAL DATA,Childrens Services,545.45,External Contract Hire,2021P12_CR00263,REDACTED PERSONAL DATA
Sandwell Metropolitan Borough Council,http://www.sandwell.gov.uk/info/200202/performance_and_spending/1079/payments_over_500,10-Mar-2021,Childrens Services,REDACTED PERSONAL DATA,Childrens Services,545.45,External Contract Hire,2021P12_CR00264,REDACTED PERSONAL DATA
Sandwell Metropolitan Borough Council,http://www.sandwell.gov.uk/info/200202/performance_and_spending/1079/payments_over_500,10-Mar-2021,Childrens Services,REDACTED PERSONAL DATA,Childrens Services,545.45,External Contract Hire,2021P12_CR00265,REDACTED PERSONAL DATA
Sandwell Metropolitan Borough Council,http://www.sandwell.gov.uk/info/200202/performance_and_spending/1079/payments_over_500,10-Mar-2021,Childrens Services,REDACTED PERSONAL DATA,Childrens Services,545.45,External Contract Hire,2021P12_CR00266,REDACTED PERSONAL DATA
Sandwell Metropolitan Borough Council,http://www.sandwell.gov.uk/info/200202/performance_and_spending/1079/payments_over_500,10-Mar-2021,Childrens Services,REDACTED PERSONAL DATA,Childrens Services,545.45,External Contract Hire,2021P12_CR00267,REDACTED PERSONAL DATA
Sandwell Metropolitan Borough Council,http://www.sandwell.gov.uk/info/200202/performance_and_spending/1079/payments_over_500,10-Mar-2021,Childrens Services,REDACTED PERSONAL DATA,Childrens Services,545.45,External Contract Hire,2021P12_CR00268,REDACTED PERSONAL DATA
Sandwell Metropolitan Borough Council,http://www.sandwell.gov.uk/info/200202/performance_and_spending/1079/payments_over_500,10-Mar-2021,Childrens Services,REDACTED PERSONAL DATA,Childrens Services,545.45,External Contract Hire,2021P12_CR00269,REDACTED PERSONAL DATA
Sandwell Metropolitan Borough Council,http://www.sandwell.gov.uk/info/200202/performance_and_spending/1079/payments_over_500,10-Mar-2021,Childrens Services,REDACTED PERSONAL DATA,Childrens Services,545.45,External Contract Hire,2021P12_CR00270,REDACTED PERSONAL DATA
Sandwell Metropolitan Borough Council,http://www.sandwell.gov.uk/info/200202/performance_and_spending/1079/payments_over_500,10-Mar-2021,Childrens Services,REDACTED PERSONAL DATA,Childrens Services,545.45,External Contract Hire,2021P12_CR00271,REDACTED PERSONAL DATA
Sandwell Metropolitan Borough Council,http://www.sandwell.gov.uk/info/200202/performance_and_spending/1079/payments_over_500,10-Mar-2021,Childrens Services,REDACTED PERSONAL DATA,Childrens Services,545.45,External Contract Hire,2021P12_CR00272,REDACTED PERSONAL DATA
Sandwell Metropolitan Borough Council,http://www.sandwell.gov.uk/info/200202/performance_and_spending/1079/payments_over_500,10-Mar-2021,Childrens Services,REDACTED PERSONAL DATA,Childrens Services,545.45,External Contract Hire,2021P12_CR00273,REDACTED PERSONAL DATA
Sandwell Metropolitan Borough Council,http://www.sandwell.gov.uk/info/200202/performance_and_spending/1079/payments_over_500,10-Mar-2021,Childrens Services,REDACTED PERSONAL DATA,Childrens Services,545.45,External Contract Hire,2021P12_CR00274,REDACTED PERSONAL DATA
Sandwell Metropolitan Borough Council,http://www.sandwell.gov.uk/info/200202/performance_and_spending/1079/payments_over_500,10-Mar-2021,Childrens Services,REDACTED PERSONAL DATA,Childrens Services,545.45,External Contract Hire,2021P12_CR00275,REDACTED PERSONAL DATA
Sandwell Metropolitan Borough Council,http://www.sandwell.gov.uk/info/200202/performance_and_spending/1079/payments_over_500,10-Mar-2021,Childrens Services,REDACTED PERSONAL DATA,Childrens Services,545.45,External Contract Hire,2021P12_CR00276,REDACTED PERSONAL DATA
Sandwell Metropolitan Borough Council,http://www.sandwell.gov.uk/info/200202/performance_and_spending/1079/payments_over_500,10-Mar-2021,Childrens Services,REDACTED PERSONAL DATA,Childrens Services,545.45,External Contract Hire,2021P12_CR00277,REDACTED PERSONAL DATA
Sandwell Metropolitan Borough Council,http://www.sandwell.gov.uk/info/200202/performance_and_spending/1079/payments_over_500,10-Mar-2021,Childrens Services,REDACTED PERSONAL DATA,Childrens Services,545.45,External Contract Hire,2021P12_CR00278,REDACTED PERSONAL DATA
Sandwell Metropolitan Borough Council,http://www.sandwell.gov.uk/info/200202/performance_and_spending/1079/payments_over_500,10-Mar-2021,Childrens Services,REDACTED PERSONAL DATA,Childrens Services,727.27,External Contract Hire,2021P12_CR00279,REDACTED PERSONAL DATA
Sandwell Metropolitan Borough Council,http://www.sandwell.gov.uk/info/200202/performance_and_spending/1079/payments_over_500,10-Mar-2021,Childrens Services,REDACTED PERSONAL DATA,Childrens Services,727.27,External Contract Hire,2021P12_CR00280,REDACTED PERSONAL DATA
Sandwell Metropolitan Borough Council,http://www.sandwell.gov.uk/info/200202/performance_and_spending/1079/payments_over_500,10-Mar-2021,Childrens Services,REDACTED PERSONAL DATA,Childrens Services,727.27,External Contract Hire,2021P12_CR00281,REDACTED PERSONAL DATA
Sandwell Metropolitan Borough Council,http://www.sandwell.gov.uk/info/200202/performance_and_spending/1079/payments_over_500,10-Mar-2021,Childrens Services,REDACTED PERSONAL DATA,Childrens Services,727.27,External Contract Hire,2021P12_CR00282,REDACTED PERSONAL DATA
Sandwell Metropolitan Borough Council,http://www.sandwell.gov.uk/info/200202/performance_and_spending/1079/payments_over_500,10-Mar-2021,Childrens Services,REDACTED PERSONAL DATA,Childrens Services,727.27,External Contract Hire,2021P12_CR00283,REDACTED PERSONAL DATA
Sandwell Metropolitan Borough Council,http://www.sandwell.gov.uk/info/200202/performance_and_spending/1079/payments_over_500,10-Mar-2021,Childrens Services,REDACTED PERSONAL DATA,Childrens Services,727.27,External Contract Hire,2021P12_CR00284,REDACTED PERSONAL DATA
Sandwell Metropolitan Borough Council,http://www.sandwell.gov.uk/info/200202/performance_and_spending/1079/payments_over_500,10-Mar-2021,Childrens Services,REDACTED PERSONAL DATA,Childrens Services,727.27,External Contract Hire,2021P12_CR00285,REDACTED PERSONAL DATA
Sandwell Metropolitan Borough Council,http://www.sandwell.gov.uk/info/200202/performance_and_spending/1079/payments_over_500,10-Mar-2021,Childrens Services,REDACTED PERSONAL DATA,Childrens Services,727.27,External Contract Hire,2021P12_CR00286,REDACTED PERSONAL DATA
Sandwell Metropolitan Borough Council,http://www.sandwell.gov.uk/info/200202/performance_and_spending/1079/payments_over_500,10-Mar-2021,Childrens Services,REDACTED PERSONAL DATA,Childrens Services,727.27,External Contract Hire,2021P12_CR00287,REDACTED PERSONAL DATA
Sandwell Metropolitan Borough Council,http://www.sandwell.gov.uk/info/200202/performance_and_spending/1079/payments_over_500,10-Mar-2021,Childrens Services,REDACTED PERSONAL DATA,Childrens Services,727.27,External Contract Hire,2021P12_CR00288,REDACTED PERSONAL DATA
Sandwell Metropolitan Borough Council,http://www.sandwell.gov.uk/info/200202/performance_and_spending/1079/payments_over_500,10-Mar-2021,Childrens Services,REDACTED PERSONAL DATA,Childrens Services,727.27,External Contract Hire,2021P12_CR00289,REDACTED PERSONAL DATA
Sandwell Metropolitan Borough Council,http://www.sandwell.gov.uk/info/200202/performance_and_spending/1079/payments_over_500,10-Mar-2021,Childrens Services,REDACTED PERSONAL DATA,Childrens Services,727.27,External Contract Hire,2021P12_CR00290,REDACTED PERSONAL DATA
Sandwell Metropolitan Borough Council,http://www.sandwell.gov.uk/info/200202/performance_and_spending/1079/payments_over_500,10-Mar-2021,Childrens Services,REDACTED PERSONAL DATA,Childrens Services,727.27,External Contract Hire,2021P12_CR00291,REDACTED PERSONAL DATA
Sandwell Metropolitan Borough Council,http://www.sandwell.gov.uk/info/200202/performance_and_spending/1079/payments_over_500,10-Mar-2021,Childrens Services,REDACTED PERSONAL DATA,Childrens Services,727.27,External Contract Hire,2021P12_CR00292,REDACTED PERSONAL DATA
Sandwell Metropolitan Borough Council,http://www.sandwell.gov.uk/info/200202/performance_and_spending/1079/payments_over_500,10-Mar-2021,Childrens Services,REDACTED PERSONAL DATA,Childrens Services,727.27,External Contract Hire,2021P12_CR00293,REDACTED PERSONAL DATA
Sandwell Metropolitan Borough Council,http://www.sandwell.gov.uk/info/200202/performance_and_spending/1079/payments_over_500,10-Mar-2021,Childrens Services,REDACTED PERSONAL DATA,Childrens Services,727.27,External Contract Hire,2021P12_CR00294,REDACTED PERSONAL DATA
Sandwell Metropolitan Borough Council,http://www.sandwell.gov.uk/info/200202/performance_and_spending/1079/payments_over_500,10-Mar-2021,Childrens Services,REDACTED PERSONAL DATA,Childrens Services,727.27,External Contract Hire,2021P12_CR00295,REDACTED PERSONAL DATA
Sandwell Metropolitan Borough Council,http://www.sandwell.gov.uk/info/200202/performance_and_spending/1079/payments_over_500,10-Mar-2021,Childrens Services,REDACTED PERSONAL DATA,Childrens Services,727.28,External Contract Hire,2021P12_CR00296,REDACTED PERSONAL DATA
Sandwell Metropolitan Borough Council,http://www.sandwell.gov.uk/info/200202/performance_and_spending/1079/payments_over_500,10-Mar-2021,Childrens Services,REDACTED PERSONAL DATA,Childrens Services,727.28,External Contract Hire,2021P12_CR00297,REDACTED PERSONAL DATA
Sandwell Metropolitan Borough Council,http://www.sandwell.gov.uk/info/200202/performance_and_spending/1079/payments_over_500,10-Mar-2021,Childrens Services,REDACTED PERSONAL DATA,Childrens Services,727.28,External Contract Hire,2021P12_CR00298,REDACTED PERSONAL DATA
Sandwell Metropolitan Borough Council,http://www.sandwell.gov.uk/info/200202/performance_and_spending/1079/payments_over_500,10-Mar-2021,Childrens Services,REDACTED PERSONAL DATA,Childrens Services,727.28,External Contract Hire,2021P12_CR00299,REDACTED PERSONAL DATA
Sandwell Metropolitan Borough Council,http://www.sandwell.gov.uk/info/200202/performance_and_spending/1079/payments_over_500,10-Mar-2021,Childrens Services,REDACTED PERSONAL DATA,Childrens Services,800.00,External Contract Hire,2021P12_CR00300,REDACTED PERSONAL DATA
Sandwell Metropolitan Borough Council,http://www.sandwell.gov.uk/info/200202/performance_and_spending/1079/payments_over_500,10-Mar-2021,Childrens Services,REDACTED PERSONAL DATA,Childrens Services,909.09,External Contract Hire,2021P12_CR00301,REDACTED PERSONAL DATA
Sandwell Metropolitan Borough Council,http://www.sandwell.gov.uk/info/200202/performance_and_spending/1079/payments_over_500,10-Mar-2021,Childrens Services,REDACTED PERSONAL DATA,Childrens Services,1090.90,External Contract Hire,2021P12_CR00302,REDACTED PERSONAL DATA
Sandwell Metropolitan Borough Council,http://www.sandwell.gov.uk/info/200202/performance_and_spending/1079/payments_over_500,26-Mar-2021,Childrens Services,GREETS GREEN COMMUNITY ENTERPRISES (DEVELOPMENTS),Childrens Services,1160.00,Grant Payments,2021P12_CR00303,66047
Sandwell Metropolitan Borough Council,http://www.sandwell.gov.uk/info/200202/performance_and_spending/1079/payments_over_500,26-Mar-2021,Childrens Services,AFRICAN FRENCH SPEAKING COMMUNITY SUPPORT,Childrens Services,1690.00,Grant Payments,2021P12_CR00304,107906
Sandwell Metropolitan Borough Council,http://www.sandwell.gov.uk/info/200202/performance_and_spending/1079/payments_over_500,26-Mar-2021,Childrens Services,ILEYS COMMUNITY ASSOCIATION,Childrens Services,2293.00,Grant Payments,2021P12_CR00305,88247
Sandwell Metropolitan Borough Council,http://www.sandwell.gov.uk/info/200202/performance_and_spending/1079/payments_over_500,26-Mar-2021,Childrens Services,FRIAR PARK MILLENNIUM CENTRE,Childrens Services,6112.00,Grant Payments,2021P12_CR00306,28476
Sandwell Metropolitan Borough Council,http://www.sandwell.gov.uk/info/200202/performance_and_spending/1079/payments_over_500,29-Mar-2021,Childrens Services,S.C.V.O.,Childrens Services,41000.00,Grant Payments,2021P12_CR00307,109813
Sandwell Metropolitan Borough Council,http://www.sandwell.gov.uk/info/200202/performance_and_spending/1079/payments_over_500,22-Mar-2021,Childrens Services Capital,WSM ENGINEERING FACILITIES LTD,Childrens Services Capital,900.88,"CIP - New Construction,Conversion, Enhancement & Reno",2021P12_CR00308,151265
Sandwell Metropolitan Borough Council,http://www.sandwell.gov.uk/info/200202/performance_and_spending/1079/payments_over_500,01-Mar-2021,Childrens Services Capital,M & H SURVEY SERVICES LIMITED,Childrens Services Capital,1950.00,Consultancy,2021P12_CR00309,114657
Sandwell Metropolitan Borough Council,http://www.sandwell.gov.uk/info/200202/performance_and_spending/1079/payments_over_500,01-Mar-2021,Childrens Services Capital,M & H SURVEY SERVICES LIMITED,Childrens Services Capital,2250.00,"CIP - New Construction,Conversion, Enhancement & Reno",2021P12_CR00310,114657
Sandwell Metropolitan Borough Council,http://www.sandwell.gov.uk/info/200202/performance_and_spending/1079/payments_over_500,29-Mar-2021,Childrens Services Capital,REDACTED PERSONAL DATA,Childrens Services Capital,2750.00,"CIP - New Construction,Conversion, Enhancement & Reno",2021P12_CR00311,REDACTED PERSONAL DATA
Sandwell Metropolitan Borough Council,http://www.sandwell.gov.uk/info/200202/performance_and_spending/1079/payments_over_500,02-Mar-2021,Childrens Services Capital,M & H SURVEY SERVICES LIMITED,Childrens Services Capital,3570.00,"CIP - New Construction,Conversion, Enhancement & Reno",2021P12_CR00312,114657
Sandwell Metropolitan Borough Council,http://www.sandwell.gov.uk/info/200202/performance_and_spending/1079/payments_over_500,05-Mar-2021,Childrens Services Capital,KING GEORGE V PRIMARY SCHOOL,Childrens Services Capital,67513.32,"CIP - New Construction,Conversion, Enhancement & Reno",2021P12_CR00313,71638
Sandwell Metropolitan Borough Council,http://www.sandwell.gov.uk/info/200202/performance_and_spending/1079/payments_over_500,01-Mar-2021,Childrens Services Capital,WILLMOTT DIXON CONSTRUCTION LIMITED,Childrens Services Capital,422355.10,"CIP - New Construction,Conversion, Enhancement & Reno",2021P12_CR00314,34081
Sandwell Metropolitan Borough Council,http://www.sandwell.gov.uk/info/200202/performance_and_spending/1079/payments_over_500,25-Mar-2021,Childrens Services Capital,WILLMOTT DIXON CONSTRUCTION LIMITED,Childrens Services Capital,564370.26,"CIP - New Construction,Conversion, Enhancement & Reno",2021P12_CR00315,34081
Sandwell Metropolitan Borough Council,http://www.sandwell.gov.uk/info/200202/performance_and_spending/1079/payments_over_500,01-Mar-2021,Childrens Services Capital,WILLMOTT DIXON CONSTRUCTION LIMITED,Childrens Services Capital,605994.26,"CIP - New Construction,Conversion, Enhancement & Reno",2021P12_CR00316,34081
Sandwell Metropolitan Borough Council,http://www.sandwell.gov.uk/info/200202/performance_and_spending/1079/payments_over_500,01-Mar-2021,Childrens Services Capital,WILLMOTT DIXON CONSTRUCTION LIMITED,Childrens Services Capital,628999.46,"CIP - New Construction,Conversion, Enhancement & Reno",2021P12_CR00317,34081
Sandwell Metropolitan Borough Council,http://www.sandwell.gov.uk/info/200202/performance_and_spending/1079/payments_over_500,01-Mar-2021,Housing & Communities,ULVERSCROFT LARGE PRINT BOOKS LTD,Neighbourhoods,567.34,Materials & Consumables,2021P12_CR00318,01044938
Sandwell Metropolitan Borough Council,http://www.sandwell.gov.uk/info/200202/performance_and_spending/1079/payments_over_500,05-Mar-2021,Housing & Communities,PETERS LIMITED,Neighbourhoods,691.40,Materials & Consumables,2021P12_CR00319,01059117
Sandwell Metropolitan Borough Council,http://www.sandwell.gov.uk/info/200202/performance_and_spending/1079/payments_over_500,03-Mar-2021,Housing & Communities,PETERS LIMITED,Neighbourhoods,935.20,Materials & Consumables,2021P12_CR00320,01059117
Sandwell Metropolitan Borough Council,http://www.sandwell.gov.uk/info/200202/performance_and_spending/1079/payments_over_500,03-Mar-2021,Housing & Communities,PETERS LIMITED,Neighbourhoods,1601.60,Materials & Consumables,2021P12_CR00321,01059117
Sandwell Metropolitan Borough Council,http://www.sandwell.gov.uk/info/200202/performance_and_spending/1079/payments_over_500,05-Mar-2021,Housing & Communities,DENNIS EAGLE LTD,Neighbourhoods,505.91,Fire Service Workshops,2021P12_CR00322,01004865
Sandwell Metropolitan Borough Council,http://www.sandwell.gov.uk/info/200202/performance_and_spending/1079/payments_over_500,01-Mar-2021,Housing & Communities,ERNEST DOE & SONS LTD,Neighbourhoods,517.50,Equipment & Furniture ,2021P12_CR00323,108676
Sandwell Metropolitan Borough Council,http://www.sandwell.gov.uk/info/200202/performance_and_spending/1079/payments_over_500,03-Mar-2021,Housing & Communities,GEESINK NORBA LTD,Neighbourhoods,522.52,Fire Service Workshops,2021P12_CR00324,102799
Sandwell Metropolitan Borough Council,http://www.sandwell.gov.uk/info/200202/performance_and_spending/1079/payments_over_500,09-Mar-2021,Housing & Communities,BUCHER MUNICIPAL LTD,Neighbourhoods,548.49,Fire Service Workshops,2021P12_CR00325,01053625
Sandwell Metropolitan Borough Council,http://www.sandwell.gov.uk/info/200202/performance_and_spending/1079/payments_over_500,01-Mar-2021,Housing & Communities,ROCK BATTERIES,Neighbourhoods,560.00,Fire Service Workshops,2021P12_CR00326,73652
Sandwell Metropolitan Borough Council,http://www.sandwell.gov.uk/info/200202/performance_and_spending/1079/payments_over_500,01-Mar-2021,Housing & Communities,DENNIS EAGLE LTD,Neighbourhoods,565.58,Fire Service Workshops,2021P12_CR00327,01004865
Sandwell Metropolitan Borough Council,http://www.sandwell.gov.uk/info/200202/performance_and_spending/1079/payments_over_500,01-Mar-2021,Housing & Communities,CATHEDRAL MOTOR COMPANY LIMITED (T/A ARBURY FLEET),Neighbourhoods,569.44,Fire Service Workshops,2021P12_CR00328,123099
Sandwell Metropolitan Borough Council,http://www.sandwell.gov.uk/info/200202/performance_and_spending/1079/payments_over_500,24-Mar-2021,Housing & Communities,GEESINK NORBA LTD,Neighbourhoods,576.49,Fire Service Workshops,2021P12_CR00329,102799
Sandwell Metropolitan Borough Council,http://www.sandwell.gov.uk/info/200202/performance_and_spending/1079/payments_over_500,03-Mar-2021,Housing & Communities,INNOVATIVE SAFETY SYSTEMS LIMITED,Neighbourhoods,584.50,Fire Service Workshops,2021P12_CR00330,111546
Sandwell Metropolitan Borough Council,http://www.sandwell.gov.uk/info/200202/performance_and_spending/1079/payments_over_500,11-Mar-2021,Housing & Communities,PUGH'S PLANT HIRE,Neighbourhoods,600.00,Vehicle Hiring Charges,2021P12_CR00331,147204
Sandwell Metropolitan Borough Council,http://www.sandwell.gov.uk/info/200202/performance_and_spending/1079/payments_over_500,11-Mar-2021,Housing & Communities,PUGH'S PLANT HIRE,Neighbourhoods,600.00,Vehicle Hiring Charges,2021P12_CR00332,147204
Sandwell Metropolitan Borough Council,http://www.sandwell.gov.uk/info/200202/performance_and_spending/1079/payments_over_500,10-Mar-2021,Housing & Communities,RENAULT RETAIL GROUP UK LTD,Neighbourhoods,602.93,Fire Service Workshops,2021P12_CR00333,141243
Sandwell Metropolitan Borough Council,http://www.sandwell.gov.uk/info/200202/performance_and_spending/1079/payments_over_500,01-Mar-2021,Housing & Communities,JAMES LISTER & SONS LTD,Neighbourhoods,605.90,Fire Service Workshops,2021P12_CR00334,01021821
Sandwell Metropolitan Borough Council,http://www.sandwell.gov.uk/info/200202/performance_and_spending/1079/payments_over_500,01-Mar-2021,Housing & Communities,RS COMPONENTS LTD,Neighbourhoods,649.75,Fire Service Workshops,2021P12_CR00335,01665835
Sandwell Metropolitan Borough Council,http://www.sandwell.gov.uk/info/200202/performance_and_spending/1079/payments_over_500,01-Mar-2021,Housing & Communities,DENNIS EAGLE LTD,Neighbourhoods,658.42,Fire Service Workshops,2021P12_CR00336,01004865
Sandwell Metropolitan Borough Council,http://www.sandwell.gov.uk/info/200202/performance_and_spending/1079/payments_over_500,05-Mar-2021,Housing & Communities,TH WHITE LIMITED,Neighbourhoods,661.33,Fire Service Workshops,2021P12_CR00337,01774713
Sandwell Metropolitan Borough Council,http://www.sandwell.gov.uk/info/200202/performance_and_spending/1079/payments_over_500,03-Mar-2021,Housing & Communities,H L SMITH (TRANSMISSIONS) LTD,Neighbourhoods,675.00,Fire Service Workshops,2021P12_CR00338,01032886
Sandwell Metropolitan Borough Council,http://www.sandwell.gov.uk/info/200202/performance_and_spending/1079/payments_over_500,24-Mar-2021,Housing & Communities,H L SMITH (TRANSMISSIONS) LTD,Neighbourhoods,675.00,Fire Service Workshops,2021P12_CR00339,01032886
Sandwell Metropolitan Borough Council,http://www.sandwell.gov.uk/info/200202/performance_and_spending/1079/payments_over_500,05-Mar-2021,Housing & Communities,TH WHITE LIMITED,Neighbourhoods,679.78,Fire Service Workshops,2021P12_CR00340,01774713
Sandwell Metropolitan Borough Council,http://www.sandwell.gov.uk/info/200202/performance_and_spending/1079/payments_over_500,01-Mar-2021,Housing & Communities,RVW PUGH LTD,Neighbourhoods,698.78,Fire Service Workshops,2021P12_CR00341,5902
Sandwell Metropolitan Borough Council,http://www.sandwell.gov.uk/info/200202/performance_and_spending/1079/payments_over_500,17-Mar-2021,Housing & Communities,TH WHITE LIMITED,Neighbourhoods,750.03,Fire Service Workshops,2021P12_CR00342,01774713
Sandwell Metropolitan Borough Council,http://www.sandwell.gov.uk/info/200202/performance_and_spending/1079/payments_over_500,09-Mar-2021,Housing & Communities,FR SHARROCK LTD,Neighbourhoods,750.62,Repairs & Maintenance,2021P12_CR00343,01496028
Sandwell Metropolitan Borough Council,http://www.sandwell.gov.uk/info/200202/performance_and_spending/1079/payments_over_500,02-Mar-2021,Housing & Communities,KRP SUPPLIES LTD,Neighbourhoods,751.70,Fire Service Workshops,2021P12_CR00344,139179
Sandwell Metropolitan Borough Council,http://www.sandwell.gov.uk/info/200202/performance_and_spending/1079/payments_over_500,09-Mar-2021,Housing & Communities,DENNIS EAGLE LTD,Neighbourhoods,759.06,Fire Service Workshops,2021P12_CR00345,01004865
Sandwell Metropolitan Borough Council,http://www.sandwell.gov.uk/info/200202/performance_and_spending/1079/payments_over_500,23-Mar-2021,Housing & Communities,MOTUS COMMERCIALS HALESOWEN,Neighbourhoods,779.10,Fire Service Workshops,2021P12_CR00346,142253
Sandwell Metropolitan Borough Council,http://www.sandwell.gov.uk/info/200202/performance_and_spending/1079/payments_over_500,01-Mar-2021,Housing & Communities,AUTOWASH ENGINEERING LIMITED,Neighbourhoods,816.00,Subscriptions,2021P12_CR00347,99641
Sandwell Metropolitan Borough Council,http://www.sandwell.gov.uk/info/200202/performance_and_spending/1079/payments_over_500,02-Mar-2021,Housing & Communities,BUCHER MUNICIPAL LTD,Neighbourhoods,820.90,Fire Service Workshops,2021P12_CR00348,01053625
Sandwell Metropolitan Borough Council,http://www.sandwell.gov.uk/info/200202/performance_and_spending/1079/payments_over_500,01-Mar-2021,Housing & Communities,JAMES LISTER & SONS LTD,Neighbourhoods,821.13,Fire Service Workshops,2021P12_CR00349,01021821
Sandwell Metropolitan Borough Council,http://www.sandwell.gov.uk/info/200202/performance_and_spending/1079/payments_over_500,10-Mar-2021,Housing & Communities,GEESINK NORBA LTD,Neighbourhoods,831.17,Fire Service Workshops,2021P12_CR00350,102799
Sandwell Metropolitan Borough Council,http://www.sandwell.gov.uk/info/200202/performance_and_spending/1079/payments_over_500,02-Mar-2021,Housing & Communities,FAROL LIMITED,Neighbourhoods,844.00,Equipment & Furniture ,2021P12_CR00351,99987
Sandwell Metropolitan Borough Council,http://www.sandwell.gov.uk/info/200202/performance_and_spending/1079/payments_over_500,10-Mar-2021,Housing & Communities,BUCHER MUNICIPAL LTD,Neighbourhoods,851.12,Fire Service Workshops,2021P12_CR00352,01053625
Sandwell Metropolitan Borough Council,http://www.sandwell.gov.uk/info/200202/performance_and_spending/1079/payments_over_500,03-Mar-2021,Housing & Communities,BOB RICHARDSON TOOLS & FASTENERS LTD,Neighbourhoods,874.17,Fire Service Workshops,2021P12_CR00353,01082705
Sandwell Metropolitan Borough Council,http://www.sandwell.gov.uk/info/200202/performance_and_spending/1079/payments_over_500,01-Mar-2021,Housing & Communities,TEL SERVICES,Neighbourhoods,886.80,Fire Service Workshops,2021P12_CR00354,84262
Sandwell Metropolitan Borough Council,http://www.sandwell.gov.uk/info/200202/performance_and_spending/1079/payments_over_500,08-Mar-2021,Housing & Communities,TERBERG MATEC UK LTD,Neighbourhoods,902.62,Fire Service Workshops,2021P12_CR00355,21235
Sandwell Metropolitan Borough Council,http://www.sandwell.gov.uk/info/200202/performance_and_spending/1079/payments_over_500,02-Mar-2021,Housing & Communities,GEESINK NORBA LTD,Neighbourhoods,909.26,Fire Service Workshops,2021P12_CR00356,102799
Sandwell Metropolitan Borough Council,http://www.sandwell.gov.uk/info/200202/performance_and_spending/1079/payments_over_500,01-Mar-2021,Housing & Communities,GREENHOUS VOLKSWAGEN VAN CENTRE,Neighbourhoods,916.12,Fire Service Workshops,2021P12_CR00357,107728
Sandwell Metropolitan Borough Council,http://www.sandwell.gov.uk/info/200202/performance_and_spending/1079/payments_over_500,02-Mar-2021,Housing & Communities,FAROL LIMITED,Neighbourhoods,918.00,Equipment & Furniture ,2021P12_CR00358,99987
Sandwell Metropolitan Borough Council,http://www.sandwell.gov.uk/info/200202/performance_and_spending/1079/payments_over_500,01-Mar-2021,Housing & Communities,MACKWORTH VEHICLE CONVERSIONS,Neighbourhoods,940.00,Fire Service Workshops,2021P12_CR00359,124922
Sandwell Metropolitan Borough Council,http://www.sandwell.gov.uk/info/200202/performance_and_spending/1079/payments_over_500,01-Mar-2021,Housing & Communities,PHS BESAFE,Neighbourhoods,972.26,Laundry,2021P12_CR00360,124613
Sandwell Metropolitan Borough Council,http://www.sandwell.gov.uk/info/200202/performance_and_spending/1079/payments_over_500,01-Mar-2021,Housing & Communities,ACCESSHIRE NATIONWIDE,Neighbourhoods,1062.00,Vehicle Hiring Charges,2021P12_CR00361,123955
Sandwell Metropolitan Borough Council,http://www.sandwell.gov.uk/info/200202/performance_and_spending/1079/payments_over_500,10-Mar-2021,Housing & Communities,ROBERT CARTER (MF) LTD,Neighbourhoods,1076.92,Fire Service Workshops,2021P12_CR00362,136069
Sandwell Metropolitan Borough Council,http://www.sandwell.gov.uk/info/200202/performance_and_spending/1079/payments_over_500,18-Mar-2021,Housing & Communities,DENNIS EAGLE LTD,Neighbourhoods,1083.73,Fire Service Workshops,2021P12_CR00363,01004865
Sandwell Metropolitan Borough Council,http://www.sandwell.gov.uk/info/200202/performance_and_spending/1079/payments_over_500,25-Mar-2021,Housing & Communities,DENNIS EAGLE LTD,Neighbourhoods,1115.04,Fire Service Workshops,2021P12_CR00364,01004865
Sandwell Metropolitan Borough Council,http://www.sandwell.gov.uk/info/200202/performance_and_spending/1079/payments_over_500,01-Mar-2021,Housing & Communities,TAYLOR ENGINEERING & FABRICATIONS LTD,Neighbourhoods,1128.00,Fire Service Workshops,2021P12_CR00365,87793
Sandwell Metropolitan Borough Council,http://www.sandwell.gov.uk/info/200202/performance_and_spending/1079/payments_over_500,11-Mar-2021,Housing & Communities,FUCHS LUBRICANTS (UK) LTD,Neighbourhoods,1133.00,Fire Service Workshops,2021P12_CR00366,130133
Sandwell Metropolitan Borough Council,http://www.sandwell.gov.uk/info/200202/performance_and_spending/1079/payments_over_500,01-Mar-2021,Housing & Communities,DENNIS EAGLE LTD,Neighbourhoods,1218.41,Fire Service Workshops,2021P12_CR00367,01004865
Sandwell Metropolitan Borough Council,http://www.sandwell.gov.uk/info/200202/performance_and_spending/1079/payments_over_500,01-Mar-2021,Housing & Communities,BUCHER MUNICIPAL LTD,Neighbourhoods,1237.31,Fire Service Workshops,2021P12_CR00368,01053625
Sandwell Metropolitan Borough Council,http://www.sandwell.gov.uk/info/200202/performance_and_spending/1079/payments_over_500,01-Mar-2021,Housing & Communities,DENNIS EAGLE LTD,Neighbourhoods,1263.12,Fire Service Workshops,2021P12_CR00369,01004865
Sandwell Metropolitan Borough Council,http://www.sandwell.gov.uk/info/200202/performance_and_spending/1079/payments_over_500,25-Mar-2021,Housing & Communities,DENNIS EAGLE LTD,Neighbourhoods,1263.12,Fire Service Workshops,2021P12_CR00370,01004865
Sandwell Metropolitan Borough Council,http://www.sandwell.gov.uk/info/200202/performance_and_spending/1079/payments_over_500,03-Mar-2021,Housing & Communities,SPENCER SIGNS UK LTD,Neighbourhoods,1291.00,Fire Service Workshops,2021P12_CR00371,124882
Sandwell Metropolitan Borough Council,http://www.sandwell.gov.uk/info/200202/performance_and_spending/1079/payments_over_500,10-Mar-2021,Housing & Communities,MIDLAND TRUCK & VAN LTD,Neighbourhoods,1458.00,Fire Service Workshops,2021P12_CR00372,128784
Sandwell Metropolitan Borough Council,http://www.sandwell.gov.uk/info/200202/performance_and_spending/1079/payments_over_500,10-Mar-2021,Housing & Communities,RYGOR COMMERCIALS LTD,Neighbourhoods,1522.80,Fire Service Workshops,2021P12_CR00373,3345
Sandwell Metropolitan Borough Council,http://www.sandwell.gov.uk/info/200202/performance_and_spending/1079/payments_over_500,11-Mar-2021,Housing & Communities,CATHEDRAL MOTOR COMPANY LIMITED (T/A ARBURY FLEET),Neighbourhoods,1739.48,Fire Service Workshops,2021P12_CR00374,123099
Sandwell Metropolitan Borough Council,http://www.sandwell.gov.uk/info/200202/performance_and_spending/1079/payments_over_500,02-Mar-2021,Housing & Communities,GEESINK NORBA LTD,Neighbourhoods,1741.03,Fire Service Workshops,2021P12_CR00375,102799
Sandwell Metropolitan Borough Council,http://www.sandwell.gov.uk/info/200202/performance_and_spending/1079/payments_over_500,19-Mar-2021,Housing & Communities,DIRECT TYRE MANAGEMENT LTD,Neighbourhoods,1801.59,Tyres,2021P12_CR00376,134146
Sandwell Metropolitan Borough Council,http://www.sandwell.gov.uk/info/200202/performance_and_spending/1079/payments_over_500,12-Mar-2021,Housing & Communities,TERBERG MATEC UK LTD,Neighbourhoods,1805.81,Fire Service Workshops,2021P12_CR00377,21235
Sandwell Metropolitan Borough Council,http://www.sandwell.gov.uk/info/200202/performance_and_spending/1079/payments_over_500,01-Mar-2021,Housing & Communities,HARTSHORNE MOTOR SERVICES LTD                                   01,Neighbourhoods,2843.84,Fire Service Workshops,2021P12_CR00378,01508668
Sandwell Metropolitan Borough Council,http://www.sandwell.gov.uk/info/200202/performance_and_spending/1079/payments_over_500,19-Mar-2021,Housing & Communities,UNITT MOTOR SERVICES LTD,Neighbourhoods,3786.28,Fire Service Workshops,2021P12_CR00379,125911
Sandwell Metropolitan Borough Council,http://www.sandwell.gov.uk/info/200202/performance_and_spending/1079/payments_over_500,01-Mar-2021,Housing & Communities,HARTSHORNE MOTOR SERVICES LTD                                   01,Neighbourhoods,3934.33,Fire Service Workshops,2021P12_CR00380,01508668
Sandwell Metropolitan Borough Council,http://www.sandwell.gov.uk/info/200202/performance_and_spending/1079/payments_over_500,25-Mar-2021,Housing & Communities,COOPER MOBILE SERVICES LTD,Neighbourhoods,6769.25,Fire Service Workshops,2021P12_CR00381,01304378
Sandwell Metropolitan Borough Council,http://www.sandwell.gov.uk/info/200202/performance_and_spending/1079/payments_over_500,01-Mar-2021,Housing & Communities,ERNEST DOE & SONS LTD,Neighbourhoods,9250.00,Equipment & Furniture ,2021P12_CR00382,108676
Sandwell Metropolitan Borough Council,http://www.sandwell.gov.uk/info/200202/performance_and_spending/1079/payments_over_500,11-Mar-2021,Housing & Communities,EVANS HALSHAW RENAULT DONCASTER,Neighbourhoods,16840.03,Licences & Test Fees,2021P12_CR00383,151070
Sandwell Metropolitan Borough Council,http://www.sandwell.gov.uk/info/200202/performance_and_spending/1079/payments_over_500,15-Mar-2021,Housing & Communities,WEST WAY BIRMINGHAM,Neighbourhoods,19880.00,Licences & Test Fees,2021P12_CR00384,90607
Sandwell Metropolitan Borough Council,http://www.sandwell.gov.uk/info/200202/performance_and_spending/1079/payments_over_500,15-Mar-2021,Housing & Communities,WEST WAY BIRMINGHAM,Neighbourhoods,19880.00,Licences & Test Fees,2021P12_CR00385,90607
Sandwell Metropolitan Borough Council,http://www.sandwell.gov.uk/info/200202/performance_and_spending/1079/payments_over_500,15-Mar-2021,Housing & Communities,WEST WAY BIRMINGHAM,Neighbourhoods,19880.00,Licences & Test Fees,2021P12_CR00386,90607
Sandwell Metropolitan Borough Council,http://www.sandwell.gov.uk/info/200202/performance_and_spending/1079/payments_over_500,30-Mar-2021,Housing & Communities,MARSHALL PEUGEOT PETERBOROUGH,Neighbourhoods,20414.50,Licences & Test Fees,2021P12_CR00387,147845
Sandwell Metropolitan Borough Council,http://www.sandwell.gov.uk/info/200202/performance_and_spending/1079/payments_over_500,30-Mar-2021,Housing & Communities,MARSHALL PEUGEOT PETERBOROUGH,Neighbourhoods,20487.07,Licences & Test Fees,2021P12_CR00388,147845
Sandwell Metropolitan Borough Council,http://www.sandwell.gov.uk/info/200202/performance_and_spending/1079/payments_over_500,30-Mar-2021,Housing & Communities,MARSHALL PEUGEOT PETERBOROUGH,Neighbourhoods,20487.07,Licences & Test Fees,2021P12_CR00389,147845
Sandwell Metropolitan Borough Council,http://www.sandwell.gov.uk/info/200202/performance_and_spending/1079/payments_over_500,30-Mar-2021,Housing & Communities,MARSHALL PEUGEOT PETERBOROUGH,Neighbourhoods,20487.07,Licences & Test Fees,2021P12_CR00390,147845
Sandwell Metropolitan Borough Council,http://www.sandwell.gov.uk/info/200202/performance_and_spending/1079/payments_over_500,23-Mar-2021,Housing & Communities,OAKLEYS LTD,Neighbourhoods,21750.00,Equipment & Furniture ,2021P12_CR00391,01598115
Sandwell Metropolitan Borough Council,http://www.sandwell.gov.uk/info/200202/performance_and_spending/1079/payments_over_500,29-Mar-2021,Housing & Communities,MIDLAND TRUCK & VAN (SMETHWICK),Neighbourhoods,39983.00,Licences & Test Fees,2021P12_CR00392,150852
Sandwell Metropolitan Borough Council,http://www.sandwell.gov.uk/info/200202/performance_and_spending/1079/payments_over_500,01-Mar-2021,Housing & Communities,KB ELECTRICAL SOLUTIONS (WEST MIDLANDS) LTD,Neighbourhoods,500.00,Civic Events,2021P12_CR00393,150663
Sandwell Metropolitan Borough Council,http://www.sandwell.gov.uk/info/200202/performance_and_spending/1079/payments_over_500,01-Mar-2021,Housing & Communities,WERNICK EVENT HIRE LTD,Neighbourhoods,500.00,Materials & Consumables,2021P12_CR00394,60820
Sandwell Metropolitan Borough Council,http://www.sandwell.gov.uk/info/200202/performance_and_spending/1079/payments_over_500,01-Mar-2021,Housing & Communities,BUCKS HOUSING LTD T/A HAGLEY HOTEL,Neighbourhoods,500.00,Rents,2021P12_CR00395,143677
Sandwell Metropolitan Borough Council,http://www.sandwell.gov.uk/info/200202/performance_and_spending/1079/payments_over_500,01-Mar-2021,Housing & Communities,BUCKS HOUSING LTD T/A HAGLEY HOTEL,Neighbourhoods,500.00,Rents,2021P12_CR00396,143677
Sandwell Metropolitan Borough Council,http://www.sandwell.gov.uk/info/200202/performance_and_spending/1079/payments_over_500,01-Mar-2021,Housing & Communities,BUCKS HOUSING LTD T/A HAGLEY HOTEL,Neighbourhoods,500.00,Rents,2021P12_CR00397,143677
Sandwell Metropolitan Borough Council,http://www.sandwell.gov.uk/info/200202/performance_and_spending/1079/payments_over_500,01-Mar-2021,Housing & Communities,REDACTED PERSONAL DATA,Neighbourhoods,500.00,Tenants Expenses,2021P12_CR00398,REDACTED PERSONAL DATA
Sandwell Metropolitan Borough Council,http://www.sandwell.gov.uk/info/200202/performance_and_spending/1079/payments_over_500,01-Mar-2021,Housing & Communities,MANOR ABBEY FOODS LTD,Neighbourhoods,501.11,Catering Provisions,2021P12_CR00399,63063
Sandwell Metropolitan Borough Council,http://www.sandwell.gov.uk/info/200202/performance_and_spending/1079/payments_over_500,18-Mar-2021,Housing & Communities,CONTRACT LETTINGS LTD,Neighbourhoods,505.68,Rents,2021P12_CR00400,76625
Sandwell Metropolitan Borough Council,http://www.sandwell.gov.uk/info/200202/performance_and_spending/1079/payments_over_500,01-Mar-2021,Housing & Communities,BEECHWOOD TREES & LANDSCAPE LTD,Neighbourhoods,509.50,Externally Purchased Professional Services ,2021P12_CR00401,93287
Sandwell Metropolitan Borough Council,http://www.sandwell.gov.uk/info/200202/performance_and_spending/1079/payments_over_500,10-Mar-2021,Housing & Communities,MIDLAND FORESTRY LIMITED,Neighbourhoods,511.00,Externally Purchased Professional Services ,2021P12_CR00402,45812
Sandwell Metropolitan Borough Council,http://www.sandwell.gov.uk/info/200202/performance_and_spending/1079/payments_over_500,22-Mar-2021,Housing & Communities,CITRON HYGIENE UK LTD,Neighbourhoods,512.10,Materials & Consumables,2021P12_CR00403,140849
Sandwell Metropolitan Borough Council,http://www.sandwell.gov.uk/info/200202/performance_and_spending/1079/payments_over_500,01-Mar-2021,Housing & Communities,MANOR ABBEY FOODS LTD,Neighbourhoods,515.06,Catering Provisions,2021P12_CR00404,63063
Sandwell Metropolitan Borough Council,http://www.sandwell.gov.uk/info/200202/performance_and_spending/1079/payments_over_500,09-Mar-2021,Housing & Communities,VENDAID LTD,Neighbourhoods,515.73,Catering Provisions,2021P12_CR00405,01045695
Sandwell Metropolitan Borough Council,http://www.sandwell.gov.uk/info/200202/performance_and_spending/1079/payments_over_500,01-Mar-2021,Housing & Communities,BOLINDA UK LTD,Neighbourhoods,519.29,Materials & Consumables,2021P12_CR00406,117408
Sandwell Metropolitan Borough Council,http://www.sandwell.gov.uk/info/200202/performance_and_spending/1079/payments_over_500,01-Mar-2021,Housing & Communities,SHOW & EVENTS SECURITY LIMITED,Neighbourhoods,520.00,Security,2021P12_CR00407,131547
Sandwell Metropolitan Borough Council,http://www.sandwell.gov.uk/info/200202/performance_and_spending/1079/payments_over_500,10-Mar-2021,Housing & Communities,MIDLAND FORESTRY LIMITED,Neighbourhoods,522.00,Externally Purchased Professional Services ,2021P12_CR00408,45812
Sandwell Metropolitan Borough Council,http://www.sandwell.gov.uk/info/200202/performance_and_spending/1079/payments_over_500,01-Mar-2021,Housing & Communities,GILANI ENTERPRISES LIMITED,Neighbourhoods,523.81,Rents,2021P12_CR00409,2696
Sandwell Metropolitan Borough Council,http://www.sandwell.gov.uk/info/200202/performance_and_spending/1079/payments_over_500,01-Mar-2021,Housing & Communities,BUCKS HOUSING LTD T/A HAGLEY HOTEL,Neighbourhoods,525.00,Rents,2021P12_CR00410,143677
Sandwell Metropolitan Borough Council,http://www.sandwell.gov.uk/info/200202/performance_and_spending/1079/payments_over_500,23-Mar-2021,Housing & Communities,RIGBY TAYLOR LTD,Neighbourhoods,528.00,Grounds Maintenance & Improvements,2021P12_CR00411,01076172
Sandwell Metropolitan Borough Council,http://www.sandwell.gov.uk/info/200202/performance_and_spending/1079/payments_over_500,01-Mar-2021,Housing & Communities,ID SECURITY SYSTEMS LIMITED,Neighbourhoods,535.00,Security,2021P12_CR00412,118533
Sandwell Metropolitan Borough Council,http://www.sandwell.gov.uk/info/200202/performance_and_spending/1079/payments_over_500,10-Mar-2021,Housing & Communities,MIDLAND FORESTRY LIMITED,Neighbourhoods,548.00,Externally Purchased Professional Services ,2021P12_CR00413,45812
Sandwell Metropolitan Borough Council,http://www.sandwell.gov.uk/info/200202/performance_and_spending/1079/payments_over_500,04-Mar-2021,Housing & Communities,BEECHWOOD TREES & LANDSCAPE LTD,Neighbourhoods,562.50,Externally Purchased Professional Services ,2021P12_CR00414,93287
Sandwell Metropolitan Borough Council,http://www.sandwell.gov.uk/info/200202/performance_and_spending/1079/payments_over_500,01-Mar-2021,Housing & Communities,XMA LTD,Neighbourhoods,566.10,ICT ,2021P12_CR00415,01135462
Sandwell Metropolitan Borough Council,http://www.sandwell.gov.uk/info/200202/performance_and_spending/1079/payments_over_500,01-Mar-2021,Housing & Communities,GILANI ENTERPRISES LIMITED,Neighbourhoods,571.43,Rents,2021P12_CR00416,2696
Sandwell Metropolitan Borough Council,http://www.sandwell.gov.uk/info/200202/performance_and_spending/1079/payments_over_500,10-Mar-2021,Housing & Communities,REDACTED PERSONAL DATA,Neighbourhoods,575.00,Tenants Expenses,2021P12_CR00417,REDACTED PERSONAL DATA
Sandwell Metropolitan Borough Council,http://www.sandwell.gov.uk/info/200202/performance_and_spending/1079/payments_over_500,12-Mar-2021,Housing & Communities,BEECHWOOD TREES & LANDSCAPE LTD,Neighbourhoods,582.50,Externally Purchased Professional Services ,2021P12_CR00418,93287
Sandwell Metropolitan Borough Council,http://www.sandwell.gov.uk/info/200202/performance_and_spending/1079/payments_over_500,01-Mar-2021,Housing & Communities,A E CHAPMAN & CO (OLD HILL) LTD,Neighbourhoods,584.03,Equipment & Furniture ,2021P12_CR00419,77001665
Sandwell Metropolitan Borough Council,http://www.sandwell.gov.uk/info/200202/performance_and_spending/1079/payments_over_500,10-Mar-2021,Housing & Communities,MIDLAND FORESTRY LIMITED,Neighbourhoods,594.00,Externally Purchased Professional Services ,2021P12_CR00420,45812
Sandwell Metropolitan Borough Council,http://www.sandwell.gov.uk/info/200202/performance_and_spending/1079/payments_over_500,01-Mar-2021,Housing & Communities,BUCKS HOUSING LTD T/A HAGLEY HOTEL,Neighbourhoods,595.00,Rents,2021P12_CR00421,143677
Sandwell Metropolitan Borough Council,http://www.sandwell.gov.uk/info/200202/performance_and_spending/1079/payments_over_500,01-Mar-2021,Housing & Communities,BUCKS HOUSING LTD T/A HAGLEY HOTEL,Neighbourhoods,595.00,Rents,2021P12_CR00422,143677
Sandwell Metropolitan Borough Council,http://www.sandwell.gov.uk/info/200202/performance_and_spending/1079/payments_over_500,01-Mar-2021,Housing & Communities,GILANI ENTERPRISES LIMITED,Neighbourhoods,619.05,Rents,2021P12_CR00423,2696
Sandwell Metropolitan Borough Council,http://www.sandwell.gov.uk/info/200202/performance_and_spending/1079/payments_over_500,01-Mar-2021,Housing & Communities,BEECHWOOD TREES & LANDSCAPE LTD,Neighbourhoods,627.50,Externally Purchased Professional Services ,2021P12_CR00424,93287
Sandwell Metropolitan Borough Council,http://www.sandwell.gov.uk/info/200202/performance_and_spending/1079/payments_over_500,18-Mar-2021,Housing & Communities,CONTRACT LETTINGS LTD,Neighbourhoods,633.36,Rents,2021P12_CR00425,76625
Sandwell Metropolitan Borough Council,http://www.sandwell.gov.uk/info/200202/performance_and_spending/1079/payments_over_500,18-Mar-2021,Housing & Communities,CONTRACT LETTINGS LTD,Neighbourhoods,633.36,Rents,2021P12_CR00426,76625
Sandwell Metropolitan Borough Council,http://www.sandwell.gov.uk/info/200202/performance_and_spending/1079/payments_over_500,18-Mar-2021,Housing & Communities,CONTRACT LETTINGS LTD,Neighbourhoods,633.36,Rents,2021P12_CR00427,76625
Sandwell Metropolitan Borough Council,http://www.sandwell.gov.uk/info/200202/performance_and_spending/1079/payments_over_500,18-Mar-2021,Housing & Communities,CONTRACT LETTINGS LTD,Neighbourhoods,633.36,Rents,2021P12_CR00428,76625
Sandwell Metropolitan Borough Council,http://www.sandwell.gov.uk/info/200202/performance_and_spending/1079/payments_over_500,18-Mar-2021,Housing & Communities,CONTRACT LETTINGS LTD,Neighbourhoods,633.36,Rents,2021P12_CR00429,76625
Sandwell Metropolitan Borough Council,http://www.sandwell.gov.uk/info/200202/performance_and_spending/1079/payments_over_500,18-Mar-2021,Housing & Communities,CONTRACT LETTINGS LTD,Neighbourhoods,633.36,Rents,2021P12_CR00430,76625
Sandwell Metropolitan Borough Council,http://www.sandwell.gov.uk/info/200202/performance_and_spending/1079/payments_over_500,09-Mar-2021,Housing & Communities,VENDAID LTD,Neighbourhoods,653.28,Catering Provisions,2021P12_CR00431,01045695
Sandwell Metropolitan Borough Council,http://www.sandwell.gov.uk/info/200202/performance_and_spending/1079/payments_over_500,01-Mar-2021,Housing & Communities,AIREY CONSULTANCY SERVICES LTD,Neighbourhoods,675.00,Externally Purchased Professional Services ,2021P12_CR00432,01746505
Sandwell Metropolitan Borough Council,http://www.sandwell.gov.uk/info/200202/performance_and_spending/1079/payments_over_500,05-Mar-2021,Housing & Communities,USMAN BROTHERS LTD,Neighbourhoods,675.00,Tenants Expenses,2021P12_CR00433,150320
Sandwell Metropolitan Borough Council,http://www.sandwell.gov.uk/info/200202/performance_and_spending/1079/payments_over_500,01-Mar-2021,Housing & Communities,WYNNSTAY (AGRICULTURAL SUPPLIES) LIMITED,Neighbourhoods,685.47,Externally Purchased Professional Services ,2021P12_CR00434,121165
Sandwell Metropolitan Borough Council,http://www.sandwell.gov.uk/info/200202/performance_and_spending/1079/payments_over_500,01-Mar-2021,Housing & Communities,GILANI ENTERPRISES LIMITED,Neighbourhoods,685.71,Rents,2021P12_CR00435,2696
Sandwell Metropolitan Borough Council,http://www.sandwell.gov.uk/info/200202/performance_and_spending/1079/payments_over_500,18-Mar-2021,Housing & Communities,CONTRACT LETTINGS LTD,Neighbourhoods,689.36,Rents,2021P12_CR00436,76625
Sandwell Metropolitan Borough Council,http://www.sandwell.gov.uk/info/200202/performance_and_spending/1079/payments_over_500,18-Mar-2021,Housing & Communities,CONTRACT LETTINGS LTD,Neighbourhoods,689.36,Rents,2021P12_CR00437,76625
Sandwell Metropolitan Borough Council,http://www.sandwell.gov.uk/info/200202/performance_and_spending/1079/payments_over_500,01-Mar-2021,Housing & Communities,ACORN ENVIRONMENTAL MANAGEMENT GROUP LIMITED,Neighbourhoods,694.72,Externally Purchased Professional Services ,2021P12_CR00438,24254
Sandwell Metropolitan Borough Council,http://www.sandwell.gov.uk/info/200202/performance_and_spending/1079/payments_over_500,15-Mar-2021,Housing & Communities,XL CARS GROUP LTD,Neighbourhoods,696.00,Public Transport,2021P12_CR00439,141083
Sandwell Metropolitan Borough Council,http://www.sandwell.gov.uk/info/200202/performance_and_spending/1079/payments_over_500,18-Mar-2021,Housing & Communities,CONTRACT LETTINGS LTD,Neighbourhoods,697.20,Rents,2021P12_CR00440,76625
Sandwell Metropolitan Borough Council,http://www.sandwell.gov.uk/info/200202/performance_and_spending/1079/payments_over_500,18-Mar-2021,Housing & Communities,CONTRACT LETTINGS LTD,Neighbourhoods,697.20,Rents,2021P12_CR00441,76625
Sandwell Metropolitan Borough Council,http://www.sandwell.gov.uk/info/200202/performance_and_spending/1079/payments_over_500,02-Mar-2021,Housing & Communities,SERCO LIMITED,Neighbourhoods,698.45,Waste Disposal Charges,2021P12_CR00442,53771
Sandwell Metropolitan Borough Council,http://www.sandwell.gov.uk/info/200202/performance_and_spending/1079/payments_over_500,18-Mar-2021,Housing & Communities,CONTRACT LETTINGS LTD,Neighbourhoods,717.36,Rents,2021P12_CR00443,76625
Sandwell Metropolitan Borough Council,http://www.sandwell.gov.uk/info/200202/performance_and_spending/1079/payments_over_500,18-Mar-2021,Housing & Communities,CONTRACT LETTINGS LTD,Neighbourhoods,717.36,Rents,2021P12_CR00444,76625
Sandwell Metropolitan Borough Council,http://www.sandwell.gov.uk/info/200202/performance_and_spending/1079/payments_over_500,03-Mar-2021,Housing & Communities,BEECHWOOD TREES & LANDSCAPE LTD,Neighbourhoods,730.00,Externally Purchased Professional Services ,2021P12_CR00445,93287
Sandwell Metropolitan Borough Council,http://www.sandwell.gov.uk/info/200202/performance_and_spending/1079/payments_over_500,22-Mar-2021,Housing & Communities,MARKETING FORCE LIMITED,Neighbourhoods,733.00,"Printing, Stationery & General Office Expenses",2021P12_CR00446,129573
Sandwell Metropolitan Borough Council,http://www.sandwell.gov.uk/info/200202/performance_and_spending/1079/payments_over_500,11-Mar-2021,Housing & Communities,TOTAL GAS AND POWER LIMITED,Neighbourhoods,748.64,Gas,2021P12_CR00447,107605
Sandwell Metropolitan Borough Council,http://www.sandwell.gov.uk/info/200202/performance_and_spending/1079/payments_over_500,11-Mar-2021,Housing & Communities,BEECHWOOD TREES & LANDSCAPE LTD,Neighbourhoods,760.00,Externally Purchased Professional Services ,2021P12_CR00448,93287
Sandwell Metropolitan Borough Council,http://www.sandwell.gov.uk/info/200202/performance_and_spending/1079/payments_over_500,01-Mar-2021,Housing & Communities,GILANI ENTERPRISES LIMITED,Neighbourhoods,761.90,Rents,2021P12_CR00449,2696
Sandwell Metropolitan Borough Council,http://www.sandwell.gov.uk/info/200202/performance_and_spending/1079/payments_over_500,10-Mar-2021,Housing & Communities,MIDLAND FORESTRY LIMITED,Neighbourhoods,783.00,Externally Purchased Professional Services ,2021P12_CR00450,45812
Sandwell Metropolitan Borough Council,http://www.sandwell.gov.uk/info/200202/performance_and_spending/1079/payments_over_500,01-Mar-2021,Housing & Communities,CERTAS ENERGY LIMITED,Neighbourhoods,787.79,Oil,2021P12_CR00451,80421
Sandwell Metropolitan Borough Council,http://www.sandwell.gov.uk/info/200202/performance_and_spending/1079/payments_over_500,01-Mar-2021,Housing & Communities,ANDY LOOS LTD,Neighbourhoods,794.00,Materials & Consumables,2021P12_CR00452,36397
Sandwell Metropolitan Borough Council,http://www.sandwell.gov.uk/info/200202/performance_and_spending/1079/payments_over_500,01-Mar-2021,Housing & Communities,BOLINDA UK LTD,Neighbourhoods,796.77,Materials & Consumables,2021P12_CR00453,117408
Sandwell Metropolitan Borough Council,http://www.sandwell.gov.uk/info/200202/performance_and_spending/1079/payments_over_500,01-Mar-2021,Housing & Communities,GILANI ENTERPRISES LIMITED,Neighbourhoods,800.00,Rents,2021P12_CR00454,2696
Sandwell Metropolitan Borough Council,http://www.sandwell.gov.uk/info/200202/performance_and_spending/1079/payments_over_500,01-Mar-2021,Housing & Communities,GILANI ENTERPRISES LIMITED,Neighbourhoods,800.00,Rents,2021P12_CR00455,2696
Sandwell Metropolitan Borough Council,http://www.sandwell.gov.uk/info/200202/performance_and_spending/1079/payments_over_500,22-Mar-2021,Housing & Communities,EVAC+CHAIR INTERNATIONAL LIMITED,Neighbourhoods,814.50,Equipment & Furniture ,2021P12_CR00456,01523274
Sandwell Metropolitan Borough Council,http://www.sandwell.gov.uk/info/200202/performance_and_spending/1079/payments_over_500,13-Mar-2021,Housing & Communities,TOTAL GAS AND POWER LIMITED,Neighbourhoods,829.43,Electricity,2021P12_CR00457,107605
Sandwell Metropolitan Borough Council,http://www.sandwell.gov.uk/info/200202/performance_and_spending/1079/payments_over_500,01-Mar-2021,Housing & Communities,GILANI ENTERPRISES LIMITED,Neighbourhoods,857.14,Rents,2021P12_CR00458,2696
Sandwell Metropolitan Borough Council,http://www.sandwell.gov.uk/info/200202/performance_and_spending/1079/payments_over_500,01-Mar-2021,Housing & Communities,CERTAS ENERGY LIMITED,Neighbourhoods,858.43,Oil,2021P12_CR00459,80421
Sandwell Metropolitan Borough Council,http://www.sandwell.gov.uk/info/200202/performance_and_spending/1079/payments_over_500,01-Mar-2021,Housing & Communities,XMA LTD,Neighbourhoods,874.17,ICT ,2021P12_CR00460,01135462
Sandwell Metropolitan Borough Council,http://www.sandwell.gov.uk/info/200202/performance_and_spending/1079/payments_over_500,04-Mar-2021,Housing & Communities,BUCKS HOUSING LTD T/A HAGLEY HOTEL,Neighbourhoods,875.00,Rents,2021P12_CR00461,143677
Sandwell Metropolitan Borough Council,http://www.sandwell.gov.uk/info/200202/performance_and_spending/1079/payments_over_500,19-Mar-2021,Housing & Communities,CERTAS ENERGY LIMITED,Neighbourhoods,879.04,Oil,2021P12_CR00462,80421
Sandwell Metropolitan Borough Council,http://www.sandwell.gov.uk/info/200202/performance_and_spending/1079/payments_over_500,01-Mar-2021,Housing & Communities,MIDLAND FORESTRY LIMITED,Neighbourhoods,880.00,Externally Purchased Professional Services ,2021P12_CR00463,45812
Sandwell Metropolitan Borough Council,http://www.sandwell.gov.uk/info/200202/performance_and_spending/1079/payments_over_500,01-Mar-2021,Housing & Communities,WATER PLUS SELECT LIMITED,Neighbourhoods,880.49,Water Services,2021P12_CR00464,129644
Sandwell Metropolitan Borough Council,http://www.sandwell.gov.uk/info/200202/performance_and_spending/1079/payments_over_500,01-Mar-2021,Housing & Communities,PINSENT MASON LLP,Neighbourhoods,902.70,Externally Purchased Professional Services ,2021P12_CR00465,47648
Sandwell Metropolitan Borough Council,http://www.sandwell.gov.uk/info/200202/performance_and_spending/1079/payments_over_500,01-Mar-2021,Housing & Communities,RIGHT TO CARE LTD.,Neighbourhoods,921.30,Rents,2021P12_CR00466,133426
Sandwell Metropolitan Borough Council,http://www.sandwell.gov.uk/info/200202/performance_and_spending/1079/payments_over_500,03-Mar-2021,Housing & Communities,BEECHWOOD TREES & LANDSCAPE LTD,Neighbourhoods,940.00,Externally Purchased Professional Services ,2021P12_CR00467,93287
Sandwell Metropolitan Borough Council,http://www.sandwell.gov.uk/info/200202/performance_and_spending/1079/payments_over_500,01-Mar-2021,Housing & Communities,BOLINDA UK LTD,Neighbourhoods,943.29,Materials & Consumables,2021P12_CR00468,117408
Sandwell Metropolitan Borough Council,http://www.sandwell.gov.uk/info/200202/performance_and_spending/1079/payments_over_500,18-Mar-2021,Housing & Communities,MIDLAND FORESTRY LIMITED,Neighbourhoods,960.00,Externally Purchased Professional Services ,2021P12_CR00469,45812
Sandwell Metropolitan Borough Council,http://www.sandwell.gov.uk/info/200202/performance_and_spending/1079/payments_over_500,01-Mar-2021,Housing & Communities,MKG (FOOD PRODUCTS) LIMITED,Neighbourhoods,975.00,Catering Provisions,2021P12_CR00470,142083
Sandwell Metropolitan Borough Council,http://www.sandwell.gov.uk/info/200202/performance_and_spending/1079/payments_over_500,23-Mar-2021,Housing & Communities,THE PEOPLE'S ORCHESTRA LIMITED,Neighbourhoods,1000.00,Civic Events,2021P12_CR00471,122692
Sandwell Metropolitan Borough Council,http://www.sandwell.gov.uk/info/200202/performance_and_spending/1079/payments_over_500,01-Mar-2021,Housing & Communities,BOLINDA UK LTD,Neighbourhoods,1000.00,Materials & Consumables,2021P12_CR00472,117408
Sandwell Metropolitan Borough Council,http://www.sandwell.gov.uk/info/200202/performance_and_spending/1079/payments_over_500,03-Mar-2021,Housing & Communities,BUCKS HOUSING LTD T/A HAGLEY HOTEL,Neighbourhoods,1000.00,Rents,2021P12_CR00473,143677
Sandwell Metropolitan Borough Council,http://www.sandwell.gov.uk/info/200202/performance_and_spending/1079/payments_over_500,09-Mar-2021,Housing & Communities,VENDAID LTD,Neighbourhoods,1018.50,Materials & Consumables,2021P12_CR00474,01045695
Sandwell Metropolitan Borough Council,http://www.sandwell.gov.uk/info/200202/performance_and_spending/1079/payments_over_500,11-Mar-2021,Housing & Communities,MIDLAND FORESTRY LIMITED,Neighbourhoods,1028.00,Externally Purchased Professional Services ,2021P12_CR00475,45812
Sandwell Metropolitan Borough Council,http://www.sandwell.gov.uk/info/200202/performance_and_spending/1079/payments_over_500,01-Mar-2021,Housing & Communities,SUEZ RECYLING AND RECOVERY HOLDINGS UK LTD,Neighbourhoods,1030.83,Waste Disposal Charges,2021P12_CR00476,129939
Sandwell Metropolitan Borough Council,http://www.sandwell.gov.uk/info/200202/performance_and_spending/1079/payments_over_500,29-Mar-2021,Housing & Communities,SIMPLY PROPERTIES LTD,Neighbourhoods,1065.00,Tenants Expenses,2021P12_CR00477,141915
Sandwell Metropolitan Borough Council,http://www.sandwell.gov.uk/info/200202/performance_and_spending/1079/payments_over_500,01-Mar-2021,Housing & Communities,COOKE RUDLING LIMITED,Assistant Chief Executive (Excl SIU),1087.50,Externally Purchased Professional Services ,2021P12_CR00478,01577073
Sandwell Metropolitan Borough Council,http://www.sandwell.gov.uk/info/200202/performance_and_spending/1079/payments_over_500,17-Mar-2021,Housing & Communities,BEECHWOOD TREES & LANDSCAPE LTD,Neighbourhoods,1100.00,Externally Purchased Professional Services ,2021P12_CR00479,93287
Sandwell Metropolitan Borough Council,http://www.sandwell.gov.uk/info/200202/performance_and_spending/1079/payments_over_500,01-Mar-2021,Housing & Communities,CERTAS ENERGY LIMITED,Neighbourhoods,1125.72,Oil,2021P12_CR00480,80421
Sandwell Metropolitan Borough Council,http://www.sandwell.gov.uk/info/200202/performance_and_spending/1079/payments_over_500,01-Mar-2021,Housing & Communities,GILANI ENTERPRISES LIMITED,Neighbourhoods,1142.86,Rents,2021P12_CR00481,2696
Sandwell Metropolitan Borough Council,http://www.sandwell.gov.uk/info/200202/performance_and_spending/1079/payments_over_500,01-Mar-2021,Housing & Communities,WEST MIDLANDS HOUSING SOLUTIONS LTD,Neighbourhoods,1155.00,Equipment & Furniture ,2021P12_CR00482,150318
Sandwell Metropolitan Borough Council,http://www.sandwell.gov.uk/info/200202/performance_and_spending/1079/payments_over_500,01-Mar-2021,Housing & Communities,CERTAS ENERGY LIMITED,Neighbourhoods,1166.06,Oil,2021P12_CR00483,80421
Sandwell Metropolitan Borough Council,http://www.sandwell.gov.uk/info/200202/performance_and_spending/1079/payments_over_500,01-Mar-2021,Housing & Communities,BCH PROPERTY LIMITED,Neighbourhoods,1166.76,Rents,2021P12_CR00484,01011861
Sandwell Metropolitan Borough Council,http://www.sandwell.gov.uk/info/200202/performance_and_spending/1079/payments_over_500,17-Mar-2021,Housing & Communities,BEECHWOOD TREES & LANDSCAPE LTD,Neighbourhoods,1170.00,Externally Purchased Professional Services ,2021P12_CR00485,93287
Sandwell Metropolitan Borough Council,http://www.sandwell.gov.uk/info/200202/performance_and_spending/1079/payments_over_500,17-Mar-2021,Housing & Communities,BEECHWOOD TREES & LANDSCAPE LTD,Neighbourhoods,1180.00,Externally Purchased Professional Services ,2021P12_CR00486,93287
Sandwell Metropolitan Borough Council,http://www.sandwell.gov.uk/info/200202/performance_and_spending/1079/payments_over_500,08-Mar-2021,Housing & Communities,BEECHWOOD TREES & LANDSCAPE LTD,Neighbourhoods,1200.00,Externally Purchased Professional Services ,2021P12_CR00487,93287
Sandwell Metropolitan Borough Council,http://www.sandwell.gov.uk/info/200202/performance_and_spending/1079/payments_over_500,08-Mar-2021,Housing & Communities,TUDOR ENVIRONMENTAL,Neighbourhoods,1200.75,Materials & Consumables,2021P12_CR00488,01528713
Sandwell Metropolitan Borough Council,http://www.sandwell.gov.uk/info/200202/performance_and_spending/1079/payments_over_500,01-Mar-2021,Housing & Communities,WEST MIDLANDS HOUSING SOLUTIONS LTD,Neighbourhoods,1235.00,Equipment & Furniture ,2021P12_CR00489,150318
Sandwell Metropolitan Borough Council,http://www.sandwell.gov.uk/info/200202/performance_and_spending/1079/payments_over_500,01-Mar-2021,Housing & Communities,PROFILE SECURITY SERVICES LTD,Neighbourhoods,1236.90,Security,2021P12_CR00490,131253
Sandwell Metropolitan Borough Council,http://www.sandwell.gov.uk/info/200202/performance_and_spending/1079/payments_over_500,04-Mar-2021,Housing & Communities,FREIGHT SOURCE LOGISTICS LTD,Neighbourhoods,1265.00,Refuse Collection,2021P12_CR00491,150633
Sandwell Metropolitan Borough Council,http://www.sandwell.gov.uk/info/200202/performance_and_spending/1079/payments_over_500,09-Mar-2021,Housing & Communities,CERTAS ENERGY LIMITED,Neighbourhoods,1287.64,Oil,2021P12_CR00492,80421
Sandwell Metropolitan Borough Council,http://www.sandwell.gov.uk/info/200202/performance_and_spending/1079/payments_over_500,01-Mar-2021,Housing & Communities,BUCKS HOUSING LTD T/A HAGLEY HOTEL,Neighbourhoods,1375.00,Rents,2021P12_CR00493,143677
Sandwell Metropolitan Borough Council,http://www.sandwell.gov.uk/info/200202/performance_and_spending/1079/payments_over_500,01-Mar-2021,Housing & Communities,WEST MIDLANDS HOUSING SOLUTIONS LTD,Neighbourhoods,1380.00,Equipment & Furniture ,2021P12_CR00494,150318
Sandwell Metropolitan Borough Council,http://www.sandwell.gov.uk/info/200202/performance_and_spending/1079/payments_over_500,01-Mar-2021,Housing & Communities,CERTAS ENERGY LIMITED,Neighbourhoods,1399.50,Fuel ,2021P12_CR00495,80421
Sandwell Metropolitan Borough Council,http://www.sandwell.gov.uk/info/200202/performance_and_spending/1079/payments_over_500,02-Mar-2021,Housing & Communities,WEST MIDLANDS HOUSING SOLUTIONS LTD,Neighbourhoods,1410.00,Equipment & Furniture ,2021P12_CR00496,150318
Sandwell Metropolitan Borough Council,http://www.sandwell.gov.uk/info/200202/performance_and_spending/1079/payments_over_500,01-Mar-2021,Housing & Communities,WEST MIDLANDS HOUSING SOLUTIONS LTD,Neighbourhoods,1415.00,Equipment & Furniture ,2021P12_CR00497,150318
Sandwell Metropolitan Borough Council,http://www.sandwell.gov.uk/info/200202/performance_and_spending/1079/payments_over_500,01-Mar-2021,Housing & Communities,LINGWOOD SECURITY MANAGEMENT LTD,Neighbourhoods,1453.50,Civic Events,2021P12_CR00498,148787
Sandwell Metropolitan Borough Council,http://www.sandwell.gov.uk/info/200202/performance_and_spending/1079/payments_over_500,01-Mar-2021,Housing & Communities,WEST MIDLANDS HOUSING SOLUTIONS LTD,Neighbourhoods,1470.00,Equipment & Furniture ,2021P12_CR00499,150318
Sandwell Metropolitan Borough Council,http://www.sandwell.gov.uk/info/200202/performance_and_spending/1079/payments_over_500,01-Mar-2021,Housing & Communities,BCH PROPERTY LIMITED,Neighbourhoods,1500.12,Rents,2021P12_CR00500,01011861
Sandwell Metropolitan Borough Council,http://www.sandwell.gov.uk/info/200202/performance_and_spending/1079/payments_over_500,01-Mar-2021,Housing & Communities,WEST MIDLANDS HOUSING SOLUTIONS LTD,Neighbourhoods,1520.00,Equipment & Furniture ,2021P12_CR00501,150318
Sandwell Metropolitan Borough Council,http://www.sandwell.gov.uk/info/200202/performance_and_spending/1079/payments_over_500,01-Mar-2021,Housing & Communities,WEST MIDLANDS HOUSING SOLUTIONS LTD,Neighbourhoods,1520.00,Equipment & Furniture ,2021P12_CR00502,150318
Sandwell Metropolitan Borough Council,http://www.sandwell.gov.uk/info/200202/performance_and_spending/1079/payments_over_500,01-Mar-2021,Housing & Communities,HOME FARM NURSERIES (PINVIN) LIMITED,Neighbourhoods,1523.74,Operational Services ,2021P12_CR00503,77003445
Sandwell Metropolitan Borough Council,http://www.sandwell.gov.uk/info/200202/performance_and_spending/1079/payments_over_500,01-Mar-2021,Housing & Communities,GILANI ENTERPRISES LIMITED,Neighbourhoods,1600.00,Rents,2021P12_CR00504,2696
Sandwell Metropolitan Borough Council,http://www.sandwell.gov.uk/info/200202/performance_and_spending/1079/payments_over_500,01-Mar-2021,Housing & Communities,BEECHWOOD TREES & LANDSCAPE LTD,Neighbourhoods,1637.00,Externally Purchased Professional Services ,2021P12_CR00505,93287
Sandwell Metropolitan Borough Council,http://www.sandwell.gov.uk/info/200202/performance_and_spending/1079/payments_over_500,01-Mar-2021,Housing & Communities,AT-AUTISM,Neighbourhoods,1666.67,Externally Purchased Professional Services ,2021P12_CR00506,150062
Sandwell Metropolitan Borough Council,http://www.sandwell.gov.uk/info/200202/performance_and_spending/1079/payments_over_500,23-Mar-2021,Housing & Communities,REWIND UK EDUCATION AND INTERVENTIONS LTD,Neighbourhoods,1800.00,Grant Payments,2021P12_CR00507,110507
Sandwell Metropolitan Borough Council,http://www.sandwell.gov.uk/info/200202/performance_and_spending/1079/payments_over_500,01-Mar-2021,Housing & Communities,ACORN ENVIRONMENTAL MANAGEMENT GROUP LIMITED,Neighbourhoods,1804.52,Externally Purchased Professional Services ,2021P12_CR00508,24254
Sandwell Metropolitan Borough Council,http://www.sandwell.gov.uk/info/200202/performance_and_spending/1079/payments_over_500,01-Mar-2021,Housing & Communities,VERTIGO CREATIVE STUDIO LIMITED,Neighbourhoods,1888.58,Civic Events,2021P12_CR00509,72029
Sandwell Metropolitan Borough Council,http://www.sandwell.gov.uk/info/200202/performance_and_spending/1079/payments_over_500,12-Mar-2021,Housing & Communities,MIDLAND FORESTRY LIMITED,Neighbourhoods,1983.00,Externally Purchased Professional Services ,2021P12_CR00510,45812
Sandwell Metropolitan Borough Council,http://www.sandwell.gov.uk/info/200202/performance_and_spending/1079/payments_over_500,10-Mar-2021,Housing & Communities,TELETRAC NAVMAN (UK) LTD,Neighbourhoods,2037.00,External Contract Hire,2021P12_CR00511,129341
Sandwell Metropolitan Borough Council,http://www.sandwell.gov.uk/info/200202/performance_and_spending/1079/payments_over_500,01-Mar-2021,Housing & Communities,GILANI ENTERPRISES LIMITED,Neighbourhoods,2057.14,Rents,2021P12_CR00512,2696
Sandwell Metropolitan Borough Council,http://www.sandwell.gov.uk/info/200202/performance_and_spending/1079/payments_over_500,01-Mar-2021,Housing & Communities,PROFILE SECURITY SERVICES LTD,Neighbourhoods,2128.00,Security,2021P12_CR00513,131253
Sandwell Metropolitan Borough Council,http://www.sandwell.gov.uk/info/200202/performance_and_spending/1079/payments_over_500,01-Mar-2021,Housing & Communities,ACORN ENVIRONMENTAL MANAGEMENT GROUP LIMITED,Neighbourhoods,2140.03,Externally Purchased Professional Services ,2021P12_CR00514,24254
Sandwell Metropolitan Borough Council,http://www.sandwell.gov.uk/info/200202/performance_and_spending/1079/payments_over_500,16-Mar-2021,Housing & Communities,MIDLAND FORESTRY LIMITED,Neighbourhoods,2151.00,Externally Purchased Professional Services ,2021P12_CR00515,45812
Sandwell Metropolitan Borough Council,http://www.sandwell.gov.uk/info/200202/performance_and_spending/1079/payments_over_500,09-Mar-2021,Housing & Communities,KENYON INTERNATIONAL EMERGENCY SERVICES LIMITED,Neighbourhoods,2230.00,Bereavement Expenses,2021P12_CR00516,77302
Sandwell Metropolitan Borough Council,http://www.sandwell.gov.uk/info/200202/performance_and_spending/1079/payments_over_500,16-Mar-2021,Housing & Communities,PROFILE SECURITY SERVICES LTD,Neighbourhoods,2340.80,Security,2021P12_CR00517,131253
Sandwell Metropolitan Borough Council,http://www.sandwell.gov.uk/info/200202/performance_and_spending/1079/payments_over_500,16-Mar-2021,Housing & Communities,PROFILE SECURITY SERVICES LTD,Neighbourhoods,2340.80,Security,2021P12_CR00518,131253
Sandwell Metropolitan Borough Council,http://www.sandwell.gov.uk/info/200202/performance_and_spending/1079/payments_over_500,01-Mar-2021,Housing & Communities,XEROX FINANCE LTD,Neighbourhoods,2402.82,Equipment & Furniture ,2021P12_CR00519,2269
Sandwell Metropolitan Borough Council,http://www.sandwell.gov.uk/info/200202/performance_and_spending/1079/payments_over_500,04-Mar-2021,Housing & Communities,BEECHWOOD TREES & LANDSCAPE LTD,Neighbourhoods,2430.00,Externally Purchased Professional Services ,2021P12_CR00520,93287
Sandwell Metropolitan Borough Council,http://www.sandwell.gov.uk/info/200202/performance_and_spending/1079/payments_over_500,07-Mar-2021,Housing & Communities,TELETRAC NAVMAN (UK) LTD,Neighbourhoods,2499.00,External Contract Hire,2021P12_CR00521,129341
Sandwell Metropolitan Borough Council,http://www.sandwell.gov.uk/info/200202/performance_and_spending/1079/payments_over_500,23-Mar-2021,Housing & Communities,SANDWELL CHILDREN'S TRUST,Neighbourhoods,2500.00,Grant Payments,2021P12_CR00522,133302
Sandwell Metropolitan Borough Council,http://www.sandwell.gov.uk/info/200202/performance_and_spending/1079/payments_over_500,01-Mar-2021,Housing & Communities,CREATIVE ACADEMIES LTD,Neighbourhoods,2510.00,Grant Payments,2021P12_CR00523,116825
Sandwell Metropolitan Borough Council,http://www.sandwell.gov.uk/info/200202/performance_and_spending/1079/payments_over_500,04-Mar-2021,Housing & Communities,FREIGHT SOURCE LOGISTICS LTD,Neighbourhoods,2605.00,Civic Events,2021P12_CR00524,150633
Sandwell Metropolitan Borough Council,http://www.sandwell.gov.uk/info/200202/performance_and_spending/1079/payments_over_500,10-Mar-2021,Housing & Communities,MIDLAND FORESTRY LIMITED,Neighbourhoods,2649.00,Externally Purchased Professional Services ,2021P12_CR00525,45812
Sandwell Metropolitan Borough Council,http://www.sandwell.gov.uk/info/200202/performance_and_spending/1079/payments_over_500,01-Mar-2021,Housing & Communities,WATER PLUS SELECT LIMITED,Neighbourhoods,2655.16,Water Services,2021P12_CR00526,129644
Sandwell Metropolitan Borough Council,http://www.sandwell.gov.uk/info/200202/performance_and_spending/1079/payments_over_500,01-Mar-2021,Housing & Communities,MIDLAND FORESTRY LIMITED,Neighbourhoods,2700.00,Externally Purchased Professional Services ,2021P12_CR00527,45812
Sandwell Metropolitan Borough Council,http://www.sandwell.gov.uk/info/200202/performance_and_spending/1079/payments_over_500,01-Mar-2021,Housing & Communities,PINSENT MASON LLP,Neighbourhoods,2849.70,Externally Purchased Professional Services ,2021P12_CR00528,47648
Sandwell Metropolitan Borough Council,http://www.sandwell.gov.uk/info/200202/performance_and_spending/1079/payments_over_500,02-Mar-2021,Housing & Communities,BEECHWOOD TREES & LANDSCAPE LTD,Neighbourhoods,2965.00,Externally Purchased Professional Services ,2021P12_CR00529,93287
Sandwell Metropolitan Borough Council,http://www.sandwell.gov.uk/info/200202/performance_and_spending/1079/payments_over_500,01-Mar-2021,Housing & Communities,GILANI ENTERPRISES LIMITED,Neighbourhoods,2971.43,Rents,2021P12_CR00530,2696
Sandwell Metropolitan Borough Council,http://www.sandwell.gov.uk/info/200202/performance_and_spending/1079/payments_over_500,01-Mar-2021,Housing & Communities,GILANI ENTERPRISES LIMITED,Neighbourhoods,2971.43,Rents,2021P12_CR00531,2696
Sandwell Metropolitan Borough Council,http://www.sandwell.gov.uk/info/200202/performance_and_spending/1079/payments_over_500,09-Mar-2021,Housing & Communities,ACORN ENVIRONMENTAL MANAGEMENT GROUP LIMITED,Neighbourhoods,3174.34,Externally Purchased Professional Services ,2021P12_CR00532,24254
Sandwell Metropolitan Borough Council,http://www.sandwell.gov.uk/info/200202/performance_and_spending/1079/payments_over_500,03-Mar-2021,Housing & Communities,CAPITA ESS LTD,Neighbourhoods,3200.00,Materials & Consumables,2021P12_CR00533,148415
Sandwell Metropolitan Borough Council,http://www.sandwell.gov.uk/info/200202/performance_and_spending/1079/payments_over_500,06-Mar-2021,Housing & Communities,G & B KENDALL & SONS,Neighbourhoods,3240.00,Materials & Consumables,2021P12_CR00534,01422772
Sandwell Metropolitan Borough Council,http://www.sandwell.gov.uk/info/200202/performance_and_spending/1079/payments_over_500,18-Mar-2021,Housing & Communities,DALEN LTD,Neighbourhoods,3280.00,Operational Services ,2021P12_CR00535,01532576
Sandwell Metropolitan Borough Council,http://www.sandwell.gov.uk/info/200202/performance_and_spending/1079/payments_over_500,01-Mar-2021,Housing & Communities,HOME FARM NURSERIES (PINVIN) LIMITED,Neighbourhoods,3291.00,Operational Services ,2021P12_CR00536,77003445
Sandwell Metropolitan Borough Council,http://www.sandwell.gov.uk/info/200202/performance_and_spending/1079/payments_over_500,01-Mar-2021,Housing & Communities,REMARKABLE MEDIA GROUP LTD,Neighbourhoods,3300.00,Civic Events,2021P12_CR00537,147283
Sandwell Metropolitan Borough Council,http://www.sandwell.gov.uk/info/200202/performance_and_spending/1079/payments_over_500,01-Mar-2021,Housing & Communities,NOMIX ENVIRO LTD,Neighbourhoods,3456.00,Materials & Consumables,2021P12_CR00538,37313
Sandwell Metropolitan Borough Council,http://www.sandwell.gov.uk/info/200202/performance_and_spending/1079/payments_over_500,01-Mar-2021,Housing & Communities,HOARE LEA LLP,Neighbourhoods,3550.00,Consultancy,2021P12_CR00539,137607
Sandwell Metropolitan Borough Council,http://www.sandwell.gov.uk/info/200202/performance_and_spending/1079/payments_over_500,12-Mar-2021,Housing & Communities,Q-MATIC AB LTD,Neighbourhoods,3600.00,Externally Purchased Professional Services ,2021P12_CR00540,141886
Sandwell Metropolitan Borough Council,http://www.sandwell.gov.uk/info/200202/performance_and_spending/1079/payments_over_500,11-Mar-2021,Housing & Communities,BEECHWOOD TREES & LANDSCAPE LTD,Neighbourhoods,3800.00,Externally Purchased Professional Services ,2021P12_CR00541,93287
Sandwell Metropolitan Borough Council,http://www.sandwell.gov.uk/info/200202/performance_and_spending/1079/payments_over_500,08-Mar-2021,Housing & Communities,CERTAS ENERGY LIMITED,Neighbourhoods,3899.72,Fuel ,2021P12_CR00542,80421
Sandwell Metropolitan Borough Council,http://www.sandwell.gov.uk/info/200202/performance_and_spending/1079/payments_over_500,01-Mar-2021,Housing & Communities,PERVASIVE NETWORKS LTD,Neighbourhoods,4234.19,Externally Purchased Professional Services ,2021P12_CR00543,01658599
Sandwell Metropolitan Borough Council,http://www.sandwell.gov.uk/info/200202/performance_and_spending/1079/payments_over_500,01-Mar-2021,Housing & Communities,SHARP,Neighbourhoods,4284.00,Rents,2021P12_CR00544,08280972
Sandwell Metropolitan Borough Council,http://www.sandwell.gov.uk/info/200202/performance_and_spending/1079/payments_over_500,15-Mar-2021,Housing & Communities,SHARP,Neighbourhoods,4284.00,Rents,2021P12_CR00545,08280972
Sandwell Metropolitan Borough Council,http://www.sandwell.gov.uk/info/200202/performance_and_spending/1079/payments_over_500,15-Mar-2021,Housing & Communities,SHARP,Neighbourhoods,4284.00,Rents,2021P12_CR00546,08280972
Sandwell Metropolitan Borough Council,http://www.sandwell.gov.uk/info/200202/performance_and_spending/1079/payments_over_500,29-Mar-2021,Housing & Communities,SHARP,Neighbourhoods,4284.00,Rents,2021P12_CR00547,08280972
Sandwell Metropolitan Borough Council,http://www.sandwell.gov.uk/info/200202/performance_and_spending/1079/payments_over_500,01-Mar-2021,Housing & Communities,TOTAL GAS AND POWER LIMITED,Housing & Communities,4335.81,"CIP - New Construction,Conversion, Enhancement & Reno",2021P12_CR00548,107605
Sandwell Metropolitan Borough Council,http://www.sandwell.gov.uk/info/200202/performance_and_spending/1079/payments_over_500,23-Mar-2021,Housing & Communities,KRUNCH UK,Neighbourhoods,4398.00,Grant Payments,2021P12_CR00549,08588452
Sandwell Metropolitan Borough Council,http://www.sandwell.gov.uk/info/200202/performance_and_spending/1079/payments_over_500,15-Mar-2021,Housing & Communities,G & B KENDALL & SONS,Neighbourhoods,4450.00,Materials & Consumables,2021P12_CR00550,01422772
Sandwell Metropolitan Borough Council,http://www.sandwell.gov.uk/info/200202/performance_and_spending/1079/payments_over_500,12-Mar-2021,Housing & Communities,SOCIO LOGICAL LTD,Neighbourhoods,4650.00,Grant Payments,2021P12_CR00551,147448
Sandwell Metropolitan Borough Council,http://www.sandwell.gov.uk/info/200202/performance_and_spending/1079/payments_over_500,11-Mar-2021,Housing & Communities,INFAMOUS COMMUNITY ARTS,Neighbourhoods,4840.00,Civic Events,2021P12_CR00552,102940
Sandwell Metropolitan Borough Council,http://www.sandwell.gov.uk/info/200202/performance_and_spending/1079/payments_over_500,08-Mar-2021,Housing & Communities,CERTAS ENERGY LIMITED,Neighbourhoods,4870.03,Fuel ,2021P12_CR00553,80421
Sandwell Metropolitan Borough Council,http://www.sandwell.gov.uk/info/200202/performance_and_spending/1079/payments_over_500,01-Mar-2021,Housing & Communities,PINSENT MASON LLP,Neighbourhoods,4991.40,Externally Purchased Professional Services ,2021P12_CR00554,47648
Sandwell Metropolitan Borough Council,http://www.sandwell.gov.uk/info/200202/performance_and_spending/1079/payments_over_500,02-Mar-2021,Housing & Communities,IAN LIVIE T/A IAN LIVIE AND HIS WORLD WIDE DISCO,Neighbourhoods,5000.00,Civic Events,2021P12_CR00555,150369
Sandwell Metropolitan Borough Council,http://www.sandwell.gov.uk/info/200202/performance_and_spending/1079/payments_over_500,21-Mar-2021,Housing & Communities,DECKHEADS MAINTENANCE LTD,Neighbourhoods,5000.00,Civic Events,2021P12_CR00556,151227
Sandwell Metropolitan Borough Council,http://www.sandwell.gov.uk/info/200202/performance_and_spending/1079/payments_over_500,01-Mar-2021,Housing & Communities,TOTAL GAS AND POWER LIMITED,Housing & Communities,5112.88,"CIP - New Construction,Conversion, Enhancement & Reno",2021P12_CR00557,107605
Sandwell Metropolitan Borough Council,http://www.sandwell.gov.uk/info/200202/performance_and_spending/1079/payments_over_500,16-Mar-2021,Housing & Communities,SANDWELL & WEST BIRMINGHAM HOSPITALS NHS TRUST,Neighbourhoods,5198.53,Waste Disposal Charges,2021P12_CR00558,1385
Sandwell Metropolitan Borough Council,http://www.sandwell.gov.uk/info/200202/performance_and_spending/1079/payments_over_500,10-Mar-2021,Housing & Communities,BEECHWOOD TREES & LANDSCAPE LTD,Neighbourhoods,6011.00,Externally Purchased Professional Services ,2021P12_CR00559,93287
Sandwell Metropolitan Borough Council,http://www.sandwell.gov.uk/info/200202/performance_and_spending/1079/payments_over_500,23-Mar-2021,Housing & Communities,DATA POWER LTD,Neighbourhoods,6014.07,Externally Purchased Professional Services ,2021P12_CR00560,78780
Sandwell Metropolitan Borough Council,http://www.sandwell.gov.uk/info/200202/performance_and_spending/1079/payments_over_500,01-Mar-2021,Housing & Communities,TOTAL GAS AND POWER LIMITED,Housing & Communities,6140.53,"CIP - New Construction,Conversion, Enhancement & Reno",2021P12_CR00561,107605
Sandwell Metropolitan Borough Council,http://www.sandwell.gov.uk/info/200202/performance_and_spending/1079/payments_over_500,02-Mar-2021,Housing & Communities,IIZUKA SOFTWARE TECHNOLOGIES LTD,Neighbourhoods,6484.88,Licences,2021P12_CR00562,68311
Sandwell Metropolitan Borough Council,http://www.sandwell.gov.uk/info/200202/performance_and_spending/1079/payments_over_500,03-Mar-2021,Housing & Communities,BUCKS HOUSING LTD T/A HAGLEY HOTEL,Neighbourhoods,6500.00,Rents,2021P12_CR00563,143677
Sandwell Metropolitan Borough Council,http://www.sandwell.gov.uk/info/200202/performance_and_spending/1079/payments_over_500,11-Mar-2021,Housing & Communities,SALTMINE TRUST,Neighbourhoods,6640.00,Grant Payments,2021P12_CR00564,86227
Sandwell Metropolitan Borough Council,http://www.sandwell.gov.uk/info/200202/performance_and_spending/1079/payments_over_500,11-Mar-2021,Housing & Communities,MIDLAND FORESTRY LIMITED,Neighbourhoods,6780.00,Externally Purchased Professional Services ,2021P12_CR00565,45812
Sandwell Metropolitan Borough Council,http://www.sandwell.gov.uk/info/200202/performance_and_spending/1079/payments_over_500,01-Mar-2021,Housing & Communities,REDACTED PERSONAL DATA,Housing & Communities,6796.00,Externally Purchased Professional Services ,2021P12_CR00566,REDACTED PERSONAL DATA
Sandwell Metropolitan Borough Council,http://www.sandwell.gov.uk/info/200202/performance_and_spending/1079/payments_over_500,26-Mar-2021,Housing & Communities,TOTAL GAS AND POWER LIMITED,Housing & Communities,6825.50,"CIP - New Construction,Conversion, Enhancement & Reno",2021P12_CR00567,107605
Sandwell Metropolitan Borough Council,http://www.sandwell.gov.uk/info/200202/performance_and_spending/1079/payments_over_500,05-Mar-2021,Housing & Communities,BEECHWOOD TREES & LANDSCAPE LTD,Neighbourhoods,7030.00,Externally Purchased Professional Services ,2021P12_CR00568,93287
Sandwell Metropolitan Borough Council,http://www.sandwell.gov.uk/info/200202/performance_and_spending/1079/payments_over_500,01-Mar-2021,Housing & Communities,TOTAL GAS AND POWER LIMITED,Housing & Communities,7138.47,"CIP - New Construction,Conversion, Enhancement & Reno",2021P12_CR00569,107605
Sandwell Metropolitan Borough Council,http://www.sandwell.gov.uk/info/200202/performance_and_spending/1079/payments_over_500,22-Mar-2021,Housing & Communities,SANDWELL & WEST BIRMINGHAM HOSPITALS NHS TRUST,Neighbourhoods,7375.00,Grant Payments,2021P12_CR00570,1385
Sandwell Metropolitan Borough Council,http://www.sandwell.gov.uk/info/200202/performance_and_spending/1079/payments_over_500,17-Mar-2021,Housing & Communities,AECOM INFRASTRUCTURE & ENVIRONMENT UK LIMITED,Neighbourhoods,7788.88,Consultancy,2021P12_CR00571,107299
Sandwell Metropolitan Borough Council,http://www.sandwell.gov.uk/info/200202/performance_and_spending/1079/payments_over_500,23-Mar-2021,Housing & Communities,PERVASIVE NETWORKS LTD,Housing & Communities,8445.72,Externally Purchased Professional Services ,2021P12_CR00572,01658599
Sandwell Metropolitan Borough Council,http://www.sandwell.gov.uk/info/200202/performance_and_spending/1079/payments_over_500,01-Mar-2021,Housing & Communities,CERTAS ENERGY LIMITED,Neighbourhoods,9683.00,Fuel ,2021P12_CR00573,80421
Sandwell Metropolitan Borough Council,http://www.sandwell.gov.uk/info/200202/performance_and_spending/1079/payments_over_500,10-Mar-2021,Housing & Communities,CERTAS ENERGY LIMITED,Neighbourhoods,9741.03,Fuel ,2021P12_CR00574,80421
Sandwell Metropolitan Borough Council,http://www.sandwell.gov.uk/info/200202/performance_and_spending/1079/payments_over_500,16-Mar-2021,Housing & Communities,SERCO LIMITED,Neighbourhoods,10126.03,Waste Disposal Charges,2021P12_CR00575,53771
Sandwell Metropolitan Borough Council,http://www.sandwell.gov.uk/info/200202/performance_and_spending/1079/payments_over_500,01-Mar-2021,Housing & Communities,IAN LIVIE T/A IAN LIVIE AND HIS WORLD WIDE DISCO,Neighbourhoods,10960.00,Civic Events,2021P12_CR00576,150369
Sandwell Metropolitan Borough Council,http://www.sandwell.gov.uk/info/200202/performance_and_spending/1079/payments_over_500,01-Mar-2021,Housing & Communities,CHRISTOPHER JAMES CONTRACT INTERIORS LTD,Housing & Communities,11224.80,Building Maintenance & Improvements,2021P12_CR00577,147870
Sandwell Metropolitan Borough Council,http://www.sandwell.gov.uk/info/200202/performance_and_spending/1079/payments_over_500,01-Mar-2021,Housing & Communities,CERTAS ENERGY LIMITED,Neighbourhoods,11339.82,Fuel ,2021P12_CR00578,80421
Sandwell Metropolitan Borough Council,http://www.sandwell.gov.uk/info/200202/performance_and_spending/1079/payments_over_500,01-Mar-2021,Housing & Communities,S.C.V.O.,Neighbourhoods,11475.00,Grant Payments,2021P12_CR00579,109813
Sandwell Metropolitan Borough Council,http://www.sandwell.gov.uk/info/200202/performance_and_spending/1079/payments_over_500,01-Mar-2021,Housing & Communities,SERCO LIMITED,Neighbourhoods,13027.21,Waste Disposal Charges,2021P12_CR00580,53771
Sandwell Metropolitan Borough Council,http://www.sandwell.gov.uk/info/200202/performance_and_spending/1079/payments_over_500,11-Mar-2021,Housing & Communities,TELENT TECHNOLOGY SERVICES LIMITED,Housing & Communities,14780.31,Operational Services ,2021P12_CR00581,26331
Sandwell Metropolitan Borough Council,http://www.sandwell.gov.uk/info/200202/performance_and_spending/1079/payments_over_500,01-Mar-2021,Housing & Communities,SHARP,Neighbourhoods,15062.00,Rents,2021P12_CR00582,08280972
Sandwell Metropolitan Borough Council,http://www.sandwell.gov.uk/info/200202/performance_and_spending/1079/payments_over_500,03-Mar-2021,Housing & Communities,PLACES FOR PEOPLE LEISURE MANAGEMENT LTD,Neighbourhoods,23750.57,SH Payments,2021P12_CR00583,118956
Sandwell Metropolitan Borough Council,http://www.sandwell.gov.uk/info/200202/performance_and_spending/1079/payments_over_500,08-Mar-2021,Housing & Communities,PLACES FOR PEOPLE LEISURE MANAGEMENT LTD,Neighbourhoods,31740.66,SH Payments,2021P12_CR00584,118956
Sandwell Metropolitan Borough Council,http://www.sandwell.gov.uk/info/200202/performance_and_spending/1079/payments_over_500,01-Mar-2021,Housing & Communities,HAYSTOUN CONSTRUCTION LTD,Neighbourhoods,32903.00,Operational Services ,2021P12_CR00585,11849
Sandwell Metropolitan Borough Council,http://www.sandwell.gov.uk/info/200202/performance_and_spending/1079/payments_over_500,15-Mar-2021,Housing & Communities,PLACES FOR PEOPLE LEISURE MANAGEMENT LTD,Neighbourhoods,36975.31,SH Payments,2021P12_CR00586,118956
Sandwell Metropolitan Borough Council,http://www.sandwell.gov.uk/info/200202/performance_and_spending/1079/payments_over_500,01-Mar-2021,Housing & Communities,BRIDGE CONSTRUCTION LTD,Housing & Communities,37381.19,Operational Services ,2021P12_CR00587,127570
Sandwell Metropolitan Borough Council,http://www.sandwell.gov.uk/info/200202/performance_and_spending/1079/payments_over_500,11-Mar-2021,Housing & Communities,TELENT TECHNOLOGY SERVICES LIMITED,Housing & Communities,43767.36,Operational Services ,2021P12_CR00588,26331
Sandwell Metropolitan Borough Council,http://www.sandwell.gov.uk/info/200202/performance_and_spending/1079/payments_over_500,11-Mar-2021,Housing & Communities,TELENT TECHNOLOGY SERVICES LIMITED,Housing & Communities,49412.30,Operational Services ,2021P12_CR00589,26331
Sandwell Metropolitan Borough Council,http://www.sandwell.gov.uk/info/200202/performance_and_spending/1079/payments_over_500,01-Mar-2021,Housing & Communities,PLACES FOR PEOPLE LEISURE MANAGEMENT LTD,Neighbourhoods,57322.18,SH Payments,2021P12_CR00590,118956
Sandwell Metropolitan Borough Council,http://www.sandwell.gov.uk/info/200202/performance_and_spending/1079/payments_over_500,01-Mar-2021,Housing & Communities,PLACES FOR PEOPLE LEISURE MANAGEMENT LTD,Neighbourhoods,57366.60,SH Payments,2021P12_CR00591,118956
Sandwell Metropolitan Borough Council,http://www.sandwell.gov.uk/info/200202/performance_and_spending/1079/payments_over_500,01-Mar-2021,Housing & Communities,BRIDGE CONSTRUCTION LTD,Housing & Communities,70746.70,Operational Services ,2021P12_CR00592,127570
Sandwell Metropolitan Borough Council,http://www.sandwell.gov.uk/info/200202/performance_and_spending/1079/payments_over_500,18-Mar-2021,Housing & Communities,INTERCLASS PLC,Housing & Communities,77717.90,"CIP - New Construction,Conversion, Enhancement & Reno",2021P12_CR00593,77001959
Sandwell Metropolitan Borough Council,http://www.sandwell.gov.uk/info/200202/performance_and_spending/1079/payments_over_500,16-Mar-2021,Housing & Communities,SERCO LIMITED,Neighbourhoods,79118.75,Waste Disposal Charges,2021P12_CR00594,53771
Sandwell Metropolitan Borough Council,http://www.sandwell.gov.uk/info/200202/performance_and_spending/1079/payments_over_500,01-Mar-2021,Housing & Communities,STAVE CON LTD,Housing & Communities,105000.00,CIP - Infrastructure,2021P12_CR00595,77002689
Sandwell Metropolitan Borough Council,http://www.sandwell.gov.uk/info/200202/performance_and_spending/1079/payments_over_500,01-Mar-2021,Housing & Communities,SANDWELL LIFT PROJECT COMPANY (NO 3) LIMITED,Neighbourhoods,111142.81,Consultancy,2021P12_CR00596,113986
Sandwell Metropolitan Borough Council,http://www.sandwell.gov.uk/info/200202/performance_and_spending/1079/payments_over_500,01-Mar-2021,Housing & Communities,SANDWELL LIFT PROJECT COMPANY (NO 3) LIMITED,Neighbourhoods,111142.81,Consultancy,2021P12_CR00597,113986
Sandwell Metropolitan Borough Council,http://www.sandwell.gov.uk/info/200202/performance_and_spending/1079/payments_over_500,07-Mar-2021,Housing & Communities,STAFFORDSHIRE COUNTY COUNCIL,Neighbourhoods,362489.00,Waste Disposal Charges,2021P12_CR00598,01124861
Sandwell Metropolitan Borough Council,http://www.sandwell.gov.uk/info/200202/performance_and_spending/1079/payments_over_500,03-Mar-2021,Housing & Communities,SERCO LIMITED,Neighbourhoods,368159.05,Waste Disposal Charges,2021P12_CR00599,53771
Sandwell Metropolitan Borough Council,http://www.sandwell.gov.uk/info/200202/performance_and_spending/1079/payments_over_500,20-Mar-2021,Housing & Communities,WATES CONSTRUCTION LTD                                 01,Housing & Communities,995601.36,"CIP - New Construction,Conversion, Enhancement & Reno",2021P12_CR00600,77000882
Sandwell Metropolitan Borough Council,http://www.sandwell.gov.uk/info/200202/performance_and_spending/1079/payments_over_500,03-Mar-2021,Housing & Communities,WATES CONSTRUCTION LTD                                 01,Housing & Communities,1276574.65,"CIP - New Construction,Conversion, Enhancement & Reno",2021P12_CR00601,77000882
Sandwell Metropolitan Borough Council,http://www.sandwell.gov.uk/info/200202/performance_and_spending/1079/payments_over_500,01-Mar-2021,Housing & Communities,SERCO LIMITED,Neighbourhoods,1539489.72,Waste Disposal Charges,2021P12_CR00602,53771
Sandwell Metropolitan Borough Council,http://www.sandwell.gov.uk/info/200202/performance_and_spending/1079/payments_over_500,29-Mar-2021,Housing & Communities,REDACTED PERSONAL DATA,Neighbourhoods,500.00,Rents,2021P12_CR00603,REDACTED PERSONAL DATA
Sandwell Metropolitan Borough Council,http://www.sandwell.gov.uk/info/200202/performance_and_spending/1079/payments_over_500,29-Mar-2021,Housing & Communities,REDACTED PERSONAL DATA,Neighbourhoods,500.00,Rents,2021P12_CR00604,REDACTED PERSONAL DATA
Sandwell Metropolitan Borough Council,http://www.sandwell.gov.uk/info/200202/performance_and_spending/1079/payments_over_500,29-Mar-2021,Housing & Communities,REDACTED PERSONAL DATA,Neighbourhoods,500.00,Rents,2021P12_CR00605,REDACTED PERSONAL DATA
Sandwell Metropolitan Borough Council,http://www.sandwell.gov.uk/info/200202/performance_and_spending/1079/payments_over_500,29-Mar-2021,Housing & Communities,REDACTED PERSONAL DATA,Neighbourhoods,500.00,Rents,2021P12_CR00606,REDACTED PERSONAL DATA
Sandwell Metropolitan Borough Council,http://www.sandwell.gov.uk/info/200202/performance_and_spending/1079/payments_over_500,29-Mar-2021,Housing & Communities,REDACTED PERSONAL DATA,Neighbourhoods,500.00,Rents,2021P12_CR00607,REDACTED PERSONAL DATA
Sandwell Metropolitan Borough Council,http://www.sandwell.gov.uk/info/200202/performance_and_spending/1079/payments_over_500,29-Mar-2021,Housing & Communities,REDACTED PERSONAL DATA,Neighbourhoods,500.00,Rents,2021P12_CR00608,REDACTED PERSONAL DATA
Sandwell Metropolitan Borough Council,http://www.sandwell.gov.uk/info/200202/performance_and_spending/1079/payments_over_500,29-Mar-2021,Housing & Communities,REDACTED PERSONAL DATA,Neighbourhoods,500.00,Rents,2021P12_CR00609,REDACTED PERSONAL DATA
Sandwell Metropolitan Borough Council,http://www.sandwell.gov.uk/info/200202/performance_and_spending/1079/payments_over_500,29-Mar-2021,Housing & Communities,REDACTED PERSONAL DATA,Neighbourhoods,500.00,Rents,2021P12_CR00610,REDACTED PERSONAL DATA
Sandwell Metropolitan Borough Council,http://www.sandwell.gov.uk/info/200202/performance_and_spending/1079/payments_over_500,29-Mar-2021,Housing & Communities,REDACTED PERSONAL DATA,Neighbourhoods,500.00,Rents,2021P12_CR00611,REDACTED PERSONAL DATA
Sandwell Metropolitan Borough Council,http://www.sandwell.gov.uk/info/200202/performance_and_spending/1079/payments_over_500,29-Mar-2021,Housing & Communities,REDACTED PERSONAL DATA,Neighbourhoods,500.00,Rents,2021P12_CR00612,REDACTED PERSONAL DATA
Sandwell Metropolitan Borough Council,http://www.sandwell.gov.uk/info/200202/performance_and_spending/1079/payments_over_500,29-Mar-2021,Housing & Communities,REDACTED PERSONAL DATA,Neighbourhoods,500.00,Rents,2021P12_CR00613,REDACTED PERSONAL DATA
Sandwell Metropolitan Borough Council,http://www.sandwell.gov.uk/info/200202/performance_and_spending/1079/payments_over_500,29-Mar-2021,Housing & Communities,REDACTED PERSONAL DATA,Neighbourhoods,500.00,Rents,2021P12_CR00614,REDACTED PERSONAL DATA
Sandwell Metropolitan Borough Council,http://www.sandwell.gov.uk/info/200202/performance_and_spending/1079/payments_over_500,29-Mar-2021,Housing & Communities,REDACTED PERSONAL DATA,Neighbourhoods,500.00,Rents,2021P12_CR00615,REDACTED PERSONAL DATA
Sandwell Metropolitan Borough Council,http://www.sandwell.gov.uk/info/200202/performance_and_spending/1079/payments_over_500,29-Mar-2021,Housing & Communities,REDACTED PERSONAL DATA,Neighbourhoods,500.00,Rents,2021P12_CR00616,REDACTED PERSONAL DATA
Sandwell Metropolitan Borough Council,http://www.sandwell.gov.uk/info/200202/performance_and_spending/1079/payments_over_500,29-Mar-2021,Housing & Communities,REDACTED PERSONAL DATA,Neighbourhoods,500.00,Rents,2021P12_CR00617,REDACTED PERSONAL DATA
Sandwell Metropolitan Borough Council,http://www.sandwell.gov.uk/info/200202/performance_and_spending/1079/payments_over_500,29-Mar-2021,Housing & Communities,REDACTED PERSONAL DATA,Neighbourhoods,550.00,Rents,2021P12_CR00618,REDACTED PERSONAL DATA
Sandwell Metropolitan Borough Council,http://www.sandwell.gov.uk/info/200202/performance_and_spending/1079/payments_over_500,29-Mar-2021,Housing & Communities,REDACTED PERSONAL DATA,Neighbourhoods,550.00,Rents,2021P12_CR00619,REDACTED PERSONAL DATA
Sandwell Metropolitan Borough Council,http://www.sandwell.gov.uk/info/200202/performance_and_spending/1079/payments_over_500,29-Mar-2021,Housing & Communities,REDACTED PERSONAL DATA,Neighbourhoods,550.00,Rents,2021P12_CR00620,REDACTED PERSONAL DATA
Sandwell Metropolitan Borough Council,http://www.sandwell.gov.uk/info/200202/performance_and_spending/1079/payments_over_500,29-Mar-2021,Housing & Communities,REDACTED PERSONAL DATA,Neighbourhoods,550.00,Rents,2021P12_CR00621,REDACTED PERSONAL DATA
Sandwell Metropolitan Borough Council,http://www.sandwell.gov.uk/info/200202/performance_and_spending/1079/payments_over_500,29-Mar-2021,Housing & Communities,REDACTED PERSONAL DATA,Neighbourhoods,550.00,Rents,2021P12_CR00622,REDACTED PERSONAL DATA
Sandwell Metropolitan Borough Council,http://www.sandwell.gov.uk/info/200202/performance_and_spending/1079/payments_over_500,29-Mar-2021,Housing & Communities,REDACTED PERSONAL DATA,Neighbourhoods,550.00,Rents,2021P12_CR00623,REDACTED PERSONAL DATA
Sandwell Metropolitan Borough Council,http://www.sandwell.gov.uk/info/200202/performance_and_spending/1079/payments_over_500,29-Mar-2021,Housing & Communities,REDACTED PERSONAL DATA,Neighbourhoods,1000.00,Rents,2021P12_CR00624,REDACTED PERSONAL DATA
Sandwell Metropolitan Borough Council,http://www.sandwell.gov.uk/info/200202/performance_and_spending/1079/payments_over_500,02-Mar-2021,Housing & Communities,OPEN HEAVEN CHURCH (WEDNESBURY),Neighbourhoods,2007.00,Grant Payments,2021P12_CR00625,47147
Sandwell Metropolitan Borough Council,http://www.sandwell.gov.uk/info/200202/performance_and_spending/1079/payments_over_500,26-Mar-2021,Housing & Communities,KRUNCH UK,Neighbourhoods,3829.56,Grant Payments,2021P12_CR00626,08588452
Sandwell Metropolitan Borough Council,http://www.sandwell.gov.uk/info/200202/performance_and_spending/1079/payments_over_500,02-Mar-2021,Housing & Communities,SINGLEPOINT PLUS LIMITED,Neighbourhoods,4745.00,Grant Payments,2021P12_CR00627,141896
Sandwell Metropolitan Borough Council,http://www.sandwell.gov.uk/info/200202/performance_and_spending/1079/payments_over_500,23-Mar-2021,Housing & Communities,SANDWELL VISUALLY IMPAIRED,Neighbourhoods,4890.00,Grant Payments,2021P12_CR00628,30136
Sandwell Metropolitan Borough Council,http://www.sandwell.gov.uk/info/200202/performance_and_spending/1079/payments_over_500,24-Mar-2021,Housing & Communities,BLACK COUNTRY HOUSING GROUP LIMITED,Neighbourhoods,7000.00,Grant Payments,2021P12_CR00629,01715636
Sandwell Metropolitan Borough Council,http://www.sandwell.gov.uk/info/200202/performance_and_spending/1079/payments_over_500,26-Mar-2021,Housing & Communities,SANDWELL CONSORTIUM CIC,Neighbourhoods,10330.00,Grant Payments,2021P12_CR00630,104616
Sandwell Metropolitan Borough Council,http://www.sandwell.gov.uk/info/200202/performance_and_spending/1079/payments_over_500,26-Mar-2021,Housing & Communities,SANDWELL CITIZENS ADVOCACY,Neighbourhoods,15000.00,Grant Payments,2021P12_CR00631,60843
Sandwell Metropolitan Borough Council,http://www.sandwell.gov.uk/info/200202/performance_and_spending/1079/payments_over_500,01-Mar-2021,Housing Revenue Account Capital,RIDGE & PARTNERS LLP,Housing Revenue Account Capital,500.00,"CIP - New Construction,Conversion, Enhancement & Reno",2021P12_CR00632,134994
Sandwell Metropolitan Borough Council,http://www.sandwell.gov.uk/info/200202/performance_and_spending/1079/payments_over_500,01-Mar-2021,Housing Revenue Account Capital,LIFT & ENGINEERING SERVICES LTD,Housing Revenue Account Capital,533.78,"CIP - New Construction,Conversion, Enhancement & Reno",2021P12_CR00633,77003962
Sandwell Metropolitan Borough Council,http://www.sandwell.gov.uk/info/200202/performance_and_spending/1079/payments_over_500,01-Mar-2021,Housing Revenue Account Capital,FIELDING SURVEYORS LTD,Housing Revenue Account Capital,600.00,Deferred Charges/Grant Payments,2021P12_CR00634,151091
Sandwell Metropolitan Borough Council,http://www.sandwell.gov.uk/info/200202/performance_and_spending/1079/payments_over_500,01-Mar-2021,Housing Revenue Account Capital,FIELDING SURVEYORS LTD,Housing Revenue Account Capital,600.00,Deferred Charges/Grant Payments,2021P12_CR00635,151091
Sandwell Metropolitan Borough Council,http://www.sandwell.gov.uk/info/200202/performance_and_spending/1079/payments_over_500,01-Mar-2021,Housing Revenue Account Capital,SELECT WINDOWS (HOME IMPROVEMENTS) LIMITED,Housing Revenue Account Capital,613.00,Contract Payments,2021P12_CR00636,42616
Sandwell Metropolitan Borough Council,http://www.sandwell.gov.uk/info/200202/performance_and_spending/1079/payments_over_500,01-Mar-2021,Housing Revenue Account Capital,SELECT WINDOWS (HOME IMPROVEMENTS) LIMITED,Housing Revenue Account Capital,613.00,Contract Payments,2021P12_CR00637,42616
Sandwell Metropolitan Borough Council,http://www.sandwell.gov.uk/info/200202/performance_and_spending/1079/payments_over_500,01-Mar-2021,Housing Revenue Account Capital,SELECT WINDOWS (HOME IMPROVEMENTS) LIMITED,Housing Revenue Account Capital,712.90,Contract Payments,2021P12_CR00638,42616
Sandwell Metropolitan Borough Council,http://www.sandwell.gov.uk/info/200202/performance_and_spending/1079/payments_over_500,01-Mar-2021,Housing Revenue Account Capital,SELECT WINDOWS (HOME IMPROVEMENTS) LIMITED,Housing Revenue Account Capital,712.90,Contract Payments,2021P12_CR00639,42616
Sandwell Metropolitan Borough Council,http://www.sandwell.gov.uk/info/200202/performance_and_spending/1079/payments_over_500,15-Mar-2021,Housing Revenue Account Capital,PR PROPERTY MAINTENANCE,Housing Revenue Account Capital,745.02,Deferred Charges/Grant Payments,2021P12_CR00640,33836
Sandwell Metropolitan Borough Council,http://www.sandwell.gov.uk/info/200202/performance_and_spending/1079/payments_over_500,01-Mar-2021,Housing Revenue Account Capital,SELECT WINDOWS (HOME IMPROVEMENTS) LIMITED,Housing Revenue Account Capital,882.65,Contract Payments,2021P12_CR00641,42616
Sandwell Metropolitan Borough Council,http://www.sandwell.gov.uk/info/200202/performance_and_spending/1079/payments_over_500,01-Mar-2021,Housing Revenue Account Capital,RIDGE & PARTNERS LLP,Housing Revenue Account Capital,900.00,Deferred Charges/Grant Payments,2021P12_CR00642,134994
Sandwell Metropolitan Borough Council,http://www.sandwell.gov.uk/info/200202/performance_and_spending/1079/payments_over_500,01-Mar-2021,Housing Revenue Account Capital,"SUSIE DUKE BSc, CONSULTANT ECOLOGIST",Housing Revenue Account Capital,968.25,Consultancy,2021P12_CR00643,100601
Sandwell Metropolitan Borough Council,http://www.sandwell.gov.uk/info/200202/performance_and_spending/1079/payments_over_500,15-Mar-2021,Housing Revenue Account Capital,GOODWELLS LTD,Housing Revenue Account Capital,1137.73,Deferred Charges/Grant Payments,2021P12_CR00644,82167
Sandwell Metropolitan Borough Council,http://www.sandwell.gov.uk/info/200202/performance_and_spending/1079/payments_over_500,01-Mar-2021,Housing Revenue Account Capital,SELECT WINDOWS (HOME IMPROVEMENTS) LIMITED,Housing Revenue Account Capital,1161.25,Contract Payments,2021P12_CR00645,42616
Sandwell Metropolitan Borough Council,http://www.sandwell.gov.uk/info/200202/performance_and_spending/1079/payments_over_500,01-Mar-2021,Housing Revenue Account Capital,FRASER WOOD (MIDLANDS) LIMITED,Housing Revenue Account Capital,1790.00,Externally Purchased Professional Services ,2021P12_CR00646,57157
Sandwell Metropolitan Borough Council,http://www.sandwell.gov.uk/info/200202/performance_and_spending/1079/payments_over_500,01-Mar-2021,Housing Revenue Account Capital,SELECT WINDOWS (HOME IMPROVEMENTS) LIMITED,Housing Revenue Account Capital,1824.74,Contract Payments,2021P12_CR00647,42616
Sandwell Metropolitan Borough Council,http://www.sandwell.gov.uk/info/200202/performance_and_spending/1079/payments_over_500,01-Mar-2021,Housing Revenue Account Capital,FRASER WOOD (MIDLANDS) LIMITED,Housing Revenue Account Capital,2325.00,Externally Purchased Professional Services ,2021P12_CR00648,57157
Sandwell Metropolitan Borough Council,http://www.sandwell.gov.uk/info/200202/performance_and_spending/1079/payments_over_500,01-Mar-2021,Housing Revenue Account Capital,FRASER WOOD (MIDLANDS) LIMITED,Housing Revenue Account Capital,2775.00,Externally Purchased Professional Services ,2021P12_CR00649,57157
Sandwell Metropolitan Borough Council,http://www.sandwell.gov.uk/info/200202/performance_and_spending/1079/payments_over_500,17-Mar-2021,Housing Revenue Account Capital,PR PROPERTY MAINTENANCE,Housing Revenue Account Capital,3248.32,Deferred Charges/Grant Payments,2021P12_CR00650,33836
Sandwell Metropolitan Borough Council,http://www.sandwell.gov.uk/info/200202/performance_and_spending/1079/payments_over_500,16-Mar-2021,Housing Revenue Account Capital,FRASER WOOD (MIDLANDS) LIMITED,Housing Revenue Account Capital,3980.00,Externally Purchased Professional Services ,2021P12_CR00651,57157
Sandwell Metropolitan Borough Council,http://www.sandwell.gov.uk/info/200202/performance_and_spending/1079/payments_over_500,01-Mar-2021,Housing Revenue Account Capital,AXIS EUROPE PLC                                                           02,Housing Revenue Account Capital,4147.45,Deferred Charges/Grant Payments,2021P12_CR00652,64946
Sandwell Metropolitan Borough Council,http://www.sandwell.gov.uk/info/200202/performance_and_spending/1079/payments_over_500,01-Mar-2021,Housing Revenue Account Capital,AXIS EUROPE PLC                                                           02,Housing Revenue Account Capital,4498.50,Deferred Charges/Grant Payments,2021P12_CR00653,64946
Sandwell Metropolitan Borough Council,http://www.sandwell.gov.uk/info/200202/performance_and_spending/1079/payments_over_500,01-Mar-2021,Housing Revenue Account Capital,VINCI CONSTRUCTION LTD,Housing Revenue Account Capital,4557.36,Deferred Charges/Grant Payments,2021P12_CR00654,36361
Sandwell Metropolitan Borough Council,http://www.sandwell.gov.uk/info/200202/performance_and_spending/1079/payments_over_500,01-Mar-2021,Housing Revenue Account Capital,AXIS EUROPE PLC                                                           02,Housing Revenue Account Capital,4615.54,Deferred Charges/Grant Payments,2021P12_CR00655,64946
Sandwell Metropolitan Borough Council,http://www.sandwell.gov.uk/info/200202/performance_and_spending/1079/payments_over_500,09-Mar-2021,Housing Revenue Account Capital,J A BEDWARD & SON                                                           02,Housing Revenue Account Capital,4822.69,Deferred Charges/Grant Payments,2021P12_CR00656,77001727
Sandwell Metropolitan Borough Council,http://www.sandwell.gov.uk/info/200202/performance_and_spending/1079/payments_over_500,01-Mar-2021,Housing Revenue Account Capital,AXIS EUROPE PLC                                                           02,Housing Revenue Account Capital,4911.10,Deferred Charges/Grant Payments,2021P12_CR00657,64946
Sandwell Metropolitan Borough Council,http://www.sandwell.gov.uk/info/200202/performance_and_spending/1079/payments_over_500,01-Mar-2021,Housing Revenue Account Capital,AXIS EUROPE PLC                                                           02,Housing Revenue Account Capital,4935.85,Deferred Charges/Grant Payments,2021P12_CR00658,64946
Sandwell Metropolitan Borough Council,http://www.sandwell.gov.uk/info/200202/performance_and_spending/1079/payments_over_500,01-Mar-2021,Housing Revenue Account Capital,AXIS EUROPE PLC                                                           02,Housing Revenue Account Capital,4963.64,Deferred Charges/Grant Payments,2021P12_CR00659,64946
Sandwell Metropolitan Borough Council,http://www.sandwell.gov.uk/info/200202/performance_and_spending/1079/payments_over_500,01-Mar-2021,Housing Revenue Account Capital,LOVELL PARTNERSHIPS  LTD,Housing Revenue Account Capital,5284.30,"CIP - New Construction,Conversion, Enhancement & Reno",2021P12_CR00660,77007398
Sandwell Metropolitan Borough Council,http://www.sandwell.gov.uk/info/200202/performance_and_spending/1079/payments_over_500,01-Mar-2021,Housing Revenue Account Capital,WESSEX LIFT CO LTD,Housing Revenue Account Capital,5505.00,Building Maintenance & Improvements,2021P12_CR00661,01095737
Sandwell Metropolitan Borough Council,http://www.sandwell.gov.uk/info/200202/performance_and_spending/1079/payments_over_500,01-Mar-2021,Housing Revenue Account Capital,AXIS EUROPE PLC                                                           02,Housing Revenue Account Capital,5941.83,Deferred Charges/Grant Payments,2021P12_CR00662,64946
Sandwell Metropolitan Borough Council,http://www.sandwell.gov.uk/info/200202/performance_and_spending/1079/payments_over_500,01-Mar-2021,Housing Revenue Account Capital,POWRED HEATING COMPONENTS LIMITED,Housing Revenue Account Capital,5971.13,Materials & Consumables,2021P12_CR00663,133978
Sandwell Metropolitan Borough Council,http://www.sandwell.gov.uk/info/200202/performance_and_spending/1079/payments_over_500,01-Mar-2021,Housing Revenue Account Capital,PR PROPERTY MAINTENANCE,Housing Revenue Account Capital,6413.56,Deferred Charges/Grant Payments,2021P12_CR00664,33836
Sandwell Metropolitan Borough Council,http://www.sandwell.gov.uk/info/200202/performance_and_spending/1079/payments_over_500,16-Mar-2021,Housing Revenue Account Capital,PR PROPERTY MAINTENANCE,Housing Revenue Account Capital,6452.26,Deferred Charges/Grant Payments,2021P12_CR00665,33836
Sandwell Metropolitan Borough Council,http://www.sandwell.gov.uk/info/200202/performance_and_spending/1079/payments_over_500,15-Mar-2021,Housing Revenue Account Capital,GOODWELLS LTD,Housing Revenue Account Capital,6616.87,Deferred Charges/Grant Payments,2021P12_CR00666,82167
Sandwell Metropolitan Borough Council,http://www.sandwell.gov.uk/info/200202/performance_and_spending/1079/payments_over_500,16-Mar-2021,Housing Revenue Account Capital,PR PROPERTY MAINTENANCE,Housing Revenue Account Capital,6809.04,Deferred Charges/Grant Payments,2021P12_CR00667,33836
Sandwell Metropolitan Borough Council,http://www.sandwell.gov.uk/info/200202/performance_and_spending/1079/payments_over_500,01-Mar-2021,Housing Revenue Account Capital,PR PROPERTY MAINTENANCE,Housing Revenue Account Capital,7321.03,Deferred Charges/Grant Payments,2021P12_CR00668,33836
Sandwell Metropolitan Borough Council,http://www.sandwell.gov.uk/info/200202/performance_and_spending/1079/payments_over_500,16-Mar-2021,Housing Revenue Account Capital,PR PROPERTY MAINTENANCE,Housing Revenue Account Capital,7409.44,Deferred Charges/Grant Payments,2021P12_CR00669,33836
Sandwell Metropolitan Borough Council,http://www.sandwell.gov.uk/info/200202/performance_and_spending/1079/payments_over_500,15-Mar-2021,Housing Revenue Account Capital,PR PROPERTY MAINTENANCE,Housing Revenue Account Capital,7850.55,Deferred Charges/Grant Payments,2021P12_CR00670,33836
Sandwell Metropolitan Borough Council,http://www.sandwell.gov.uk/info/200202/performance_and_spending/1079/payments_over_500,15-Mar-2021,Housing Revenue Account Capital,PR PROPERTY MAINTENANCE,Housing Revenue Account Capital,8287.56,Deferred Charges/Grant Payments,2021P12_CR00671,33836
Sandwell Metropolitan Borough Council,http://www.sandwell.gov.uk/info/200202/performance_and_spending/1079/payments_over_500,01-Mar-2021,Housing Revenue Account Capital,RIDGE & PARTNERS LLP,Housing Revenue Account Capital,10000.00,Consultancy,2021P12_CR00672,134994
Sandwell Metropolitan Borough Council,http://www.sandwell.gov.uk/info/200202/performance_and_spending/1079/payments_over_500,01-Mar-2021,Housing Revenue Account Capital,RIDGE & PARTNERS LLP,Housing Revenue Account Capital,10666.00,Consultancy,2021P12_CR00673,134994
Sandwell Metropolitan Borough Council,http://www.sandwell.gov.uk/info/200202/performance_and_spending/1079/payments_over_500,01-Mar-2021,Housing Revenue Account Capital,POWRED HEATING COMPONENTS LIMITED,Housing Revenue Account Capital,11274.30,Materials & Consumables,2021P12_CR00674,133978
Sandwell Metropolitan Borough Council,http://www.sandwell.gov.uk/info/200202/performance_and_spending/1079/payments_over_500,15-Mar-2021,Housing Revenue Account Capital,PR PROPERTY MAINTENANCE,Housing Revenue Account Capital,11488.31,Deferred Charges/Grant Payments,2021P12_CR00675,33836
Sandwell Metropolitan Borough Council,http://www.sandwell.gov.uk/info/200202/performance_and_spending/1079/payments_over_500,29-Mar-2021,Housing Revenue Account Capital,POWRED HEATING COMPONENTS LIMITED,Housing Revenue Account Capital,13585.83,Materials & Consumables,2021P12_CR00676,133978
Sandwell Metropolitan Borough Council,http://www.sandwell.gov.uk/info/200202/performance_and_spending/1079/payments_over_500,15-Mar-2021,Housing Revenue Account Capital,PR PROPERTY MAINTENANCE,Housing Revenue Account Capital,14406.12,Deferred Charges/Grant Payments,2021P12_CR00677,33836
Sandwell Metropolitan Borough Council,http://www.sandwell.gov.uk/info/200202/performance_and_spending/1079/payments_over_500,06-Mar-2021,Housing Revenue Account Capital,POWRED HEATING COMPONENTS LIMITED,Housing Revenue Account Capital,14835.34,Materials & Consumables,2021P12_CR00678,133978
Sandwell Metropolitan Borough Council,http://www.sandwell.gov.uk/info/200202/performance_and_spending/1079/payments_over_500,20-Mar-2021,Housing Revenue Account Capital,POWRED HEATING COMPONENTS LIMITED,Housing Revenue Account Capital,15118.87,Materials & Consumables,2021P12_CR00679,133978
Sandwell Metropolitan Borough Council,http://www.sandwell.gov.uk/info/200202/performance_and_spending/1079/payments_over_500,17-Mar-2021,Housing Revenue Account Capital,GOODWELLS LTD,Housing Revenue Account Capital,15689.70,"CIP - New Construction,Conversion, Enhancement & Reno",2021P12_CR00680,82167
Sandwell Metropolitan Borough Council,http://www.sandwell.gov.uk/info/200202/performance_and_spending/1079/payments_over_500,01-Mar-2021,Housing Revenue Account Capital,OPENVIEW SECURITY SOLUTIONS LIMITED,Housing Revenue Account Capital,17604.60,"CIP - New Construction,Conversion, Enhancement & Reno",2021P12_CR00681,77000151
Sandwell Metropolitan Borough Council,http://www.sandwell.gov.uk/info/200202/performance_and_spending/1079/payments_over_500,05-Mar-2021,Housing Revenue Account Capital,LOVELL PARTNERSHIPS  LTD,Housing Revenue Account Capital,20184.69,"CIP - New Construction,Conversion, Enhancement & Reno",2021P12_CR00682,77007398
Sandwell Metropolitan Borough Council,http://www.sandwell.gov.uk/info/200202/performance_and_spending/1079/payments_over_500,01-Mar-2021,Housing Revenue Account Capital,RIDGE & PARTNERS LLP,Housing Revenue Account Capital,20920.00,CIP - Infrastructure,2021P12_CR00683,134994
Sandwell Metropolitan Borough Council,http://www.sandwell.gov.uk/info/200202/performance_and_spending/1079/payments_over_500,01-Mar-2021,Housing Revenue Account Capital,LOVELL PARTNERSHIPS  LTD,Housing Revenue Account Capital,36224.53,"CIP - New Construction,Conversion, Enhancement & Reno",2021P12_CR00684,77007398
Sandwell Metropolitan Borough Council,http://www.sandwell.gov.uk/info/200202/performance_and_spending/1079/payments_over_500,09-Mar-2021,Housing Revenue Account Capital,PR PROPERTY MAINTENANCE,Housing Revenue Account Capital,42447.66,Deferred Charges/Grant Payments,2021P12_CR00685,33836
Sandwell Metropolitan Borough Council,http://www.sandwell.gov.uk/info/200202/performance_and_spending/1079/payments_over_500,15-Mar-2021,Housing Revenue Account Capital,VINCI CONSTRUCTION LTD,Housing Revenue Account Capital,50205.05,Deferred Charges/Grant Payments,2021P12_CR00686,36361
Sandwell Metropolitan Borough Council,http://www.sandwell.gov.uk/info/200202/performance_and_spending/1079/payments_over_500,01-Mar-2021,Housing Revenue Account Capital,VINCI CONSTRUCTION LTD,Housing Revenue Account Capital,77093.54,"CIP - New Construction,Conversion, Enhancement & Reno",2021P12_CR00687,36361
Sandwell Metropolitan Borough Council,http://www.sandwell.gov.uk/info/200202/performance_and_spending/1079/payments_over_500,01-Mar-2021,Housing Revenue Account Capital,LOVELL PARTNERSHIPS  LTD,Housing Revenue Account Capital,108104.58,"CIP - New Construction,Conversion, Enhancement & Reno",2021P12_CR00688,77007398
Sandwell Metropolitan Borough Council,http://www.sandwell.gov.uk/info/200202/performance_and_spending/1079/payments_over_500,18-Mar-2021,Housing Revenue Account Capital,HIGGS & SONS SOLICITORS,Housing Revenue Account Capital,119418.00,CIP - Acquisition of Land & Existing Buildings,2021P12_CR00689,120965
Sandwell Metropolitan Borough Council,http://www.sandwell.gov.uk/info/200202/performance_and_spending/1079/payments_over_500,10-Mar-2021,Housing Revenue Account Capital,HIGGS & SONS SOLICITORS,Housing Revenue Account Capital,129718.00,CIP - Acquisition of Land & Existing Buildings,2021P12_CR00690,120965
Sandwell Metropolitan Borough Council,http://www.sandwell.gov.uk/info/200202/performance_and_spending/1079/payments_over_500,17-Mar-2021,Housing Revenue Account Capital,HIGGS & SONS SOLICITORS,Housing Revenue Account Capital,129718.00,CIP - Acquisition of Land & Existing Buildings,2021P12_CR00691,120965
Sandwell Metropolitan Borough Council,http://www.sandwell.gov.uk/info/200202/performance_and_spending/1079/payments_over_500,17-Mar-2021,Housing Revenue Account Capital,HIGGS & SONS SOLICITORS,Housing Revenue Account Capital,137537.20,CIP - Acquisition of Land & Existing Buildings,2021P12_CR00692,120965
Sandwell Metropolitan Borough Council,http://www.sandwell.gov.uk/info/200202/performance_and_spending/1079/payments_over_500,01-Mar-2021,Housing Revenue Account Capital,HIGGS & SONS SOLICITORS,Housing Revenue Account Capital,145168.00,CIP - Acquisition of Land & Existing Buildings,2021P12_CR00693,120965
Sandwell Metropolitan Borough Council,http://www.sandwell.gov.uk/info/200202/performance_and_spending/1079/payments_over_500,01-Mar-2021,Housing Revenue Account Capital,HIGGS & SONS SOLICITORS,Housing Revenue Account Capital,155468.00,CIP - Acquisition of Land & Existing Buildings,2021P12_CR00694,120965
Sandwell Metropolitan Borough Council,http://www.sandwell.gov.uk/info/200202/performance_and_spending/1079/payments_over_500,01-Mar-2021,Housing Revenue Account Capital,HIGGS & SONS SOLICITORS,Housing Revenue Account Capital,163287.20,CIP - Acquisition of Land & Existing Buildings,2021P12_CR00695,120965
Sandwell Metropolitan Borough Council,http://www.sandwell.gov.uk/info/200202/performance_and_spending/1079/payments_over_500,02-Mar-2021,Housing Revenue Account Capital,HIGGS & SONS SOLICITORS,Housing Revenue Account Capital,165768.00,CIP - Acquisition of Land & Existing Buildings,2021P12_CR00696,120965
Sandwell Metropolitan Borough Council,http://www.sandwell.gov.uk/info/200202/performance_and_spending/1079/payments_over_500,15-Mar-2021,Housing Revenue Account Capital,HIGGS & SONS SOLICITORS,Housing Revenue Account Capital,165798.00,CIP - Acquisition of Land & Existing Buildings,2021P12_CR00697,120965
Sandwell Metropolitan Borough Council,http://www.sandwell.gov.uk/info/200202/performance_and_spending/1079/payments_over_500,04-Mar-2021,Housing Revenue Account Capital,HIGGS & SONS SOLICITORS,Housing Revenue Account Capital,165862.20,CIP - Acquisition of Land & Existing Buildings,2021P12_CR00698,120965
Sandwell Metropolitan Borough Council,http://www.sandwell.gov.uk/info/200202/performance_and_spending/1079/payments_over_500,29-Mar-2021,Housing Revenue Account Capital,HIGGS & SONS SOLICITORS,Housing Revenue Account Capital,168343.00,CIP - Acquisition of Land & Existing Buildings,2021P12_CR00699,120965
Sandwell Metropolitan Borough Council,http://www.sandwell.gov.uk/info/200202/performance_and_spending/1079/payments_over_500,04-Mar-2021,Housing Revenue Account Capital,HIGGS & SONS SOLICITORS,Housing Revenue Account Capital,171009.20,CIP - Acquisition of Land & Existing Buildings,2021P12_CR00700,120965
Sandwell Metropolitan Borough Council,http://www.sandwell.gov.uk/info/200202/performance_and_spending/1079/payments_over_500,01-Mar-2021,Housing Revenue Account Capital,HIGGS & SONS SOLICITORS,Housing Revenue Account Capital,171012.20,CIP - Acquisition of Land & Existing Buildings,2021P12_CR00701,120965
Sandwell Metropolitan Borough Council,http://www.sandwell.gov.uk/info/200202/performance_and_spending/1079/payments_over_500,19-Mar-2021,Housing Revenue Account Capital,HIGGS & SONS SOLICITORS,Housing Revenue Account Capital,176159.20,CIP - Acquisition of Land & Existing Buildings,2021P12_CR00702,120965
Sandwell Metropolitan Borough Council,http://www.sandwell.gov.uk/info/200202/performance_and_spending/1079/payments_over_500,10-Mar-2021,Housing Revenue Account Capital,HIGGS & SONS SOLICITORS,Housing Revenue Account Capital,191518.00,CIP - Acquisition of Land & Existing Buildings,2021P12_CR00703,120965
Sandwell Metropolitan Borough Council,http://www.sandwell.gov.uk/info/200202/performance_and_spending/1079/payments_over_500,22-Mar-2021,Housing Revenue Account Capital,HIGGS & SONS SOLICITORS,Housing Revenue Account Capital,191518.00,CIP - Acquisition of Land & Existing Buildings,2021P12_CR00704,120965
Sandwell Metropolitan Borough Council,http://www.sandwell.gov.uk/info/200202/performance_and_spending/1079/payments_over_500,15-Mar-2021,Housing Revenue Account Capital,HIGGS & SONS SOLICITORS,Housing Revenue Account Capital,215248.00,CIP - Acquisition of Land & Existing Buildings,2021P12_CR00705,120965
Sandwell Metropolitan Borough Council,http://www.sandwell.gov.uk/info/200202/performance_and_spending/1079/payments_over_500,20-Mar-2021,Housing Revenue Account Capital,SEDDON CONSTRUCTION LIMITED,Housing Revenue Account Capital,230395.98,"CIP - New Construction,Conversion, Enhancement & Reno",2021P12_CR00706,132999
Sandwell Metropolitan Borough Council,http://www.sandwell.gov.uk/info/200202/performance_and_spending/1079/payments_over_500,12-Mar-2021,Housing Revenue Account Capital,SURE MAINTENANCE LIMITED,Housing Revenue Account Capital,319180.72,"CIP - New Construction,Conversion, Enhancement & Reno",2021P12_CR00707,93926
Sandwell Metropolitan Borough Council,http://www.sandwell.gov.uk/info/200202/performance_and_spending/1079/payments_over_500,01-Mar-2021,Housing Revenue Account Capital,SPELLER METCALFE MALVERN LIMITED,Housing Revenue Account Capital,711501.20,"CIP - New Construction,Conversion, Enhancement & Reno",2021P12_CR00708,92473
Sandwell Metropolitan Borough Council,http://www.sandwell.gov.uk/info/200202/performance_and_spending/1079/payments_over_500,01-Mar-2021,Housing Revenue Account Capital,LOVELL PARTNERSHIPS  LTD,Housing Revenue Account Capital,722818.49,"CIP - New Construction,Conversion, Enhancement & Reno",2021P12_CR00709,77007398
Sandwell Metropolitan Borough Council,http://www.sandwell.gov.uk/info/200202/performance_and_spending/1079/payments_over_500,11-Mar-2021,Housing Revenue Account Capital,VINCI CONSTRUCTION LTD,Housing Revenue Account Capital,726678.13,"CIP - New Construction,Conversion, Enhancement & Reno",2021P12_CR00710,36361
Sandwell Metropolitan Borough Council,http://www.sandwell.gov.uk/info/200202/performance_and_spending/1079/payments_over_500,23-Mar-2021,Individual School Budgets With Inclusion,REDACTED PERSONAL DATA,Individual School Budgets With Inclusion,526.32,Grant Payments,2021P12_CR00711,REDACTED PERSONAL DATA
Sandwell Metropolitan Borough Council,http://www.sandwell.gov.uk/info/200202/performance_and_spending/1079/payments_over_500,23-Mar-2021,Individual School Budgets With Inclusion,REDACTED PERSONAL DATA,Individual School Budgets With Inclusion,526.32,Grant Payments,2021P12_CR00712,REDACTED PERSONAL DATA
Sandwell Metropolitan Borough Council,http://www.sandwell.gov.uk/info/200202/performance_and_spending/1079/payments_over_500,23-Mar-2021,Individual School Budgets With Inclusion,REDACTED PERSONAL DATA,Individual School Budgets With Inclusion,526.32,Grant Payments,2021P12_CR00713,REDACTED PERSONAL DATA
Sandwell Metropolitan Borough Council,http://www.sandwell.gov.uk/info/200202/performance_and_spending/1079/payments_over_500,23-Mar-2021,Individual School Budgets With Inclusion,REDACTED PERSONAL DATA,Individual School Budgets With Inclusion,526.32,Grant Payments,2021P12_CR00714,REDACTED PERSONAL DATA
Sandwell Metropolitan Borough Council,http://www.sandwell.gov.uk/info/200202/performance_and_spending/1079/payments_over_500,23-Mar-2021,Individual School Budgets With Inclusion,REDACTED PERSONAL DATA,Individual School Budgets With Inclusion,526.32,Grant Payments,2021P12_CR00715,REDACTED PERSONAL DATA
Sandwell Metropolitan Borough Council,http://www.sandwell.gov.uk/info/200202/performance_and_spending/1079/payments_over_500,23-Mar-2021,Individual School Budgets With Inclusion,REDACTED PERSONAL DATA,Individual School Budgets With Inclusion,526.32,Grant Payments,2021P12_CR00716,REDACTED PERSONAL DATA
Sandwell Metropolitan Borough Council,http://www.sandwell.gov.uk/info/200202/performance_and_spending/1079/payments_over_500,23-Mar-2021,Individual School Budgets With Inclusion,REDACTED PERSONAL DATA,Individual School Budgets With Inclusion,526.32,Grant Payments,2021P12_CR00717,REDACTED PERSONAL DATA
Sandwell Metropolitan Borough Council,http://www.sandwell.gov.uk/info/200202/performance_and_spending/1079/payments_over_500,23-Mar-2021,Individual School Budgets With Inclusion,CONFEDERATION OF BANGLADESHI ORGANISATIONS (CBO) LIMITED,Individual School Budgets With Inclusion,556.92,Grant Payments,2021P12_CR00718,10034
Sandwell Metropolitan Borough Council,http://www.sandwell.gov.uk/info/200202/performance_and_spending/1079/payments_over_500,23-Mar-2021,Individual School Budgets With Inclusion,REDACTED PERSONAL DATA,Individual School Budgets With Inclusion,556.92,Grant Payments,2021P12_CR00719,REDACTED PERSONAL DATA
Sandwell Metropolitan Borough Council,http://www.sandwell.gov.uk/info/200202/performance_and_spending/1079/payments_over_500,30-Mar-2021,Individual School Budgets With Inclusion,HOLY TRINITY CE PRIMARY                                    02,Individual School Budgets With Inclusion,572.40,Grant Payments,2021P12_CR00720,61004
Sandwell Metropolitan Borough Council,http://www.sandwell.gov.uk/info/200202/performance_and_spending/1079/payments_over_500,30-Mar-2021,Individual School Budgets With Inclusion,ABBEY INFANT SCHOOL                                             02,Individual School Budgets With Inclusion,572.40,Grant Payments,2021P12_CR00721,60959
Sandwell Metropolitan Borough Council,http://www.sandwell.gov.uk/info/200202/performance_and_spending/1079/payments_over_500,30-Mar-2021,Individual School Budgets With Inclusion,CAUSEWAY GREEN PRIMARY SCHOOL                           02,Individual School Budgets With Inclusion,572.40,Grant Payments,2021P12_CR00722,60976
Sandwell Metropolitan Borough Council,http://www.sandwell.gov.uk/info/200202/performance_and_spending/1079/payments_over_500,30-Mar-2021,Individual School Budgets With Inclusion,FERNDALE PRIMARY SCHOOL                                    01,Individual School Budgets With Inclusion,572.40,Grant Payments,2021P12_CR00723,11562
Sandwell Metropolitan Borough Council,http://www.sandwell.gov.uk/info/200202/performance_and_spending/1079/payments_over_500,30-Mar-2021,Individual School Budgets With Inclusion,HAMSTEAD INFANT SCHOOL                                  02,Individual School Budgets With Inclusion,572.40,Grant Payments,2021P12_CR00724,60997
Sandwell Metropolitan Borough Council,http://www.sandwell.gov.uk/info/200202/performance_and_spending/1079/payments_over_500,30-Mar-2021,Individual School Budgets With Inclusion,HIGHFIELDS PRIMARY SCHOOL                                01,Individual School Budgets With Inclusion,572.40,Grant Payments,2021P12_CR00725,01782118
Sandwell Metropolitan Borough Council,http://www.sandwell.gov.uk/info/200202/performance_and_spending/1079/payments_over_500,30-Mar-2021,Individual School Budgets With Inclusion,LANGLEY PRIMARY SCHOOL                                 02,Individual School Budgets With Inclusion,572.40,Grant Payments,2021P12_CR00726,61011
Sandwell Metropolitan Borough Council,http://www.sandwell.gov.uk/info/200202/performance_and_spending/1079/payments_over_500,30-Mar-2021,Individual School Budgets With Inclusion,NEWTOWN PRIMARY SCHOOL                                             02,Individual School Budgets With Inclusion,572.40,Grant Payments,2021P12_CR00727,61034
Sandwell Metropolitan Borough Council,http://www.sandwell.gov.uk/info/200202/performance_and_spending/1079/payments_over_500,23-Mar-2021,Individual School Budgets With Inclusion,FAIRYTALES NURSERY LTD,Individual School Budgets With Inclusion,615.00,Grant Payments,2021P12_CR00728,106247
Sandwell Metropolitan Borough Council,http://www.sandwell.gov.uk/info/200202/performance_and_spending/1079/payments_over_500,23-Mar-2021,Individual School Budgets With Inclusion,HARGATE PRIMARY SCHOOL                                   02,Individual School Budgets With Inclusion,615.00,Grant Payments,2021P12_CR00729,60999
Sandwell Metropolitan Borough Council,http://www.sandwell.gov.uk/info/200202/performance_and_spending/1079/payments_over_500,23-Mar-2021,Individual School Budgets With Inclusion,RARE WOOD LIMITED,Individual School Budgets With Inclusion,615.00,Grant Payments,2021P12_CR00730,20167
Sandwell Metropolitan Borough Council,http://www.sandwell.gov.uk/info/200202/performance_and_spending/1079/payments_over_500,23-Mar-2021,Individual School Budgets With Inclusion,TINY TOEZ LIMITED,Individual School Budgets With Inclusion,615.00,Grant Payments,2021P12_CR00731,23618
Sandwell Metropolitan Borough Council,http://www.sandwell.gov.uk/info/200202/performance_and_spending/1079/payments_over_500,23-Mar-2021,Individual School Budgets With Inclusion,REDACTED PERSONAL DATA,Individual School Budgets With Inclusion,621.72,Grant Payments,2021P12_CR00732,REDACTED PERSONAL DATA
Sandwell Metropolitan Borough Council,http://www.sandwell.gov.uk/info/200202/performance_and_spending/1079/payments_over_500,23-Mar-2021,Individual School Budgets With Inclusion,ST MICHAELS DAY NURSERY,Individual School Budgets With Inclusion,622.44,Grant Payments,2021P12_CR00733,01698538
Sandwell Metropolitan Borough Council,http://www.sandwell.gov.uk/info/200202/performance_and_spending/1079/payments_over_500,23-Mar-2021,Individual School Budgets With Inclusion,REDACTED PERSONAL DATA,Individual School Budgets With Inclusion,649.80,Grant Payments,2021P12_CR00734,REDACTED PERSONAL DATA
Sandwell Metropolitan Borough Council,http://www.sandwell.gov.uk/info/200202/performance_and_spending/1079/payments_over_500,30-Mar-2021,Individual School Budgets With Inclusion,CROCKETTS LANE COMMUNITY PRIMARY SCHOOL                           02,Individual School Budgets With Inclusion,667.80,Grant Payments,2021P12_CR00735,60980
Sandwell Metropolitan Borough Council,http://www.sandwell.gov.uk/info/200202/performance_and_spending/1079/payments_over_500,30-Mar-2021,Individual School Budgets With Inclusion,GALTON VALLEY PRIMARY SCHOOL                                             02,Individual School Budgets With Inclusion,667.80,Grant Payments,2021P12_CR00736,73124
Sandwell Metropolitan Borough Council,http://www.sandwell.gov.uk/info/200202/performance_and_spending/1079/payments_over_500,30-Mar-2021,Individual School Budgets With Inclusion,GLEBEFIELDS PRIMARY SCHOOL                             02,Individual School Budgets With Inclusion,667.80,Grant Payments,2021P12_CR00737,60989
Sandwell Metropolitan Borough Council,http://www.sandwell.gov.uk/info/200202/performance_and_spending/1079/payments_over_500,30-Mar-2021,Individual School Budgets With Inclusion,GREAT BRIDGE PRIMARY SCHOOL                          02,Individual School Budgets With Inclusion,667.80,Grant Payments,2021P12_CR00738,42484
Sandwell Metropolitan Borough Council,http://www.sandwell.gov.uk/info/200202/performance_and_spending/1079/payments_over_500,30-Mar-2021,Individual School Budgets With Inclusion,MOAT FARM INFANTS SCHOOL                                     02,Individual School Budgets With Inclusion,667.80,Grant Payments,2021P12_CR00739,61031
Sandwell Metropolitan Borough Council,http://www.sandwell.gov.uk/info/200202/performance_and_spending/1079/payments_over_500,23-Mar-2021,Individual School Budgets With Inclusion,REDACTED PERSONAL DATA,Individual School Budgets With Inclusion,736.85,Grant Payments,2021P12_CR00740,REDACTED PERSONAL DATA
Sandwell Metropolitan Borough Council,http://www.sandwell.gov.uk/info/200202/performance_and_spending/1079/payments_over_500,23-Mar-2021,Individual School Budgets With Inclusion,REDACTED PERSONAL DATA,Individual School Budgets With Inclusion,754.39,Grant Payments,2021P12_CR00741,REDACTED PERSONAL DATA
Sandwell Metropolitan Borough Council,http://www.sandwell.gov.uk/info/200202/performance_and_spending/1079/payments_over_500,30-Mar-2021,Individual School Budgets With Inclusion,CAPE PRIMARY SCHOOL,Individual School Budgets With Inclusion,763.20,Grant Payments,2021P12_CR00742,01672537
